Workbook

Sheet Seed Plan
A1: SEEDING PLAN AND RECORD | O1: TRUE
O2: FALSE
A3: Date: | B3: =TODAY() -> 2021-09-20 | E3: Paddock/Field No: | I3: Acres: | O3: TRUE
A5: Cooperator: | G5: Conservationist:
A7: Program: | E7: Practice No: | H7: Practice Name:
A9: Drainage Class | I9: TYPE OF PLANTING
A14: Seeding Dates
A17: Seeding Method and Seedbed Preparation
F22: Companion Crop
A25: SEEDING PLAN TABLE
A26: Seed Species | D26: Variety or Seed Source | F26: Seeds/lb | G26: PLS Rate Planned | H26: Acres | I26: Seeds/Sqft | J26: Total PLS lbs | K26: % in Mixture
F30: =IF(A30="",0,VLOOKUP(A30,Sheet3!$A$282:$D$322,2,FALSE)) -> 0 | H30: =$J$3 -> 0 | I30: =IF(A30="","",(F30*G30)/43560) ->  | J30: =IF(A30 = "","",H30*G30) ->  | K30: =IF(A30="","",I30/$I$45) -> 
F31: =IF(A31="",0,VLOOKUP(A31,Sheet3!$A$282:$D$322,2,FALSE)) -> 0 | H31: =$J$3 -> 0 | I31: =IF(A31="","",(F31*G31)/43560) ->  | J31: =IF(A31 = "","",H31*G31) ->  | K31: =IF(A31="","",I31/$I$45) -> 
F32: =IF(A32="",0,VLOOKUP(A32,Sheet3!$A$282:$D$322,2,FALSE)) -> 0 | H32: 0 | I32: =IF(A32="","",(F32*G32)/43560) -> 
F33: =IF(A33="",0,VLOOKUP(A33,Sheet3!$A$282:$D$322,2,FALSE)) -> 0 | H33: 0 | I33: =IF(A33="","",(F33*G33)/43560) -> 
F34: =IF(A34="",0,VLOOKUP(A34,Sheet3!$A$282:$D$322,2,FALSE)) -> 0 | H34: 0
F35: =IF(A35="",0,VLOOKUP(A35,Sheet3!$A$282:$D$322,2,FALSE)) -> 0 | H35: 0
F36: =IF(A36="",0,VLOOKUP(A36,Sheet3!$A$282:$D$322,2,FALSE)) -> 0 | H36: 0
F37: =IF(A37="",0,VLOOKUP(A37,Sheet3!$A$282:$D$322,2,FALSE)) -> 0 | H37: 0
F38: =IF(A38="",0,VLOOKUP(A38,Sheet3!$A$282:$D$322,2,FALSE)) -> 0 | H38: 0
F39: =IF(A39="",0,VLOOKUP(A39,Sheet3!$A$282:$D$322,2,FALSE)) -> 0 | H39: 0
F40: =IF(A40="",0,VLOOKUP(A40,Sheet3!$A$282:$D$322,2,FALSE)) -> 0 | H40: 0
F41: =IF(A41="",0,VLOOKUP(A41,Sheet3!$A$282:$D$322,2,FALSE)) -> 0 | H41: 0
A42: OTHER | H42: 0 | I42: =IF(A42="OTHER","",(F42*G42)/43560) ->  | J42: =IF(A42 = "OTHER","",H42*G42) ->  | K42: =IF(A42="OTHER","",I42/$I$45) -> 
A43: OTHER | H43: 0 | I43: =IF(A43="OTHER","",(F43*G43)/43560) ->  | J43: =IF(A43 = "OTHER","",H43*G43) ->  | K43: =IF(A43="OTHER","",I43/$I$45) -> 
A44: OTHER | H44: 0 | I44: =IF(A44="OTHER","",(F44*G44)/43560) ->  | J44: =IF(A44 = "OTHER","",H44*G44) ->  | K44: =IF(A44="OTHER","",I44/$I$45) -> 
G45: =SUM(G30:G44) -> 0 | H45: Totals | I45: =SUM(I30:I44) -> 0 | J45: =SUM(J30:J44) -> 0 | K45: =SUM(K30:K44) -> 0
A49: Fertilizer Recs
A51: Phosphate | D51: Yield Tons/ac | H51: Phosphate Recommended lbs/ac
A52: Type of Stand
H54: =IF(F54>0,Sheet3!K197,IF(G54>0,Sheet3!K197,"")) -> 0
A56: Potash | D56: Yield Tons/ac | F56: Soil Test Result | G56: Potash Recommended lbs/ac
A57: Type of Stand
G59: =Sheet3!V198 -> 0
A69: Producer Signature: | G69: Date
A72: Planned By: | G72: Date
A75: Approved By: | G75: Date | J75: Job Class

Sheet Seeding Plan Cover Sheet (hidden)
A1: Seed Plan and Record
A3: Date: | B3: ='Seed Plan'!B3:C3 -> 2021-09-20 | E3: Paddock/Field No: | G3: ='Seed Plan'!G3:H3 -> 
A5: Cooperator: | B5: ='Seed Plan'!B5:E5 -> 0 | G5: Conservationist: | H5: ='Seed Plan'!H5:J5 -> 0
A7: Program: | B7: ='Seed Plan'!B7:C7 -> 0 | E7: Practice No: | F7: ='Seed Plan'!F7 -> 0 | H7: Practice Name: | I7: ='Seed Plan'!I7:J7 -> 0
A9: Approved Planting Dates:
A10: ='Seed Plan'!A15:K15 -> 0 | F10: Forage Suitability Group(s) | H10: ='Seed Plan'!C9 -> 0
H11: ='Seed Plan'!C10 -> 0
H12: ='Seed Plan'!C11 -> 0
A15: The following seed mix is intended for: | E15: ='Seed Plan'!I10 -> 0 | H15: Planned Acres
H16: ='Seed Plan'!J3 -> 0
A17: Species | C17: Variety | D17: Seeds/Sq ft | E17: PLS Rate Planned / ac | F17: Total lbs PLS
A18: ='Seed Plan'!A30:C30 ->  | C18: ='Seed Plan'!D30 ->  | D18: ='Seed Plan'!I30 ->  | E18: ='Seed Plan'!G30 -> 0 | F18: ='Seed Plan'!J30 -> 
A19: ='Seed Plan'!A31:C31 ->  | C19: ='Seed Plan'!D31 ->  | D19: ='Seed Plan'!I31 ->  | E19: ='Seed Plan'!G31 -> 0 | F19: ='Seed Plan'!J31 ->  | H19: Total PLS lbs of Mix
A20: ='Seed Plan'!A32:C32 ->  | C20: ='Seed Plan'!D32 ->  | D20: ='Seed Plan'!I32 ->  | E20: ='Seed Plan'!G32 -> 0 | F20: ='Seed Plan'!J32 ->  | H20: =F33 -> 0
A21: ='Seed Plan'!A33:C33 ->  | C21: ='Seed Plan'!D33 ->  | D21: ='Seed Plan'!I33 ->  | E21: ='Seed Plan'!G33 -> 0 | F21: ='Seed Plan'!J33 -> 
A22: ='Seed Plan'!A34:C34 ->  | C22: ='Seed Plan'!D34 ->  | D22: ='Seed Plan'!I34 ->  | E22: ='Seed Plan'!G34 -> 0 | F22: ='Seed Plan'!J34 -> 
A23: ='Seed Plan'!A35:C35 ->  | C23: ='Seed Plan'!D35 ->  | D23: ='Seed Plan'!I35 ->  | E23: ='Seed Plan'!G35 -> 0 | F23: ='Seed Plan'!J35 -> 
A24: ='Seed Plan'!A36:C36 ->  | C24: ='Seed Plan'!D36 ->  | D24: ='Seed Plan'!I36 ->  | E24: ='Seed Plan'!G36 -> 0 | F24: ='Seed Plan'!J36 ->  | H24: Total Seeds /Sq ft
A25: ='Seed Plan'!A37:C37 ->  | C25: ='Seed Plan'!D37 ->  | D25: ='Seed Plan'!I37 ->  | E25: ='Seed Plan'!G37 -> 0 | F25: ='Seed Plan'!J37 ->  | H25: =D33 -> 0
A26: ='Seed Plan'!A38:C38 ->  | C26: ='Seed Plan'!D38 ->  | D26: ='Seed Plan'!I38 ->  | E26: ='Seed Plan'!G38 -> 0 | F26: ='Seed Plan'!J38 -> 
A27: ='Seed Plan'!A39:C39 ->  | C27: ='Seed Plan'!D39 ->  | D27: ='Seed Plan'!I39 ->  | E27: ='Seed Plan'!G39 -> 0 | F27: ='Seed Plan'!J39 -> 
A28: ='Seed Plan'!A40:C40 ->  | C28: ='Seed Plan'!D40 ->  | D28: ='Seed Plan'!I40 ->  | E28: ='Seed Plan'!G40 -> 0 | F28: ='Seed Plan'!J40 -> 
A29: ='Seed Plan'!A41:C41 ->  | C29: ='Seed Plan'!D41 ->  | D29: ='Seed Plan'!I41 ->  | E29: ='Seed Plan'!G41 -> 0 | F29: ='Seed Plan'!J41 ->  | H29: Disclaimer: Any deviation from this plan needs approval prior to seeding to be eligible for cost-share through a government program.
A30: ='Seed Plan'!A42:C42 -> OTHER | C30: ='Seed Plan'!D42 ->  | D30: ='Seed Plan'!I42 ->  | E30: ='Seed Plan'!G42 -> 0 | F30: ='Seed Plan'!J42 -> 
A31: ='Seed Plan'!A43:C43 -> OTHER | C31: ='Seed Plan'!D43 ->  | D31: ='Seed Plan'!I43 ->  | E31: ='Seed Plan'!G43 -> 0 | F31: ='Seed Plan'!J43 -> 
A32: ='Seed Plan'!A44:C44 -> OTHER | C32: ='Seed Plan'!D44 ->  | D32: ='Seed Plan'!I44 ->  | E32: ='Seed Plan'!G44 -> 0 | F32: ='Seed Plan'!J44 -> 
D33: =SUM(D18:D32) -> 0 | E33: ='Seed Plan'!G45 -> 0 | F33: =SUM(F18:F32) -> 0
A35: PLS = Pure Live Seed. All seeding rates are calculated based on PLS. Total bulk lbs PLS needed = Pounds PLS / % purity / (%germination + % hard seed)
A40: Companion Crop
A42: ='Seed Plan'!F23 -> 0
A44: Companion Crop Notes
A45: =IF(A42=0,0, "Mow and remove companion crop residue at the boot stage or graze when it is approximately 10 inches tall to prevent it from going to seed, otherwise competition can begin to negetively effect seeding establishment.") -> 0
A49: Fertilizer Requirements
A50: Fertilizer | C50: Rate per acre | E50: Total lbs needed: | H50: NEED SOILS TEST PRIOR TO SEEDING
A51: Phosphorous (P2O5) | C51: ='Seed Plan'!H54 -> 0 | E51: =C51*H16 -> 0
A52: Potash (K2O) | C52: ='Seed Plan'!G59 -> 0 | E52: =C52*H16 -> 0
A54: Fertilizer Application Notes
A55: =IF(E51>0,Sheet3!B260, IF(E52>0,Sheet3!B260, 0)) -> 0
A60: Seedbed Preparation and Seeding Method:
A61: ='Seed Plan'!A18 -> 0
A67: Operation and Maintenance
A68: =IF(E15=0,"THE TYPE OF PLANTING (HAY OR PASTURE) HAS NOT BEEN INDICATED ON THE SEED PLAN WORKHEET",IF(E15="Pasture",Sheet3!C272,IF(E15="Hay",Sheet3!C271,0))) -> THE TYPE OF PLANTING (HAY OR PASTURE) HAS NOT BEEN INDICATED ON THE SEED PLAN WORKHEET

Sheet Sheet3 (hidden)
A1: 5
H5: Stand Type
H6: Pasture >20% legume
H7: Pasture <20% legume
H8: Hay - Alfalfa
H9: Hay - Other Legume
H10: Hay - Grass
H41: 1 | L41: 1
B45: Phosphorous Recs
C46: Type of Stand | D46: Tons/ac | E46: Olsen | F46: Bray | G46: Application | N46: Potassium Recs
A47: =IF('Seed Plan'!A54="Pasture >20% legume",1,IF('Seed Plan'!A54="Pasture <20% Legume",2,IF('Seed Plan'!A54="Hay - Alfalfa",3,IF('Seed Plan'!A54="Hay - Other Legume",4,IF('Seed Plan'!A54="Hay - Grass",5,""))))) ->  | B47: 1 | C47: Pasture > 20% Legume | D47: 2 | E47: 0-3 | F47: 0-5 | G47: 35 | H47: =IF($A$47=1,TRUE,FALSE) -> FALSE | I47: =IF('Seed Plan'!$D$54=2,TRUE,FALSE) -> FALSE | J47: =IF('Seed Plan'!$F$54="0-3",TRUE,IF('Seed Plan'!$G$54="0-5",TRUE,FALSE)) -> FALSE | K47: =IF(H47=TRUE,IF(I47=TRUE,IF(J47=TRUE,G47,FALSE))) -> FALSE | M47: =IF('Seed Plan'!A59="Pasture >20% legume",1,IF('Seed Plan'!A59="Pasture <20% Legume",2,IF('Seed Plan'!A59="Hay - Alfalfa",3,IF('Seed Plan'!A59="Hay - Other Legume",4,IF('Seed Plan'!A59="Hay - Grass",5,""))))) ->  | O47: Type of Stand | P47: Tons/ac | Q47: PPM | R47: Application
B48: 1 | C48: Pasture > 20% Legume | D48: 3 | E48: 0-3 | F48: 0-5 | G48: 55 | H48: =IF($A$47=1,TRUE,FALSE) -> FALSE | I48: =IF('Seed Plan'!$D$54=3,TRUE,FALSE) -> FALSE | J48: =IF('Seed Plan'!$F$54="0-3",TRUE,IF('Seed Plan'!$G$54="0-5",TRUE,FALSE)) -> FALSE | K48: =IF(H48=TRUE,IF(I48=TRUE,IF(J48=TRUE,G48,FALSE))) -> FALSE | N48: 1 | O48: Pasture > 20% Legume | P48: 2 | Q48: 0-40 | R48: 95 | S48: =IF($M$47=1,TRUE,FALSE) -> FALSE | T48: =IF('Seed Plan'!$D$59=2,TRUE,FALSE) -> FALSE | U48: =IF('Seed Plan'!$F$59="0-40",TRUE,FALSE) -> FALSE | V48: =IF(S48=TRUE,IF(T48=TRUE,IF(U48=TRUE,R48,FALSE))) -> FALSE
B49: 1 | C49: Pasture > 20% Legume | D49: 4 | E49: 0-3 | F49: 0-5 | G49: 70 | H49: FALSE | I49: =IF('Seed Plan'!$D$54=4,TRUE,FALSE) -> FALSE | J49: =IF('Seed Plan'!$F$54="0-3",TRUE,IF('Seed Plan'!$G$54="0-5",TRUE,FALSE)) -> FALSE | K49: FALSE | N49: 1 | O49: Pasture > 20% Legume | P49: 3 | Q49: 0-40 | R49: 140 | S49: FALSE | T49: =IF('Seed Plan'!$D$59=3,TRUE,FALSE) -> FALSE | U49: =IF('Seed Plan'!$F$59="0-40",TRUE,FALSE) -> FALSE | V49: =IF(S49=TRUE,IF(T49=TRUE,IF(U49=TRUE,R49,FALSE))) -> FALSE
A50: Olsen | B50: 1 | C50: Pasture > 20% Legume | D50: 5 | E50: 0-3 | F50: 0-5 | G50: 90 | H50: FALSE | I50: =IF('Seed Plan'!$D$54=5,TRUE,FALSE) -> FALSE | J50: =IF('Seed Plan'!$F$54="0-3",TRUE,IF('Seed Plan'!$G$54="0-5",TRUE,FALSE)) -> FALSE | K50: FALSE | N50: 1 | O50: Pasture > 20% Legume | P50: 4 | Q50: 0-40 | R50: 185 | S50: FALSE | T50: =IF('Seed Plan'!$D$59=4,TRUE,FALSE) -> FALSE | U50: =IF('Seed Plan'!$F$59="0-40",TRUE,FALSE) -> FALSE | V50: FALSE
A51: 0-3 | B51: 1 | C51: Pasture > 20% Legume | D51: 6 | E51: 0-3 | F51: 0-5 | G51: 90 | H51: FALSE | I51: =IF('Seed Plan'!$D$54=6,TRUE,FALSE) -> FALSE | J51: =IF('Seed Plan'!$F$54="0-3",TRUE,IF('Seed Plan'!$G$54="0-5",TRUE,FALSE)) -> FALSE | K51: FALSE | M51: 0-40 | N51: 1 | O51: Pasture > 20% Legume | P51: 5 | Q51: 0-40 | R51: 230 | S51: FALSE | T51: =IF('Seed Plan'!$D$59=5,TRUE,FALSE) -> FALSE | U51: =IF('Seed Plan'!$F$59="0-40",TRUE,FALSE) -> FALSE | V51: FALSE
A52: 4-7 | B52: 1 | C52: Pasture > 20% Legume | D52: 7+ | E52: 0-3 | F52: 0-5 | G52: 90 | H52: FALSE | I52: =IF('Seed Plan'!$D$54="7+",TRUE,FALSE) -> FALSE | J52: =IF('Seed Plan'!$F$54="0-3",TRUE,IF('Seed Plan'!$G$54="0-5",TRUE,FALSE)) -> FALSE | K52: FALSE | M52: 41-80 | N52: 1 | O52: Pasture > 20% Legume | P52: 6 | Q52: 0-40 | R52: 230 | S52: FALSE | T52: =IF('Seed Plan'!$D$59=6,TRUE,FALSE) -> FALSE | U52: =IF('Seed Plan'!$F$59="0-40",TRUE,FALSE) -> FALSE | V52: FALSE
A53: 8-11 | B53: 1 | C53: Pasture > 20% Legume | D53: 2 | E53: 4-7 | F53: 6-10 | G53: 25 | H53: FALSE | I53: =IF('Seed Plan'!$D$54=2,TRUE,FALSE) -> FALSE | J53: =IF('Seed Plan'!$F$54="4-7",TRUE,IF('Seed Plan'!$G$54="6-10",TRUE,FALSE)) -> FALSE | K53: FALSE | M53: 81-120 | N53: 1 | O53: Pasture > 20% Legume | P53: 7+ | Q53: 0-40 | R53: 230 | S53: FALSE | T53: =IF('Seed Plan'!$D$59="7+",TRUE,FALSE) -> FALSE | U53: =IF('Seed Plan'!$F$59="0-40",TRUE,FALSE) -> FALSE | V53: FALSE
A54: 12-15 | B54: 1 | C54: Pasture > 20% Legume | D54: 3 | E54: 4-7 | F54: 6-10 | G54: 40 | H54: FALSE | I54: =IF('Seed Plan'!$D$54=3,TRUE,FALSE) -> FALSE | J54: =IF('Seed Plan'!$F$54="4-7",TRUE,IF('Seed Plan'!$G$54="6-10",TRUE,FALSE)) -> FALSE | K54: FALSE | M54: 121-160 | N54: 1 | O54: Pasture > 20% Legume | P54: 2 | Q54: 41-80 | R54: 65 | S54: FALSE | T54: =IF('Seed Plan'!$D$59=2,TRUE,FALSE) -> FALSE | U54: =IF('Seed Plan'!$F$59="41-80",TRUE,FALSE) -> FALSE | V54: FALSE
A55: 16+ | B55: 1 | C55: Pasture > 20% Legume | D55: 4 | E55: 4-7 | F55: 6-10 | G55: 50 | H55: FALSE | I55: =IF('Seed Plan'!$D$54=4,TRUE,FALSE) -> FALSE | J55: =IF('Seed Plan'!$F$54="4-7",TRUE,IF('Seed Plan'!$G$54="6-10",TRUE,FALSE)) -> FALSE | K55: FALSE | M55: 160+ | N55: 1 | O55: Pasture > 20% Legume | P55: 3 | Q55: 41-80 | R55: 100 | S55: FALSE | T55: =IF('Seed Plan'!$D$59=3,TRUE,FALSE) -> FALSE | U55: =IF('Seed Plan'!$F$59="41-80",TRUE,FALSE) -> FALSE | V55: FALSE
B56: 1 | C56: Pasture > 20% Legume | D56: 5 | E56: 4-7 | F56: 6-10 | G56: 65 | H56: FALSE | I56: =IF('Seed Plan'!$D$54=5,TRUE,FALSE) -> FALSE | J56: =IF('Seed Plan'!$F$54="4-7",TRUE,IF('Seed Plan'!$G$54="6-10",TRUE,FALSE)) -> FALSE | K56: FALSE | N56: 1 | O56: Pasture > 20% Legume | P56: 4 | Q56: 41-80 | R56: 135 | S56: FALSE | T56: =IF('Seed Plan'!$D$59=4,TRUE,FALSE) -> FALSE | U56: =IF('Seed Plan'!$F$59="41-80",TRUE,FALSE) -> FALSE | V56: FALSE
A57: Bray | B57: 1 | C57: Pasture > 20% Legume | D57: 6 | E57: 4-7 | F57: 6-10 | G57: 65 | H57: FALSE | I57: =IF('Seed Plan'!$D$54=6,TRUE,FALSE) -> FALSE | J57: =IF('Seed Plan'!$F$54="4-7",TRUE,IF('Seed Plan'!$G$54="6-10",TRUE,FALSE)) -> FALSE | K57: FALSE | N57: 1 | O57: Pasture > 20% Legume | P57: 5 | Q57: 41-80 | R57: 165 | S57: FALSE | T57: =IF('Seed Plan'!$D$59=5,TRUE,FALSE) -> FALSE | U57: =IF('Seed Plan'!$F$59="41-80",TRUE,FALSE) -> FALSE | V57: FALSE
A58: 0-5 | B58: 1 | C58: Pasture > 20% Legume | D58: 7+ | E58: 4-7 | F58: 6-10 | G58: 65 | H58: FALSE | I58: =IF('Seed Plan'!$D$54="7+",TRUE,FALSE) -> FALSE | J58: =IF('Seed Plan'!$F$54="4-7",TRUE,IF('Seed Plan'!$G$54="6-10",TRUE,FALSE)) -> FALSE | K58: FALSE | N58: 1 | O58: Pasture > 20% Legume | P58: 6 | Q58: 41-80 | R58: 165 | S58: FALSE | T58: =IF('Seed Plan'!$D$59=6,TRUE,FALSE) -> FALSE | U58: =IF('Seed Plan'!$F$59="41-80",TRUE,FALSE) -> FALSE | V58: FALSE
A59: 6-10 | B59: 1 | C59: Pasture > 20% Legume | D59: 2 | E59: 8-11 | F59: 11-15 | G59: 15 | H59: FALSE | I59: =IF('Seed Plan'!$D$54=2,TRUE,FALSE) -> FALSE | J59: =IF('Seed Plan'!$F$54="8-11",TRUE,IF('Seed Plan'!$G$54="11-15",TRUE,FALSE)) -> FALSE | K59: FALSE | N59: 1 | O59: Pasture > 20% Legume | P59: 7+ | Q59: 41-80 | R59: 165 | S59: FALSE | T59: =IF('Seed Plan'!$D$59="7+",TRUE,FALSE) -> FALSE | U59: =IF('Seed Plan'!$F$59="41-80",TRUE,FALSE) -> FALSE | V59: FALSE
A60: 11-15 | B60: 1 | C60: Pasture > 20% Legume | D60: 3 | E60: 8-11 | F60: 11-15 | G60: 25 | H60: FALSE | I60: =IF('Seed Plan'!$D$54=3,TRUE,FALSE) -> FALSE | J60: =IF('Seed Plan'!$F$54="8-11",TRUE,IF('Seed Plan'!$G$54="11-15",TRUE,FALSE)) -> FALSE | K60: FALSE | N60: 1 | O60: Pasture > 20% Legume | P60: 2 | Q60: 81-120 | R60: 40 | S60: FALSE | T60: =IF('Seed Plan'!$D$59=2,TRUE,FALSE) -> FALSE | U60: =IF('Seed Plan'!$F$59="81-120",TRUE,FALSE) -> FALSE | V60: FALSE
A61: 16-20 | B61: 1 | C61: Pasture > 20% Legume | D61: 4 | E61: 8-11 | F61: 11-15 | G61: 30 | H61: FALSE | I61: =IF('Seed Plan'!$D$54=4,TRUE,FALSE) -> FALSE | J61: =IF('Seed Plan'!$F$54="8-11",TRUE,IF('Seed Plan'!$G$54="11-15",TRUE,FALSE)) -> FALSE | K61: FALSE | N61: 1 | O61: Pasture > 20% Legume | P61: 3 | Q61: 81-120 | R61: 60 | S61: FALSE | T61: =IF('Seed Plan'!$D$59=3,TRUE,FALSE) -> FALSE | U61: =IF('Seed Plan'!$F$59="81-120",TRUE,FALSE) -> FALSE | V61: FALSE
A62: 21+ | B62: 1 | C62: Pasture > 20% Legume | D62: 5 | E62: 8-11 | F62: 11-15 | G62: 40 | H62: FALSE | I62: =IF('Seed Plan'!$D$54=5,TRUE,FALSE) -> FALSE | J62: =IF('Seed Plan'!$F$54="8-11",TRUE,IF('Seed Plan'!$G$54="11-15",TRUE,FALSE)) -> FALSE | K62: FALSE | N62: 1 | O62: Pasture > 20% Legume | P62: 4 | Q62: 81-120 | R62: 80 | S62: FALSE | T62: =IF('Seed Plan'!$D$59=4,TRUE,FALSE) -> FALSE | U62: =IF('Seed Plan'!$F$59="81-120",TRUE,FALSE) -> FALSE | V62: FALSE
B63: 1 | C63: Pasture > 20% Legume | D63: 6 | E63: 8-11 | F63: 11-15 | G63: 40 | H63: FALSE | I63: =IF('Seed Plan'!$D$54=6,TRUE,FALSE) -> FALSE | J63: =IF('Seed Plan'!$F$54="8-11",TRUE,IF('Seed Plan'!$G$54="11-15",TRUE,FALSE)) -> FALSE | K63: FALSE | N63: 1 | O63: Pasture > 20% Legume | P63: 5 | Q63: 81-120 | R63: 100 | S63: FALSE | T63: =IF('Seed Plan'!$D$59=5,TRUE,FALSE) -> FALSE | U63: =IF('Seed Plan'!$F$59="81-120",TRUE,FALSE) -> FALSE | V63: FALSE
B64: 1 | C64: Pasture > 20% Legume | D64: 7+ | E64: 8-11 | F64: 11-15 | G64: 40 | H64: FALSE | I64: =IF('Seed Plan'!$D$54="7+",TRUE,FALSE) -> FALSE | J64: =IF('Seed Plan'!$F$54="8-11",TRUE,IF('Seed Plan'!$G$54="11-15",TRUE,FALSE)) -> FALSE | K64: FALSE | N64: 1 | O64: Pasture > 20% Legume | P64: 6 | Q64: 81-120 | R64: 100 | S64: FALSE | T64: =IF('Seed Plan'!$D$59=6,TRUE,FALSE) -> FALSE | U64: =IF('Seed Plan'!$F$59="81-120",TRUE,FALSE) -> FALSE | V64: FALSE
B65: 1 | C65: Pasture > 20% Legume | D65: 2 | E65: 12-15 | F65: 16-20 | G65: 0 | H65: FALSE | I65: =IF('Seed Plan'!$D$54=2,TRUE,FALSE) -> FALSE | J65: =IF('Seed Plan'!$F$54="12-15",TRUE,IF('Seed Plan'!$G$54="16-20",TRUE,FALSE)) -> FALSE | K65: FALSE | N65: 1 | O65: Pasture > 20% Legume | P65: 7+ | Q65: 81-120 | R65: 100 | S65: FALSE | T65: =IF('Seed Plan'!$D$59="7+",TRUE,FALSE) -> FALSE | U65: =IF('Seed Plan'!$F$59="81-120",TRUE,FALSE) -> FALSE | V65: FALSE
B66: 1 | C66: Pasture > 20% Legume | D66: 3 | E66: 12-15 | F66: 16-20 | G66: 10 | H66: FALSE | I66: =IF('Seed Plan'!$D$54=3,TRUE,FALSE) -> FALSE | J66: =IF('Seed Plan'!$F$54="12-15",TRUE,IF('Seed Plan'!$G$54="16-20",TRUE,FALSE)) -> FALSE | K66: FALSE | N66: 1 | O66: Pasture > 20% Legume | P66: 2 | Q66: 121-160 | R66: 15 | S66: FALSE | T66: =IF('Seed Plan'!$D$59=2,TRUE,FALSE) -> FALSE | U66: =IF('Seed Plan'!$F$59="121-160",TRUE,FALSE) -> FALSE | V66: FALSE
B67: 1 | C67: Pasture > 20% Legume | D67: 4 | E67: 12-15 | F67: 16-20 | G67: 10 | H67: FALSE | I67: =IF('Seed Plan'!$D$54=4,TRUE,FALSE) -> FALSE | J67: =IF('Seed Plan'!$F$54="12-15",TRUE,IF('Seed Plan'!$G$54="16-20",TRUE,FALSE)) -> FALSE | K67: FALSE | N67: 1 | O67: Pasture > 20% Legume | P67: 3 | Q67: 121-160 | R67: 20 | S67: FALSE | T67: =IF('Seed Plan'!$D$59=3,TRUE,FALSE) -> FALSE | U67: =IF('Seed Plan'!$F$59="121-160",TRUE,FALSE) -> FALSE | V67: FALSE
B68: 1 | C68: Pasture > 20% Legume | D68: 5 | E68: 12-15 | F68: 16-20 | G68: 15 | H68: FALSE | I68: =IF('Seed Plan'!$D$54=5,TRUE,FALSE) -> FALSE | J68: =IF('Seed Plan'!$F$54="12-15",TRUE,IF('Seed Plan'!$G$54="16-20",TRUE,FALSE)) -> FALSE | K68: FALSE | N68: 1 | O68: Pasture > 20% Legume | P68: 4 | Q68: 121-160 | R68: 25 | S68: FALSE | T68: =IF('Seed Plan'!$D$59=4,TRUE,FALSE) -> FALSE | U68: =IF('Seed Plan'!$F$59="121-160",TRUE,FALSE) -> FALSE | V68: FALSE
B69: 1 | C69: Pasture > 20% Legume | D69: 6 | E69: 12-15 | F69: 16-20 | G69: 15 | H69: FALSE | I69: =IF('Seed Plan'!$D$54=6,TRUE,FALSE) -> FALSE | J69: =IF('Seed Plan'!$F$54="12-15",TRUE,IF('Seed Plan'!$G$54="16-20",TRUE,FALSE)) -> FALSE | K69: FALSE | N69: 1 | O69: Pasture > 20% Legume | P69: 5 | Q69: 121-160 | R69: 35 | S69: FALSE | T69: =IF('Seed Plan'!$D$59=5,TRUE,FALSE) -> FALSE | U69: =IF('Seed Plan'!$F$59="121-160",TRUE,FALSE) -> FALSE | V69: FALSE
B70: 1 | C70: Pasture > 20% Legume | D70: 7+ | E70: 12-15 | F70: 16-20 | G70: 15 | H70: FALSE | I70: =IF('Seed Plan'!$D$54="7+",TRUE,FALSE) -> FALSE | J70: =IF('Seed Plan'!$F$54="12-15",TRUE,IF('Seed Plan'!$G$54="16-20",TRUE,FALSE)) -> FALSE | K70: FALSE | N70: 1 | O70: Pasture > 20% Legume | P70: 6 | Q70: 121-160 | R70: 35 | S70: FALSE | T70: =IF('Seed Plan'!$D$59=6,TRUE,FALSE) -> FALSE | U70: =IF('Seed Plan'!$F$59="121-160",TRUE,FALSE) -> FALSE | V70: FALSE
B71: 1 | C71: Pasture > 20% Legume | D71: 2 | E71: 16+ | F71: 21+ | G71: 0 | H71: FALSE | I71: =IF('Seed Plan'!$D$54=2,TRUE,FALSE) -> FALSE | J71: =IF('Seed Plan'!$F$54="16+",TRUE,IF('Seed Plan'!$G$54="21+",TRUE,FALSE)) -> FALSE | K71: FALSE | N71: 1 | O71: Pasture > 20% Legume | P71: 7+ | Q71: 121-160 | R71: 35 | S71: FALSE | T71: =IF('Seed Plan'!$D$59="7+",TRUE,FALSE) -> FALSE | U71: =IF('Seed Plan'!$F$59="121-160",TRUE,FALSE) -> FALSE | V71: FALSE
B72: 1 | C72: Pasture > 20% Legume | D72: 3 | E72: 16+ | F72: 21+ | G72: 0 | H72: FALSE | I72: =IF('Seed Plan'!$D$54=3,TRUE,FALSE) -> FALSE | J72: =IF('Seed Plan'!$F$54="16+",TRUE,IF('Seed Plan'!$G$54="21+",TRUE,FALSE)) -> FALSE | K72: FALSE | N72: 1 | O72: Pasture > 20% Legume | P72: 2 | Q72: 160+ | R72: 0 | S72: FALSE | T72: =IF('Seed Plan'!$D$59=2,TRUE,FALSE) -> FALSE | U72: =IF('Seed Plan'!$F$59="161+",TRUE,FALSE) -> FALSE | V72: FALSE
B73: 1 | C73: Pasture > 20% Legume | D73: 4 | E73: 16+ | F73: 21+ | G73: 0 | H73: FALSE | I73: =IF('Seed Plan'!$D$54=4,TRUE,FALSE) -> FALSE | J73: =IF('Seed Plan'!$F$54="16+",TRUE,IF('Seed Plan'!$G$54="21+",TRUE,FALSE)) -> FALSE | K73: FALSE | N73: 1 | O73: Pasture > 20% Legume | P73: 3 | Q73: 160+ | R73: 0 | S73: FALSE | T73: =IF('Seed Plan'!$D$59=3,TRUE,FALSE) -> FALSE | U73: =IF('Seed Plan'!$F$59="161+",TRUE,FALSE) -> FALSE | V73: FALSE
B74: 1 | C74: Pasture > 20% Legume | D74: 5 | E74: 16+ | F74: 21+ | G74: 0 | H74: FALSE | I74: =IF('Seed Plan'!$D$54=5,TRUE,FALSE) -> FALSE | J74: =IF('Seed Plan'!$F$54="16+",TRUE,IF('Seed Plan'!$G$54="21+",TRUE,FALSE)) -> FALSE | K74: FALSE | N74: 1 | O74: Pasture > 20% Legume | P74: 4 | Q74: 160+ | R74: 0 | S74: FALSE | T74: =IF('Seed Plan'!$D$59=4,TRUE,FALSE) -> FALSE | U74: =IF('Seed Plan'!$F$59="161+",TRUE,FALSE) -> FALSE | V74: FALSE
B75: 1 | C75: Pasture > 20% Legume | D75: 6 | E75: 16+ | F75: 21+ | G75: 0 | H75: FALSE | I75: =IF('Seed Plan'!$D$54=6,TRUE,FALSE) -> FALSE | J75: =IF('Seed Plan'!$F$54="16+",TRUE,IF('Seed Plan'!$G$54="21+",TRUE,FALSE)) -> FALSE | K75: FALSE | N75: 1 | O75: Pasture > 20% Legume | P75: 5 | Q75: 160+ | R75: 0 | S75: FALSE | T75: =IF('Seed Plan'!$D$59=5,TRUE,FALSE) -> FALSE | U75: =IF('Seed Plan'!$F$59="161+",TRUE,FALSE) -> FALSE | V75: FALSE
B76: 1 | C76: Pasture > 20% Legume | D76: 7+ | E76: 16+ | F76: 21+ | G76: 0 | H76: FALSE | I76: =IF('Seed Plan'!$D$54="7+",TRUE,FALSE) -> FALSE | J76: =IF('Seed Plan'!$F$54="16+",TRUE,IF('Seed Plan'!$G$54="21+",TRUE,FALSE)) -> FALSE | K76: FALSE | N76: 1 | O76: Pasture > 20% Legume | P76: 6 | Q76: 160+ | R76: 0 | S76: FALSE | T76: =IF('Seed Plan'!$D$59=6,TRUE,FALSE) -> FALSE | U76: =IF('Seed Plan'!$F$59="161+",TRUE,FALSE) -> FALSE | V76: FALSE
B77: 2 | C77: Pasture < 20% Legume | D77: 2 | E77: 0-3 | F77: 0-5 | G77: 40 | H77: =IF($A$47=2,TRUE,FALSE) -> FALSE | I77: =IF('Seed Plan'!$D$54=2,TRUE,FALSE) -> FALSE | J77: =IF('Seed Plan'!$F$54="0-3",TRUE,IF('Seed Plan'!$G$54="0-5",TRUE,FALSE)) -> FALSE | K77: FALSE | N77: 1 | O77: Pasture > 20% Legume | P77: 7+ | Q77: 160+ | R77: 0 | S77: FALSE | T77: =IF('Seed Plan'!$D$59="7+",TRUE,FALSE) -> FALSE | U77: =IF('Seed Plan'!$F$59="161+",TRUE,FALSE) -> FALSE | V77: FALSE
B78: 2 | C78: Pasture < 20% Legume | D78: 3 | E78: 0-3 | F78: 0-5 | G78: 50 | H78: =IF($A$47=2,TRUE,FALSE) -> FALSE | I78: =IF('Seed Plan'!$D$54=3,TRUE,FALSE) -> FALSE | J78: =IF('Seed Plan'!$F$54="0-3",TRUE,IF('Seed Plan'!$G$54="0-5",TRUE,FALSE)) -> FALSE | K78: FALSE | N78: 2 | O78: Pasture < 20% Legume | P78: 2 | Q78: 0-40 | R78: 90 | S78: =IF($M$47=2,TRUE,FALSE) -> FALSE | T78: =IF('Seed Plan'!$D$59=2,TRUE,FALSE) -> FALSE | U78: =IF('Seed Plan'!$F$59="0-40",TRUE,FALSE) -> FALSE | V78: FALSE
B79: 2 | C79: Pasture < 20% Legume | D79: 4 | E79: 0-3 | F79: 0-5 | G79: 60 | H79: FALSE | I79: =IF('Seed Plan'!$D$54=4,TRUE,FALSE) -> FALSE | J79: =IF('Seed Plan'!$F$54="0-3",TRUE,IF('Seed Plan'!$G$54="0-5",TRUE,FALSE)) -> FALSE | K79: FALSE | N79: 2 | O79: Pasture < 20% Legume | P79: 3 | Q79: 0-40 | R79: 100 | S79: =IF($M$47=2,TRUE,FALSE) -> FALSE | T79: =IF('Seed Plan'!$D$59=3,TRUE,FALSE) -> FALSE | U79: =IF('Seed Plan'!$F$59="0-40",TRUE,FALSE) -> FALSE | V79: FALSE
B80: 2 | C80: Pasture < 20% Legume | D80: 5 | E80: 0-3 | F80: 0-5 | G80: 70 | H80: FALSE | I80: =IF('Seed Plan'!$D$54=5,TRUE,FALSE) -> FALSE | J80: =IF('Seed Plan'!$F$54="0-3",TRUE,IF('Seed Plan'!$G$54="0-5",TRUE,FALSE)) -> FALSE | K80: FALSE | N80: 2 | O80: Pasture < 20% Legume | P80: 4 | Q80: 0-40 | R80: 110 | S80: FALSE | T80: =IF('Seed Plan'!$D$59=4,TRUE,FALSE) -> FALSE | U80: =IF('Seed Plan'!$F$59="0-40",TRUE,FALSE) -> FALSE | V80: FALSE
B81: 2 | C81: Pasture < 20% Legume | D81: 6 | E81: 0-3 | F81: 0-5 | G81: 70 | H81: FALSE | I81: =IF('Seed Plan'!$D$54=6,TRUE,FALSE) -> FALSE | J81: =IF('Seed Plan'!$F$54="0-3",TRUE,IF('Seed Plan'!$G$54="0-5",TRUE,FALSE)) -> FALSE | K81: FALSE | N81: 2 | O81: Pasture < 20% Legume | P81: 5 | Q81: 0-40 | R81: 120 | S81: FALSE | T81: =IF('Seed Plan'!$D$59=5,TRUE,FALSE) -> FALSE | U81: =IF('Seed Plan'!$F$59="0-40",TRUE,FALSE) -> FALSE | V81: FALSE
B82: 2 | C82: Pasture < 20% Legume | D82: 7+ | E82: 0-3 | F82: 0-5 | G82: 70 | H82: FALSE | I82: =IF('Seed Plan'!$D$54="7+",TRUE,FALSE) -> FALSE | J82: =IF('Seed Plan'!$F$54="0-3",TRUE,IF('Seed Plan'!$G$54="0-5",TRUE,FALSE)) -> FALSE | K82: FALSE | N82: 2 | O82: Pasture < 20% Legume | P82: 6 | Q82: 0-40 | R82: 120 | S82: FALSE | T82: =IF('Seed Plan'!$D$59=6,TRUE,FALSE) -> FALSE | U82: =IF('Seed Plan'!$F$59="0-40",TRUE,FALSE) -> FALSE | V82: FALSE
B83: 2 | C83: Pasture < 20% Legume | D83: 2 | E83: 4-7 | F83: 6-10 | G83: 30 | H83: FALSE | I83: =IF('Seed Plan'!$D$54=2,TRUE,FALSE) -> FALSE | J83: =IF('Seed Plan'!$F$54="4-7",TRUE,IF('Seed Plan'!$G$54="6-10",TRUE,FALSE)) -> FALSE | K83: FALSE | N83: 2 | O83: Pasture < 20% Legume | P83: 7+ | Q83: 0-40 | R83: 120 | S83: FALSE | T83: =IF('Seed Plan'!$D$59="7+",TRUE,FALSE) -> FALSE | U83: =IF('Seed Plan'!$F$59="0-40",TRUE,FALSE) -> FALSE | V83: FALSE
B84: 2 | C84: Pasture < 20% Legume | D84: 3 | E84: 4-7 | F84: 6-10 | G84: 40 | H84: FALSE | I84: =IF('Seed Plan'!$D$54=3,TRUE,FALSE) -> FALSE | J84: =IF('Seed Plan'!$F$54="4-7",TRUE,IF('Seed Plan'!$G$54="6-10",TRUE,FALSE)) -> FALSE | K84: FALSE | N84: 2 | O84: Pasture < 20% Legume | P84: 2 | Q84: 41-80 | R84: 60 | S84: FALSE | T84: =IF('Seed Plan'!$D$59=2,TRUE,FALSE) -> FALSE | U84: =IF('Seed Plan'!$F$59="41-80",TRUE,FALSE) -> FALSE | V84: FALSE
B85: 2 | C85: Pasture < 20% Legume | D85: 4 | E85: 4-7 | F85: 6-10 | G85: 50 | H85: FALSE | I85: =IF('Seed Plan'!$D$54=4,TRUE,FALSE) -> FALSE | J85: =IF('Seed Plan'!$F$54="4-7",TRUE,IF('Seed Plan'!$G$54="6-10",TRUE,FALSE)) -> FALSE | K85: FALSE | N85: 2 | O85: Pasture < 20% Legume | P85: 3 | Q85: 41-80 | R85: 70 | S85: FALSE | T85: =IF('Seed Plan'!$D$59=3,TRUE,FALSE) -> FALSE | U85: =IF('Seed Plan'!$F$59="41-80",TRUE,FALSE) -> FALSE | V85: FALSE
B86: 2 | C86: Pasture < 20% Legume | D86: 5 | E86: 4-7 | F86: 6-10 | G86: 60 | H86: FALSE | I86: =IF('Seed Plan'!$D$54=5,TRUE,FALSE) -> FALSE | J86: =IF('Seed Plan'!$F$54="4-7",TRUE,IF('Seed Plan'!$G$54="6-10",TRUE,FALSE)) -> FALSE | K86: FALSE | N86: 2 | O86: Pasture < 20% Legume | P86: 4 | Q86: 41-80 | R86: 80 | S86: FALSE | T86: =IF('Seed Plan'!$D$59=4,TRUE,FALSE) -> FALSE | U86: =IF('Seed Plan'!$F$59="41-80",TRUE,FALSE) -> FALSE | V86: FALSE
B87: 2 | C87: Pasture < 20% Legume | D87: 6 | E87: 4-7 | F87: 6-10 | G87: 60 | H87: FALSE | I87: =IF('Seed Plan'!$D$54=6,TRUE,FALSE) -> FALSE | J87: =IF('Seed Plan'!$F$54="4-7",TRUE,IF('Seed Plan'!$G$54="6-10",TRUE,FALSE)) -> FALSE | K87: FALSE | N87: 2 | O87: Pasture < 20% Legume | P87: 5 | Q87: 41-80 | R87: 90 | S87: FALSE | T87: =IF('Seed Plan'!$D$59=5,TRUE,FALSE) -> FALSE | U87: =IF('Seed Plan'!$F$59="41-80",TRUE,FALSE) -> FALSE | V87: FALSE
B88: 2 | C88: Pasture < 20% Legume | D88: 7+ | E88: 4-7 | F88: 6-10 | G88: 60 | H88: FALSE | I88: =IF('Seed Plan'!$D$54="7+",TRUE,FALSE) -> FALSE | J88: =IF('Seed Plan'!$F$54="4-7",TRUE,IF('Seed Plan'!$G$54="6-10",TRUE,FALSE)) -> FALSE | K88: FALSE | N88: 2 | O88: Pasture < 20% Legume | P88: 6 | Q88: 41-80 | R88: 90 | S88: FALSE | T88: =IF('Seed Plan'!$D$59=6,TRUE,FALSE) -> FALSE | U88: =IF('Seed Plan'!$F$59="41-80",TRUE,FALSE) -> FALSE | V88: FALSE
B89: 2 | C89: Pasture < 20% Legume | D89: 2 | E89: 8-11 | F89: 11-15 | G89: 20 | H89: FALSE | I89: =IF('Seed Plan'!$D$54=2,TRUE,FALSE) -> FALSE | J89: =IF('Seed Plan'!$F$54="8-11",TRUE,IF('Seed Plan'!$G$54="11-15",TRUE,FALSE)) -> FALSE | K89: FALSE | N89: 2 | O89: Pasture < 20% Legume | P89: 7+ | Q89: 41-80 | R89: 90 | S89: FALSE | T89: =IF('Seed Plan'!$D$59="7+",TRUE,FALSE) -> FALSE | U89: =IF('Seed Plan'!$F$59="41-80",TRUE,FALSE) -> FALSE | V89: FALSE
B90: 2 | C90: Pasture < 20% Legume | D90: 3 | E90: 8-11 | F90: 11-15 | G90: 30 | H90: FALSE | I90: =IF('Seed Plan'!$D$54=3,TRUE,FALSE) -> FALSE | J90: =IF('Seed Plan'!$F$54="8-11",TRUE,IF('Seed Plan'!$G$54="11-15",TRUE,FALSE)) -> FALSE | K90: FALSE | N90: 2 | O90: Pasture < 20% Legume | P90: 2 | Q90: 81-120 | R90: 30 | S90: FALSE | T90: =IF('Seed Plan'!$D$59=2,TRUE,FALSE) -> FALSE | U90: =IF('Seed Plan'!$F$59="81-120",TRUE,FALSE) -> FALSE | V90: FALSE
B91: 2 | C91: Pasture < 20% Legume | D91: 4 | E91: 8-11 | F91: 11-15 | G91: 40 | H91: FALSE | I91: =IF('Seed Plan'!$D$54=4,TRUE,FALSE) -> FALSE | J91: =IF('Seed Plan'!$F$54="8-11",TRUE,IF('Seed Plan'!$G$54="11-15",TRUE,FALSE)) -> FALSE | K91: FALSE | N91: 2 | O91: Pasture < 20% Legume | P91: 3 | Q91: 81-120 | R91: 40 | S91: FALSE | T91: =IF('Seed Plan'!$D$59=3,TRUE,FALSE) -> FALSE | U91: =IF('Seed Plan'!$F$59="81-120",TRUE,FALSE) -> FALSE | V91: FALSE
B92: 2 | C92: Pasture < 20% Legume | D92: 5 | E92: 8-11 | F92: 11-15 | G92: 50 | H92: FALSE | I92: =IF('Seed Plan'!$D$54=5,TRUE,FALSE) -> FALSE | J92: =IF('Seed Plan'!$F$54="8-11",TRUE,IF('Seed Plan'!$G$54="11-15",TRUE,FALSE)) -> FALSE | K92: FALSE | N92: 2 | O92: Pasture < 20% Legume | P92: 4 | Q92: 81-120 | R92: 50 | S92: FALSE | T92: =IF('Seed Plan'!$D$59=4,TRUE,FALSE) -> FALSE | U92: =IF('Seed Plan'!$F$59="81-120",TRUE,FALSE) -> FALSE | V92: FALSE
B93: 2 | C93: Pasture < 20% Legume | D93: 6 | E93: 8-11 | F93: 11-15 | G93: 50 | H93: FALSE | I93: =IF('Seed Plan'!$D$54=6,TRUE,FALSE) -> FALSE | J93: =IF('Seed Plan'!$F$54="8-11",TRUE,IF('Seed Plan'!$G$54="11-15",TRUE,FALSE)) -> FALSE | K93: FALSE | N93: 2 | O93: Pasture < 20% Legume | P93: 5 | Q93: 81-120 | R93: 60 | S93: FALSE | T93: =IF('Seed Plan'!$D$59=5,TRUE,FALSE) -> FALSE | U93: =IF('Seed Plan'!$F$59="81-120",TRUE,FALSE) -> FALSE | V93: FALSE
B94: 2 | C94: Pasture < 20% Legume | D94: 7+ | E94: 8-11 | F94: 11-15 | G94: 50 | H94: FALSE | I94: =IF('Seed Plan'!$D$54="7+",TRUE,FALSE) -> FALSE | J94: =IF('Seed Plan'!$F$54="8-11",TRUE,IF('Seed Plan'!$G$54="11-15",TRUE,FALSE)) -> FALSE | K94: FALSE | N94: 2 | O94: Pasture < 20% Legume | P94: 6 | Q94: 81-120 | R94: 60 | S94: FALSE | T94: =IF('Seed Plan'!$D$59=6,TRUE,FALSE) -> FALSE | U94: =IF('Seed Plan'!$F$59="81-120",TRUE,FALSE) -> FALSE | V94: FALSE
B95: 2 | C95: Pasture < 20% Legume | D95: 2 | E95: 12-15 | F95: 16-20 | G95: 10 | H95: FALSE | I95: =IF('Seed Plan'!$D$54=2,TRUE,FALSE) -> FALSE | J95: =IF('Seed Plan'!$F$54="12-15",TRUE,IF('Seed Plan'!$G$54="16-20",TRUE,FALSE)) -> FALSE | K95: FALSE | N95: 2 | O95: Pasture < 20% Legume | P95: 7+ | Q95: 81-120 | R95: 60 | S95: FALSE | T95: =IF('Seed Plan'!$D$59="7+",TRUE,FALSE) -> FALSE | U95: =IF('Seed Plan'!$F$59="81-120",TRUE,FALSE) -> FALSE | V95: FALSE
B96: 2 | C96: Pasture < 20% Legume | D96: 3 | E96: 12-15 | F96: 16-20 | G96: 20 | H96: FALSE | I96: =IF('Seed Plan'!$D$54=3,TRUE,FALSE) -> FALSE | J96: =IF('Seed Plan'!$F$54="12-15",TRUE,IF('Seed Plan'!$G$54="16-20",TRUE,FALSE)) -> FALSE | K96: FALSE | N96: 2 | O96: Pasture < 20% Legume | P96: 2 | Q96: 121-160 | R96: 0 | S96: FALSE | T96: =IF('Seed Plan'!$D$59=2,TRUE,FALSE) -> FALSE | U96: =IF('Seed Plan'!$F$59="121-160",TRUE,FALSE) -> FALSE | V96: FALSE
B97: 2 | C97: Pasture < 20% Legume | D97: 4 | E97: 12-15 | F97: 16-20 | G97: 30 | H97: FALSE | I97: =IF('Seed Plan'!$D$54=4,TRUE,FALSE) -> FALSE | J97: =IF('Seed Plan'!$F$54="12-15",TRUE,IF('Seed Plan'!$G$54="16-20",TRUE,FALSE)) -> FALSE | K97: FALSE | N97: 2 | O97: Pasture < 20% Legume | P97: 3 | Q97: 121-160 | R97: 10 | S97: FALSE | T97: =IF('Seed Plan'!$D$59=3,TRUE,FALSE) -> FALSE | U97: =IF('Seed Plan'!$F$59="121-160",TRUE,FALSE) -> FALSE | V97: FALSE
B98: 2 | C98: Pasture < 20% Legume | D98: 5 | E98: 12-15 | F98: 16-20 | G98: 40 | H98: FALSE | I98: =IF('Seed Plan'!$D$54=5,TRUE,FALSE) -> FALSE | J98: =IF('Seed Plan'!$F$54="12-15",TRUE,IF('Seed Plan'!$G$54="16-20",TRUE,FALSE)) -> FALSE | K98: FALSE | N98: 2 | O98: Pasture < 20% Legume | P98: 4 | Q98: 121-160 | R98: 20 | S98: FALSE | T98: =IF('Seed Plan'!$D$59=4,TRUE,FALSE) -> FALSE | U98: =IF('Seed Plan'!$F$59="121-160",TRUE,FALSE) -> FALSE | V98: FALSE
B99: 2 | C99: Pasture < 20% Legume | D99: 6 | E99: 12-15 | F99: 16-20 | G99: 40 | H99: FALSE | I99: =IF('Seed Plan'!$D$54=6,TRUE,FALSE) -> FALSE | J99: =IF('Seed Plan'!$F$54="12-15",TRUE,IF('Seed Plan'!$G$54="16-20",TRUE,FALSE)) -> FALSE | K99: FALSE | N99: 2 | O99: Pasture < 20% Legume | P99: 5 | Q99: 121-160 | R99: 30 | S99: FALSE | T99: =IF('Seed Plan'!$D$59=5,TRUE,FALSE) -> FALSE | U99: =IF('Seed Plan'!$F$59="121-160",TRUE,FALSE) -> FALSE | V99: FALSE
B100: 2 | C100: Pasture < 20% Legume | D100: 7+ | E100: 12-15 | F100: 16-20 | G100: 40 | H100: FALSE | I100: =IF('Seed Plan'!$D$54="7+",TRUE,FALSE) -> FALSE | J100: =IF('Seed Plan'!$F$54="12-15",TRUE,IF('Seed Plan'!$G$54="16-20",TRUE,FALSE)) -> FALSE | K100: FALSE | N100: 2 | O100: Pasture < 20% Legume | P100: 6 | Q100: 121-160 | R100: 30 | S100: FALSE | T100: =IF('Seed Plan'!$D$59=6,TRUE,FALSE) -> FALSE | U100: =IF('Seed Plan'!$F$59="121-160",TRUE,FALSE) -> FALSE | V100: FALSE
B101: 2 | C101: Pasture < 20% Legume | D101: 2 | E101: 16+ | F101: 21+ | G101: 0 | H101: FALSE | I101: =IF('Seed Plan'!$D$54=2,TRUE,FALSE) -> FALSE | J101: =IF('Seed Plan'!$F$54="16+",TRUE,IF('Seed Plan'!$G$54="21+",TRUE,FALSE)) -> FALSE | K101: FALSE | N101: 2 | O101: Pasture < 20% Legume | P101: 7+ | Q101: 121-160 | R101: 30 | S101: FALSE | T101: =IF('Seed Plan'!$D$59="7+",TRUE,FALSE) -> FALSE | U101: =IF('Seed Plan'!$F$59="121-160",TRUE,FALSE) -> FALSE | V101: FALSE
B102: 2 | C102: Pasture < 20% Legume | D102: 3 | E102: 16+ | F102: 21+ | G102: 0 | H102: FALSE | I102: =IF('Seed Plan'!$D$54=3,TRUE,FALSE) -> FALSE | J102: =IF('Seed Plan'!$F$54="16+",TRUE,IF('Seed Plan'!$G$54="21+",TRUE,FALSE)) -> FALSE | K102: FALSE | N102: 2 | O102: Pasture < 20% Legume | P102: 2 | Q102: 160+ | R102: 0 | S102: FALSE | T102: =IF('Seed Plan'!$D$59=2,TRUE,FALSE) -> FALSE | U102: =IF('Seed Plan'!$F$59="161+",TRUE,FALSE) -> FALSE | V102: FALSE
B103: 2 | C103: Pasture < 20% Legume | D103: 4 | E103: 16+ | F103: 21+ | G103: 0 | H103: FALSE | I103: =IF('Seed Plan'!$D$54=4,TRUE,FALSE) -> FALSE | J103: =IF('Seed Plan'!$F$54="16+",TRUE,IF('Seed Plan'!$G$54="21+",TRUE,FALSE)) -> FALSE | K103: FALSE | N103: 2 | O103: Pasture < 20% Legume | P103: 3 | Q103: 160+ | R103: 0 | S103: FALSE | T103: =IF('Seed Plan'!$D$59=3,TRUE,FALSE) -> FALSE | U103: =IF('Seed Plan'!$F$59="161+",TRUE,FALSE) -> FALSE | V103: FALSE
B104: 2 | C104: Pasture < 20% Legume | D104: 5 | E104: 16+ | F104: 21+ | G104: 0 | H104: FALSE | I104: =IF('Seed Plan'!$D$54=5,TRUE,FALSE) -> FALSE | J104: =IF('Seed Plan'!$F$54="16+",TRUE,IF('Seed Plan'!$G$54="21+",TRUE,FALSE)) -> FALSE | K104: FALSE | N104: 2 | O104: Pasture < 20% Legume | P104: 4 | Q104: 160+ | R104: 0 | S104: FALSE | T104: =IF('Seed Plan'!$D$59=4,TRUE,FALSE) -> FALSE | U104: =IF('Seed Plan'!$F$59="161+",TRUE,FALSE) -> FALSE | V104: FALSE
B105: 2 | C105: Pasture < 20% Legume | D105: 6 | E105: 16+ | F105: 21+ | G105: 0 | H105: FALSE | I105: =IF('Seed Plan'!$D$54=6,TRUE,FALSE) -> FALSE | J105: =IF('Seed Plan'!$F$54="16+",TRUE,IF('Seed Plan'!$G$54="21+",TRUE,FALSE)) -> FALSE | K105: FALSE | N105: 2 | O105: Pasture < 20% Legume | P105: 5 | Q105: 160+ | R105: 0 | S105: FALSE | T105: =IF('Seed Plan'!$D$59=5,TRUE,FALSE) -> FALSE | U105: =IF('Seed Plan'!$F$59="161+",TRUE,FALSE) -> FALSE | V105: FALSE
B106: 2 | C106: Pasture < 20% Legume | D106: 7+ | E106: 16+ | F106: 21+ | G106: 0 | H106: FALSE | I106: =IF('Seed Plan'!$D$54="7+",TRUE,FALSE) -> FALSE | J106: =IF('Seed Plan'!$F$54="16+",TRUE,IF('Seed Plan'!$G$54="21+",TRUE,FALSE)) -> FALSE | K106: FALSE | N106: 2 | O106: Pasture < 20% Legume | P106: 6 | Q106: 160+ | R106: 0 | S106: FALSE | T106: =IF('Seed Plan'!$D$59=6,TRUE,FALSE) -> FALSE | U106: =IF('Seed Plan'!$F$59="161+",TRUE,FALSE) -> FALSE | V106: FALSE
B107: 3 | C107: Alfalfa Hay | D107: 2 | E107: 0-3 | F107: 0-5 | G107: 45 | H107: =IF($A$47=3,TRUE,FALSE) -> FALSE | I107: =IF('Seed Plan'!$D$54=2,TRUE,FALSE) -> FALSE | J107: =IF('Seed Plan'!$F$54="0-3",TRUE,IF('Seed Plan'!$G$54="0-5",TRUE,FALSE)) -> FALSE | K107: FALSE | N107: 2 | O107: Pasture < 20% Legume | P107: 7+ | Q107: 160+ | R107: 0 | S107: FALSE | T107: =IF('Seed Plan'!$D$59="7+",TRUE,FALSE) -> FALSE | U107: =IF('Seed Plan'!$F$59="161+",TRUE,FALSE) -> FALSE | V107: FALSE
B108: 3 | C108: Alfalfa Hay | D108: 3 | E108: 0-3 | F108: 0-5 | G108: 65 | H108: =IF($A$47=3,TRUE,FALSE) -> FALSE | I108: =IF('Seed Plan'!$D$54=3,TRUE,FALSE) -> FALSE | J108: =IF('Seed Plan'!$F$54="0-3",TRUE,IF('Seed Plan'!$G$54="0-5",TRUE,FALSE)) -> FALSE | K108: FALSE | N108: 3 | O108: Alfalfa Hay | P108: 2 | Q108: 0-40 | R108: 145 | S108: =IF($M$47=3,TRUE,FALSE) -> FALSE | T108: =IF('Seed Plan'!$D$59=2,TRUE,FALSE) -> FALSE | U108: =IF('Seed Plan'!$F$59="0-40",TRUE,FALSE) -> FALSE | V108: FALSE
B109: 3 | C109: Alfalfa Hay | D109: 4 | E109: 0-3 | F109: 0-5 | G109: 80 | H109: FALSE | I109: =IF('Seed Plan'!$D$54=4,TRUE,FALSE) -> FALSE | J109: =IF('Seed Plan'!$F$54="0-3",TRUE,IF('Seed Plan'!$G$54="0-5",TRUE,FALSE)) -> FALSE | K109: FALSE | N109: 3 | O109: Alfalfa Hay | P109: 3 | Q109: 0-40 | R109: 190 | S109: =IF($M$47=3,TRUE,FALSE) -> FALSE | T109: =IF('Seed Plan'!$D$59=3,TRUE,FALSE) -> FALSE | U109: =IF('Seed Plan'!$F$59="0-40",TRUE,FALSE) -> FALSE | V109: FALSE
B110: 3 | C110: Alfalfa Hay | D110: 5 | E110: 0-3 | F110: 0-5 | G110: 95 | H110: FALSE | I110: =IF('Seed Plan'!$D$54=5,TRUE,FALSE) -> FALSE | J110: =IF('Seed Plan'!$F$54="0-3",TRUE,IF('Seed Plan'!$G$54="0-5",TRUE,FALSE)) -> FALSE | K110: FALSE | N110: 3 | O110: Alfalfa Hay | P110: 4 | Q110: 0-40 | R110: 240 | S110: FALSE | T110: =IF('Seed Plan'!$D$59=4,TRUE,FALSE) -> FALSE | U110: =IF('Seed Plan'!$F$59="0-40",TRUE,FALSE) -> FALSE | V110: FALSE
B111: 3 | C111: Alfalfa Hay | D111: 6 | E111: 0-3 | F111: 0-5 | G111: 110 | H111: FALSE | I111: =IF('Seed Plan'!$D$54=6,TRUE,FALSE) -> FALSE | J111: =IF('Seed Plan'!$F$54="0-3",TRUE,IF('Seed Plan'!$G$54="0-5",TRUE,FALSE)) -> FALSE | K111: FALSE | N111: 3 | O111: Alfalfa Hay | P111: 5 | Q111: 0-40 | R111: 290 | S111: FALSE | T111: =IF('Seed Plan'!$D$59=5,TRUE,FALSE) -> FALSE | U111: =IF('Seed Plan'!$F$59="0-40",TRUE,FALSE) -> FALSE | V111: FALSE
B112: 3 | C112: Alfalfa Hay | D112: 7+ | E112: 0-3 | F112: 0-5 | G112: 125 | H112: FALSE | I112: =IF('Seed Plan'!$D$54="7+",TRUE,FALSE) -> FALSE | J112: =IF('Seed Plan'!$F$54="0-3",TRUE,IF('Seed Plan'!$G$54="0-5",TRUE,FALSE)) -> FALSE | K112: =IF(H112=TRUE,IF(I112=TRUE,IF(J112=TRUE,G112,FALSE))) -> FALSE | N112: 3 | O112: Alfalfa Hay | P112: 6 | Q112: 0-40 | R112: 335 | S112: FALSE | T112: =IF('Seed Plan'!$D$59=6,TRUE,FALSE) -> FALSE | U112: =IF('Seed Plan'!$F$59="0-40",TRUE,FALSE) -> FALSE | V112: FALSE
B113: 3 | C113: Alfalfa Hay | D113: 2 | E113: 4-7 | F113: 6-10 | G113: 35 | H113: FALSE | I113: =IF('Seed Plan'!$D$54=2,TRUE,FALSE) -> FALSE | J113: =IF('Seed Plan'!$F$54="4-7",TRUE,IF('Seed Plan'!$G$54="6-10",TRUE,FALSE)) -> FALSE | K113: FALSE | N113: 3 | O113: Alfalfa Hay | P113: 7+ | Q113: 0-40 | R113: 380 | S113: FALSE | T113: =IF('Seed Plan'!$D$59="7+",TRUE,FALSE) -> FALSE | U113: =IF('Seed Plan'!$F$59="0-40",TRUE,FALSE) -> FALSE | V113: =IF(S113=TRUE,IF(T113=TRUE,IF(U113=TRUE,R113,FALSE))) -> FALSE
B114: 3 | C114: Alfalfa Hay | D114: 3 | E114: 4-7 | F114: 6-10 | G114: 45 | H114: FALSE | I114: =IF('Seed Plan'!$D$54=3,TRUE,FALSE) -> FALSE | J114: =IF('Seed Plan'!$F$54="4-7",TRUE,IF('Seed Plan'!$G$54="6-10",TRUE,FALSE)) -> FALSE | K114: FALSE | N114: 3 | O114: Alfalfa Hay | P114: 2 | Q114: 41-80 | R114: 100 | S114: FALSE | T114: =IF('Seed Plan'!$D$59=2,TRUE,FALSE) -> FALSE | U114: =IF('Seed Plan'!$F$59="41-80",TRUE,FALSE) -> FALSE | V114: FALSE
B115: 3 | C115: Alfalfa Hay | D115: 4 | E115: 4-7 | F115: 6-10 | G115: 55 | H115: FALSE | I115: =IF('Seed Plan'!$D$54=4,TRUE,FALSE) -> FALSE | J115: =IF('Seed Plan'!$F$54="4-7",TRUE,IF('Seed Plan'!$G$54="6-10",TRUE,FALSE)) -> FALSE | K115: FALSE | N115: 3 | O115: Alfalfa Hay | P115: 3 | Q115: 41-80 | R115: 130 | S115: FALSE | T115: =IF('Seed Plan'!$D$59=3,TRUE,FALSE) -> FALSE | U115: =IF('Seed Plan'!$F$59="41-80",TRUE,FALSE) -> FALSE | V115: FALSE
B116: 3 | C116: Alfalfa Hay | D116: 5 | E116: 4-7 | F116: 6-10 | G116: 65 | H116: FALSE | I116: =IF('Seed Plan'!$D$54=5,TRUE,FALSE) -> FALSE | J116: =IF('Seed Plan'!$F$54="4-7",TRUE,IF('Seed Plan'!$G$54="6-10",TRUE,FALSE)) -> FALSE | K116: FALSE | N116: 3 | O116: Alfalfa Hay | P116: 4 | Q116: 41-80 | R116: 165 | S116: FALSE | T116: =IF('Seed Plan'!$D$59=4,TRUE,FALSE) -> FALSE | U116: =IF('Seed Plan'!$F$59="41-80",TRUE,FALSE) -> FALSE | V116: FALSE
B117: 3 | C117: Alfalfa Hay | D117: 6 | E117: 4-7 | F117: 6-10 | G117: 80 | H117: FALSE | I117: =IF('Seed Plan'!$D$54=6,TRUE,FALSE) -> FALSE | J117: =IF('Seed Plan'!$F$54="4-7",TRUE,IF('Seed Plan'!$G$54="6-10",TRUE,FALSE)) -> FALSE | K117: FALSE | N117: 3 | O117: Alfalfa Hay | P117: 5 | Q117: 41-80 | R117: 195 | S117: FALSE | T117: =IF('Seed Plan'!$D$59=5,TRUE,FALSE) -> FALSE | U117: =IF('Seed Plan'!$F$59="41-80",TRUE,FALSE) -> FALSE | V117: FALSE
B118: 3 | C118: Alfalfa Hay | D118: 7+ | E118: 4-7 | F118: 6-10 | G118: 90 | H118: FALSE | I118: =IF('Seed Plan'!$D$54="7+",TRUE,FALSE) -> FALSE | J118: =IF('Seed Plan'!$F$54="4-7",TRUE,IF('Seed Plan'!$G$54="6-10",TRUE,FALSE)) -> FALSE | K118: FALSE | N118: 3 | O118: Alfalfa Hay | P118: 6 | Q118: 41-80 | R118: 230 | S118: FALSE | T118: =IF('Seed Plan'!$D$59=6,TRUE,FALSE) -> FALSE | U118: =IF('Seed Plan'!$F$59="41-80",TRUE,FALSE) -> FALSE | V118: FALSE
B119: 3 | C119: Alfalfa Hay | D119: 2 | E119: 8-11 | F119: 11-15 | G119: 20 | H119: FALSE | I119: =IF('Seed Plan'!$D$54=2,TRUE,FALSE) -> FALSE | J119: =IF('Seed Plan'!$F$54="8-11",TRUE,IF('Seed Plan'!$G$54="11-15",TRUE,FALSE)) -> FALSE | K119: FALSE | N119: 3 | O119: Alfalfa Hay | P119: 7+ | Q119: 41-80 | R119: 265 | S119: FALSE | T119: =IF('Seed Plan'!$D$59="7+",TRUE,FALSE) -> FALSE | U119: =IF('Seed Plan'!$F$59="41-80",TRUE,FALSE) -> FALSE | V119: FALSE
B120: 3 | C120: Alfalfa Hay | D120: 3 | E120: 8-11 | F120: 11-15 | G120: 25 | H120: FALSE | I120: =IF('Seed Plan'!$D$54=3,TRUE,FALSE) -> FALSE | J120: =IF('Seed Plan'!$F$54="8-11",TRUE,IF('Seed Plan'!$G$54="11-15",TRUE,FALSE)) -> FALSE | K120: FALSE | N120: 3 | O120: Alfalfa Hay | P120: 2 | Q120: 81-120 | R120: 55 | S120: FALSE | T120: =IF('Seed Plan'!$D$59=2,TRUE,FALSE) -> FALSE | U120: =IF('Seed Plan'!$F$59="81-120",TRUE,FALSE) -> FALSE | V120: FALSE
B121: 3 | C121: Alfalfa Hay | D121: 4 | E121: 8-11 | F121: 11-15 | G121: 30 | H121: FALSE | I121: =IF('Seed Plan'!$D$54=4,TRUE,FALSE) -> FALSE | J121: =IF('Seed Plan'!$F$54="8-11",TRUE,IF('Seed Plan'!$G$54="11-15",TRUE,FALSE)) -> FALSE | K121: FALSE | N121: 3 | O121: Alfalfa Hay | P121: 3 | Q121: 81-120 | R121: 70 | S121: FALSE | T121: =IF('Seed Plan'!$D$59=3,TRUE,FALSE) -> FALSE | U121: =IF('Seed Plan'!$F$59="81-120",TRUE,FALSE) -> FALSE | V121: FALSE
B122: 3 | C122: Alfalfa Hay | D122: 5 | E122: 8-11 | F122: 11-15 | G122: 40 | H122: FALSE | I122: =IF('Seed Plan'!$D$54=5,TRUE,FALSE) -> FALSE | J122: =IF('Seed Plan'!$F$54="8-11",TRUE,IF('Seed Plan'!$G$54="11-15",TRUE,FALSE)) -> FALSE | K122: FALSE | N122: 3 | O122: Alfalfa Hay | P122: 4 | Q122: 81-120 | R122: 90 | S122: FALSE | T122: =IF('Seed Plan'!$D$59=4,TRUE,FALSE) -> FALSE | U122: =IF('Seed Plan'!$F$59="81-120",TRUE,FALSE) -> FALSE | V122: FALSE
B123: 3 | C123: Alfalfa Hay | D123: 6 | E123: 8-11 | F123: 11-15 | G123: 45 | H123: FALSE | I123: =IF('Seed Plan'!$D$54=6,TRUE,FALSE) -> FALSE | J123: =IF('Seed Plan'!$F$54="8-11",TRUE,IF('Seed Plan'!$G$54="11-15",TRUE,FALSE)) -> FALSE | K123: FALSE | N123: 3 | O123: Alfalfa Hay | P123: 5 | Q123: 81-120 | R123: 105 | S123: FALSE | T123: =IF('Seed Plan'!$D$59=5,TRUE,FALSE) -> FALSE | U123: =IF('Seed Plan'!$F$59="81-120",TRUE,FALSE) -> FALSE | V123: FALSE
B124: 3 | C124: Alfalfa Hay | D124: 7+ | E124: 8-11 | F124: 11-15 | G124: 55 | H124: FALSE | I124: =IF('Seed Plan'!$D$54="7+",TRUE,FALSE) -> FALSE | J124: =IF('Seed Plan'!$F$54="8-11",TRUE,IF('Seed Plan'!$G$54="11-15",TRUE,FALSE)) -> FALSE | K124: FALSE | N124: 3 | O124: Alfalfa Hay | P124: 6 | Q124: 81-120 | R124: 125 | S124: FALSE | T124: =IF('Seed Plan'!$D$59=6,TRUE,FALSE) -> FALSE | U124: =IF('Seed Plan'!$F$59="81-120",TRUE,FALSE) -> FALSE | V124: FALSE
B125: 3 | C125: Alfalfa Hay | D125: 2 | E125: 12-15 | F125: 16-20 | G125: 10 | H125: FALSE | I125: =IF('Seed Plan'!$D$54=2,TRUE,FALSE) -> FALSE | J125: =IF('Seed Plan'!$F$54="12-15",TRUE,IF('Seed Plan'!$G$54="16-20",TRUE,FALSE)) -> FALSE | K125: FALSE | N125: 3 | O125: Alfalfa Hay | P125: 7+ | Q125: 81-120 | R125: 145 | S125: FALSE | T125: =IF('Seed Plan'!$D$59="7+",TRUE,FALSE) -> FALSE | U125: =IF('Seed Plan'!$F$59="81-120",TRUE,FALSE) -> FALSE | V125: FALSE
B126: 3 | C126: Alfalfa Hay | D126: 3 | E126: 12-15 | F126: 16-20 | G126: 10 | H126: FALSE | I126: =IF('Seed Plan'!$D$54=3,TRUE,FALSE) -> FALSE | J126: =IF('Seed Plan'!$F$54="12-15",TRUE,IF('Seed Plan'!$G$54="16-20",TRUE,FALSE)) -> FALSE | K126: FALSE | N126: 3 | O126: Alfalfa Hay | P126: 2 | Q126: 121-160 | R126: 10 | S126: FALSE | T126: =IF('Seed Plan'!$D$59=2,TRUE,FALSE) -> FALSE | U126: =IF('Seed Plan'!$F$59="121-160",TRUE,FALSE) -> FALSE | V126: FALSE
B127: 3 | C127: Alfalfa Hay | D127: 4 | E127: 12-15 | F127: 16-20 | G127: 15 | H127: FALSE | I127: =IF('Seed Plan'!$D$54=4,TRUE,FALSE) -> FALSE | J127: =IF('Seed Plan'!$F$54="12-15",TRUE,IF('Seed Plan'!$G$54="16-20",TRUE,FALSE)) -> FALSE | K127: FALSE | N127: 3 | O127: Alfalfa Hay | P127: 3 | Q127: 121-160 | R127: 10 | S127: FALSE | T127: =IF('Seed Plan'!$D$59=3,TRUE,FALSE) -> FALSE | U127: =IF('Seed Plan'!$F$59="121-160",TRUE,FALSE) -> FALSE | V127: FALSE
B128: 3 | C128: Alfalfa Hay | D128: 5 | E128: 12-15 | F128: 16-20 | G128: 15 | H128: FALSE | I128: =IF('Seed Plan'!$D$54=5,TRUE,FALSE) -> FALSE | J128: =IF('Seed Plan'!$F$54="12-15",TRUE,IF('Seed Plan'!$G$54="16-20",TRUE,FALSE)) -> FALSE | K128: FALSE | N128: 3 | O128: Alfalfa Hay | P128: 4 | Q128: 121-160 | R128: 15 | S128: FALSE | T128: =IF('Seed Plan'!$D$59=4,TRUE,FALSE) -> FALSE | U128: =IF('Seed Plan'!$F$59="121-160",TRUE,FALSE) -> FALSE | V128: FALSE
B129: 3 | C129: Alfalfa Hay | D129: 6 | E129: 12-15 | F129: 16-20 | G129: 20 | H129: FALSE | I129: =IF('Seed Plan'!$D$54=6,TRUE,FALSE) -> FALSE | J129: =IF('Seed Plan'!$F$54="12-15",TRUE,IF('Seed Plan'!$G$54="16-20",TRUE,FALSE)) -> FALSE | K129: FALSE | N129: 3 | O129: Alfalfa Hay | P129: 5 | Q129: 121-160 | R129: 15 | S129: FALSE | T129: =IF('Seed Plan'!$D$59=5,TRUE,FALSE) -> FALSE | U129: =IF('Seed Plan'!$F$59="121-160",TRUE,FALSE) -> FALSE | V129: FALSE
B130: 3 | C130: Alfalfa Hay | D130: 7+ | E130: 12-15 | F130: 16-20 | G130: 25 | H130: FALSE | I130: =IF('Seed Plan'!$D$54="7+",TRUE,FALSE) -> FALSE | J130: =IF('Seed Plan'!$F$54="12-15",TRUE,IF('Seed Plan'!$G$54="16-20",TRUE,FALSE)) -> FALSE | K130: FALSE | N130: 3 | O130: Alfalfa Hay | P130: 6 | Q130: 121-160 | R130: 20 | S130: FALSE | T130: =IF('Seed Plan'!$D$59=6,TRUE,FALSE) -> FALSE | U130: =IF('Seed Plan'!$F$59="121-160",TRUE,FALSE) -> FALSE | V130: FALSE
B131: 3 | C131: Alfalfa Hay | D131: 2 | E131: 16+ | F131: 21+ | G131: 0 | H131: FALSE | I131: =IF('Seed Plan'!$D$54=2,TRUE,FALSE) -> FALSE | J131: =IF('Seed Plan'!$F$54="16+",TRUE,IF('Seed Plan'!$G$54="21+",TRUE,FALSE)) -> FALSE | K131: FALSE | N131: 3 | O131: Alfalfa Hay | P131: 7+ | Q131: 121-160 | R131: 20 | S131: FALSE | T131: =IF('Seed Plan'!$D$59="7+",TRUE,FALSE) -> FALSE | U131: =IF('Seed Plan'!$F$59="121-160",TRUE,FALSE) -> FALSE | V131: FALSE
B132: 3 | C132: Alfalfa Hay | D132: 3 | E132: 16+ | F132: 21+ | G132: 0 | H132: FALSE | I132: =IF('Seed Plan'!$D$54=3,TRUE,FALSE) -> FALSE | J132: =IF('Seed Plan'!$F$54="16+",TRUE,IF('Seed Plan'!$G$54="21+",TRUE,FALSE)) -> FALSE | K132: FALSE | N132: 3 | O132: Alfalfa Hay | P132: 2 | Q132: 160+ | R132: 0 | S132: FALSE | T132: =IF('Seed Plan'!$D$59=2,TRUE,FALSE) -> FALSE | U132: =IF('Seed Plan'!$F$59="161+",TRUE,FALSE) -> FALSE | V132: FALSE
B133: 3 | C133: Alfalfa Hay | D133: 4 | E133: 16+ | F133: 21+ | G133: 0 | H133: FALSE | I133: =IF('Seed Plan'!$D$54=4,TRUE,FALSE) -> FALSE | J133: =IF('Seed Plan'!$F$54="16+",TRUE,IF('Seed Plan'!$G$54="21+",TRUE,FALSE)) -> FALSE | K133: FALSE | N133: 3 | O133: Alfalfa Hay | P133: 3 | Q133: 160+ | R133: 0 | S133: FALSE | T133: =IF('Seed Plan'!$D$59=3,TRUE,FALSE) -> FALSE | U133: =IF('Seed Plan'!$F$59="161+",TRUE,FALSE) -> FALSE | V133: FALSE
B134: 3 | C134: Alfalfa Hay | D134: 5 | E134: 16+ | F134: 21+ | G134: 0 | H134: FALSE | I134: =IF('Seed Plan'!$D$54=5,TRUE,FALSE) -> FALSE | J134: =IF('Seed Plan'!$F$54="16+",TRUE,IF('Seed Plan'!$G$54="21+",TRUE,FALSE)) -> FALSE | K134: FALSE | N134: 3 | O134: Alfalfa Hay | P134: 4 | Q134: 160+ | R134: 0 | S134: FALSE | T134: =IF('Seed Plan'!$D$59=4,TRUE,FALSE) -> FALSE | U134: =IF('Seed Plan'!$F$59="161+",TRUE,FALSE) -> FALSE | V134: FALSE
B135: 3 | C135: Alfalfa Hay | D135: 6 | E135: 16+ | F135: 21+ | G135: 0 | H135: FALSE | I135: =IF('Seed Plan'!$D$54=6,TRUE,FALSE) -> FALSE | J135: =IF('Seed Plan'!$F$54="16+",TRUE,IF('Seed Plan'!$G$54="21+",TRUE,FALSE)) -> FALSE | K135: FALSE | N135: 3 | O135: Alfalfa Hay | P135: 5 | Q135: 160+ | R135: 0 | S135: FALSE | T135: =IF('Seed Plan'!$D$59=5,TRUE,FALSE) -> FALSE | U135: =IF('Seed Plan'!$F$59="161+",TRUE,FALSE) -> FALSE | V135: FALSE
B136: 3 | C136: Alfalfa Hay | D136: 7+ | E136: 16+ | F136: 21+ | G136: 0 | H136: FALSE | I136: =IF('Seed Plan'!$D$54="7+",TRUE,FALSE) -> FALSE | J136: =IF('Seed Plan'!$F$54="16+",TRUE,IF('Seed Plan'!$G$54="21+",TRUE,FALSE)) -> FALSE | K136: FALSE | N136: 3 | O136: Alfalfa Hay | P136: 6 | Q136: 160+ | R136: 0 | S136: FALSE | T136: =IF('Seed Plan'!$D$59=6,TRUE,FALSE) -> FALSE | U136: =IF('Seed Plan'!$F$59="161+",TRUE,FALSE) -> FALSE | V136: FALSE
B137: 4 | C137: Hay - Other Legume | D137: 2 | E137: 0-3 | F137: 0-5 | G137: 35 | H137: =IF($A$47=4,TRUE,FALSE) -> FALSE | I137: =IF('Seed Plan'!$D$54=2,TRUE,FALSE) -> FALSE | J137: =IF('Seed Plan'!$F$54="0-3",TRUE,IF('Seed Plan'!$G$54="0-5",TRUE,FALSE)) -> FALSE | K137: FALSE | N137: 3 | O137: Alfalfa Hay | P137: 7+ | Q137: 160+ | R137: 0 | S137: FALSE | T137: =IF('Seed Plan'!$D$59="7+",TRUE,FALSE) -> FALSE | U137: =IF('Seed Plan'!$F$59="161+",TRUE,FALSE) -> FALSE | V137: FALSE
B138: 4 | C138: Hay - Other Legume | D138: 3 | E138: 0-3 | F138: 0-5 | G138: 55 | H138: =IF($A$47=4,TRUE,FALSE) -> FALSE | I138: =IF('Seed Plan'!$D$54=3,TRUE,FALSE) -> FALSE | J138: =IF('Seed Plan'!$F$54="0-3",TRUE,IF('Seed Plan'!$G$54="0-5",TRUE,FALSE)) -> FALSE | K138: FALSE | N138: 4 | O138: Hay - Other Legume | P138: 2 | Q138: 0-40 | R138: 95 | S138: =IF($M$47=4,TRUE,FALSE) -> FALSE | T138: =IF('Seed Plan'!$D$59=2,TRUE,FALSE) -> FALSE | U138: =IF('Seed Plan'!$F$59="0-40",TRUE,FALSE) -> FALSE | V138: FALSE
B139: 4 | C139: Hay - Other Legume | D139: 4 | E139: 0-3 | F139: 0-5 | G139: 70 | H139: FALSE | I139: =IF('Seed Plan'!$D$54=4,TRUE,FALSE) -> FALSE | J139: =IF('Seed Plan'!$F$54="0-3",TRUE,IF('Seed Plan'!$G$54="0-5",TRUE,FALSE)) -> FALSE | K139: FALSE | N139: 4 | O139: Hay - Other Legume | P139: 3 | Q139: 0-40 | R139: 140 | S139: =IF($M$47=4,TRUE,FALSE) -> FALSE | T139: =IF('Seed Plan'!$D$59=3,TRUE,FALSE) -> FALSE | U139: =IF('Seed Plan'!$F$59="0-40",TRUE,FALSE) -> FALSE | V139: FALSE
B140: 4 | C140: Hay - Other Legume | D140: 5 | E140: 0-3 | F140: 0-5 | G140: 90 | H140: FALSE | I140: =IF('Seed Plan'!$D$54=5,TRUE,FALSE) -> FALSE | J140: =IF('Seed Plan'!$F$54="0-3",TRUE,IF('Seed Plan'!$G$54="0-5",TRUE,FALSE)) -> FALSE | K140: FALSE | N140: 4 | O140: Hay - Other Legume | P140: 4 | Q140: 0-40 | R140: 185 | S140: FALSE | T140: =IF('Seed Plan'!$D$59=4,TRUE,FALSE) -> FALSE | U140: =IF('Seed Plan'!$F$59="0-40",TRUE,FALSE) -> FALSE | V140: FALSE
B141: 4 | C141: Hay - Other Legume | D141: 6 | E141: 0-3 | F141: 0-5 | G141: 90 | H141: FALSE | I141: =IF('Seed Plan'!$D$54=6,TRUE,FALSE) -> FALSE | J141: =IF('Seed Plan'!$F$54="0-3",TRUE,IF('Seed Plan'!$G$54="0-5",TRUE,FALSE)) -> FALSE | K141: FALSE | N141: 4 | O141: Hay - Other Legume | P141: 5 | Q141: 0-40 | R141: 230 | S141: FALSE | T141: =IF('Seed Plan'!$D$59=5,TRUE,FALSE) -> FALSE | U141: =IF('Seed Plan'!$F$59="0-40",TRUE,FALSE) -> FALSE | V141: FALSE
B142: 4 | C142: Hay - Other Legume | D142: 7+ | E142: 0-3 | F142: 0-5 | G142: 90 | H142: FALSE | I142: =IF('Seed Plan'!$D$54="7+",TRUE,FALSE) -> FALSE | J142: =IF('Seed Plan'!$F$54="0-3",TRUE,IF('Seed Plan'!$G$54="0-5",TRUE,FALSE)) -> FALSE | K142: FALSE | N142: 4 | O142: Hay - Other Legume | P142: 6 | Q142: 0-40 | R142: 230 | S142: FALSE | T142: =IF('Seed Plan'!$D$59=6,TRUE,FALSE) -> FALSE | U142: =IF('Seed Plan'!$F$59="0-40",TRUE,FALSE) -> FALSE | V142: FALSE
B143: 4 | C143: Hay - Other Legume | D143: 2 | E143: 4-7 | F143: 6-10 | G143: 25 | H143: FALSE | I143: =IF('Seed Plan'!$D$54=2,TRUE,FALSE) -> FALSE | J143: =IF('Seed Plan'!$F$54="4-7",TRUE,IF('Seed Plan'!$G$54="6-10",TRUE,FALSE)) -> FALSE | K143: FALSE | N143: 4 | O143: Hay - Other Legume | P143: 7+ | Q143: 0-40 | R143: 230 | S143: FALSE | T143: =IF('Seed Plan'!$D$59="7+",TRUE,FALSE) -> FALSE | U143: =IF('Seed Plan'!$F$59="0-40",TRUE,FALSE) -> FALSE | V143: FALSE
B144: 4 | C144: Hay - Other Legume | D144: 3 | E144: 4-7 | F144: 6-10 | G144: 40 | H144: FALSE | I144: =IF('Seed Plan'!$D$54=3,TRUE,FALSE) -> FALSE | J144: =IF('Seed Plan'!$F$54="4-7",TRUE,IF('Seed Plan'!$G$54="6-10",TRUE,FALSE)) -> FALSE | K144: FALSE | N144: 4 | O144: Hay - Other Legume | P144: 2 | Q144: 41-80 | R144: 65 | S144: FALSE | T144: =IF('Seed Plan'!$D$59=2,TRUE,FALSE) -> FALSE | U144: =IF('Seed Plan'!$F$59="41-80",TRUE,FALSE) -> FALSE | V144: FALSE
B145: 4 | C145: Hay - Other Legume | D145: 4 | E145: 4-7 | F145: 6-10 | G145: 50 | H145: FALSE | I145: =IF('Seed Plan'!$D$54=4,TRUE,FALSE) -> FALSE | J145: =IF('Seed Plan'!$F$54="4-7",TRUE,IF('Seed Plan'!$G$54="6-10",TRUE,FALSE)) -> FALSE | K145: FALSE | N145: 4 | O145: Hay - Other Legume | P145: 3 | Q145: 41-80 | R145: 100 | S145: FALSE | T145: =IF('Seed Plan'!$D$59=3,TRUE,FALSE) -> FALSE | U145: =IF('Seed Plan'!$F$59="41-80",TRUE,FALSE) -> FALSE | V145: FALSE
B146: 4 | C146: Hay - Other Legume | D146: 5 | E146: 4-7 | F146: 6-10 | G146: 65 | H146: FALSE | I146: =IF('Seed Plan'!$D$54=5,TRUE,FALSE) -> FALSE | J146: =IF('Seed Plan'!$F$54="4-7",TRUE,IF('Seed Plan'!$G$54="6-10",TRUE,FALSE)) -> FALSE | K146: FALSE | N146: 4 | O146: Hay - Other Legume | P146: 4 | Q146: 41-80 | R146: 135 | S146: FALSE | T146: =IF('Seed Plan'!$D$59=4,TRUE,FALSE) -> FALSE | U146: =IF('Seed Plan'!$F$59="41-80",TRUE,FALSE) -> FALSE | V146: FALSE
B147: 4 | C147: Hay - Other Legume | D147: 6 | E147: 4-7 | F147: 6-10 | G147: 65 | H147: FALSE | I147: =IF('Seed Plan'!$D$54=6,TRUE,FALSE) -> FALSE | J147: =IF('Seed Plan'!$F$54="4-7",TRUE,IF('Seed Plan'!$G$54="6-10",TRUE,FALSE)) -> FALSE | K147: FALSE | N147: 4 | O147: Hay - Other Legume | P147: 5 | Q147: 41-80 | R147: 165 | S147: FALSE | T147: =IF('Seed Plan'!$D$59=5,TRUE,FALSE) -> FALSE | U147: =IF('Seed Plan'!$F$59="41-80",TRUE,FALSE) -> FALSE | V147: FALSE
B148: 4 | C148: Hay - Other Legume | D148: 7+ | E148: 4-7 | F148: 6-10 | G148: 65 | H148: FALSE | I148: =IF('Seed Plan'!$D$54="7+",TRUE,FALSE) -> FALSE | J148: =IF('Seed Plan'!$F$54="4-7",TRUE,IF('Seed Plan'!$G$54="6-10",TRUE,FALSE)) -> FALSE | K148: FALSE | N148: 4 | O148: Hay - Other Legume | P148: 6 | Q148: 41-80 | R148: 165 | S148: FALSE | T148: =IF('Seed Plan'!$D$59=6,TRUE,FALSE) -> FALSE | U148: =IF('Seed Plan'!$F$59="41-80",TRUE,FALSE) -> FALSE | V148: FALSE
B149: 4 | C149: Hay - Other Legume | D149: 2 | E149: 8-11 | F149: 11-15 | G149: 15 | H149: FALSE | I149: =IF('Seed Plan'!$D$54=2,TRUE,FALSE) -> FALSE | J149: =IF('Seed Plan'!$F$54="8-11",TRUE,IF('Seed Plan'!$G$54="11-15",TRUE,FALSE)) -> FALSE | K149: FALSE | N149: 4 | O149: Hay - Other Legume | P149: 7+ | Q149: 41-80 | R149: 165 | S149: FALSE | T149: =IF('Seed Plan'!$D$59="7+",TRUE,FALSE) -> FALSE | U149: =IF('Seed Plan'!$F$59="41-80",TRUE,FALSE) -> FALSE | V149: FALSE
B150: 4 | C150: Hay - Other Legume | D150: 3 | E150: 8-11 | F150: 11-15 | G150: 25 | H150: FALSE | I150: =IF('Seed Plan'!$D$54=3,TRUE,FALSE) -> FALSE | J150: =IF('Seed Plan'!$F$54="8-11",TRUE,IF('Seed Plan'!$G$54="11-15",TRUE,FALSE)) -> FALSE | K150: FALSE | N150: 4 | O150: Hay - Other Legume | P150: 2 | Q150: 81-120 | R150: 40 | S150: FALSE | T150: =IF('Seed Plan'!$D$59=2,TRUE,FALSE) -> FALSE | U150: =IF('Seed Plan'!$F$59="81-120",TRUE,FALSE) -> FALSE | V150: FALSE
B151: 4 | C151: Hay - Other Legume | D151: 4 | E151: 8-11 | F151: 11-15 | G151: 30 | H151: FALSE | I151: =IF('Seed Plan'!$D$54=4,TRUE,FALSE) -> FALSE | J151: =IF('Seed Plan'!$F$54="8-11",TRUE,IF('Seed Plan'!$G$54="11-15",TRUE,FALSE)) -> FALSE | K151: FALSE | N151: 4 | O151: Hay - Other Legume | P151: 3 | Q151: 81-120 | R151: 60 | S151: FALSE | T151: =IF('Seed Plan'!$D$59=3,TRUE,FALSE) -> FALSE | U151: =IF('Seed Plan'!$F$59="81-120",TRUE,FALSE) -> FALSE | V151: FALSE
B152: 4 | C152: Hay - Other Legume | D152: 5 | E152: 8-11 | F152: 11-15 | G152: 40 | H152: FALSE | I152: =IF('Seed Plan'!$D$54=5,TRUE,FALSE) -> FALSE | J152: =IF('Seed Plan'!$F$54="8-11",TRUE,IF('Seed Plan'!$G$54="11-15",TRUE,FALSE)) -> FALSE | K152: FALSE | N152: 4 | O152: Hay - Other Legume | P152: 4 | Q152: 81-120 | R152: 80 | S152: FALSE | T152: =IF('Seed Plan'!$D$59=4,TRUE,FALSE) -> FALSE | U152: =IF('Seed Plan'!$F$59="81-120",TRUE,FALSE) -> FALSE | V152: FALSE
B153: 4 | C153: Hay - Other Legume | D153: 6 | E153: 8-11 | F153: 11-15 | G153: 40 | H153: FALSE | I153: =IF('Seed Plan'!$D$54=6,TRUE,FALSE) -> FALSE | J153: =IF('Seed Plan'!$F$54="8-11",TRUE,IF('Seed Plan'!$G$54="11-15",TRUE,FALSE)) -> FALSE | K153: FALSE | N153: 4 | O153: Hay - Other Legume | P153: 5 | Q153: 81-120 | R153: 100 | S153: FALSE | T153: =IF('Seed Plan'!$D$59=5,TRUE,FALSE) -> FALSE | U153: =IF('Seed Plan'!$F$59="81-120",TRUE,FALSE) -> FALSE | V153: FALSE
B154: 4 | C154: Hay - Other Legume | D154: 7+ | E154: 8-11 | F154: 11-15 | G154: 40 | H154: FALSE | I154: =IF('Seed Plan'!$D$54="7+",TRUE,FALSE) -> FALSE | J154: =IF('Seed Plan'!$F$54="8-11",TRUE,IF('Seed Plan'!$G$54="11-15",TRUE,FALSE)) -> FALSE | K154: FALSE | N154: 4 | O154: Hay - Other Legume | P154: 6 | Q154: 81-120 | R154: 100 | S154: FALSE | T154: =IF('Seed Plan'!$D$59=6,TRUE,FALSE) -> FALSE | U154: =IF('Seed Plan'!$F$59="81-120",TRUE,FALSE) -> FALSE | V154: FALSE
B155: 4 | C155: Hay - Other Legume | D155: 2 | E155: 12-15 | F155: 16-20 | G155: 0 | H155: FALSE | I155: =IF('Seed Plan'!$D$54=2,TRUE,FALSE) -> FALSE | J155: =IF('Seed Plan'!$F$54="12-15",TRUE,IF('Seed Plan'!$G$54="16-20",TRUE,FALSE)) -> FALSE | K155: FALSE | N155: 4 | O155: Hay - Other Legume | P155: 7+ | Q155: 81-120 | R155: 100 | S155: FALSE | T155: =IF('Seed Plan'!$D$59="7+",TRUE,FALSE) -> FALSE | U155: =IF('Seed Plan'!$F$59="81-120",TRUE,FALSE) -> FALSE | V155: FALSE
B156: 4 | C156: Hay - Other Legume | D156: 3 | E156: 12-15 | F156: 16-20 | G156: 10 | H156: FALSE | I156: =IF('Seed Plan'!$D$54=3,TRUE,FALSE) -> FALSE | J156: =IF('Seed Plan'!$F$54="12-15",TRUE,IF('Seed Plan'!$G$54="16-20",TRUE,FALSE)) -> FALSE | K156: FALSE | N156: 4 | O156: Hay - Other Legume | P156: 2 | Q156: 121-160 | R156: 15 | S156: FALSE | T156: =IF('Seed Plan'!$D$59=2,TRUE,FALSE) -> FALSE | U156: =IF('Seed Plan'!$F$59="121-160",TRUE,FALSE) -> FALSE | V156: FALSE
B157: 4 | C157: Hay - Other Legume | D157: 4 | E157: 12-15 | F157: 16-20 | G157: 10 | H157: FALSE | I157: =IF('Seed Plan'!$D$54=4,TRUE,FALSE) -> FALSE | J157: =IF('Seed Plan'!$F$54="12-15",TRUE,IF('Seed Plan'!$G$54="16-20",TRUE,FALSE)) -> FALSE | K157: FALSE | N157: 4 | O157: Hay - Other Legume | P157: 3 | Q157: 121-160 | R157: 20 | S157: FALSE | T157: =IF('Seed Plan'!$D$59=3,TRUE,FALSE) -> FALSE | U157: =IF('Seed Plan'!$F$59="121-160",TRUE,FALSE) -> FALSE | V157: FALSE
B158: 4 | C158: Hay - Other Legume | D158: 5 | E158: 12-15 | F158: 16-20 | G158: 15 | H158: FALSE | I158: =IF('Seed Plan'!$D$54=5,TRUE,FALSE) -> FALSE | J158: =IF('Seed Plan'!$F$54="12-15",TRUE,IF('Seed Plan'!$G$54="16-20",TRUE,FALSE)) -> FALSE | K158: FALSE | N158: 4 | O158: Hay - Other Legume | P158: 4 | Q158: 121-160 | R158: 25 | S158: FALSE | T158: =IF('Seed Plan'!$D$59=4,TRUE,FALSE) -> FALSE | U158: =IF('Seed Plan'!$F$59="121-160",TRUE,FALSE) -> FALSE | V158: FALSE
B159: 4 | C159: Hay - Other Legume | D159: 6 | E159: 12-15 | F159: 16-20 | G159: 15 | H159: FALSE | I159: =IF('Seed Plan'!$D$54=6,TRUE,FALSE) -> FALSE | J159: =IF('Seed Plan'!$F$54="12-15",TRUE,IF('Seed Plan'!$G$54="16-20",TRUE,FALSE)) -> FALSE | K159: FALSE | N159: 4 | O159: Hay - Other Legume | P159: 5 | Q159: 121-160 | R159: 35 | S159: FALSE | T159: =IF('Seed Plan'!$D$59=5,TRUE,FALSE) -> FALSE | U159: =IF('Seed Plan'!$F$59="121-160",TRUE,FALSE) -> FALSE | V159: FALSE
B160: 4 | C160: Hay - Other Legume | D160: 7+ | E160: 12-15 | F160: 16-20 | G160: 15 | H160: FALSE | I160: =IF('Seed Plan'!$D$54="7+",TRUE,FALSE) -> FALSE | J160: =IF('Seed Plan'!$F$54="12-15",TRUE,IF('Seed Plan'!$G$54="16-20",TRUE,FALSE)) -> FALSE | K160: FALSE | N160: 4 | O160: Hay - Other Legume | P160: 6 | Q160: 121-160 | R160: 35 | S160: FALSE | T160: =IF('Seed Plan'!$D$59=6,TRUE,FALSE) -> FALSE | U160: =IF('Seed Plan'!$F$59="121-160",TRUE,FALSE) -> FALSE | V160: FALSE
B161: 4 | C161: Hay - Other Legume | D161: 2 | E161: 16+ | F161: 21+ | G161: 0 | H161: FALSE | I161: =IF('Seed Plan'!$D$54=2,TRUE,FALSE) -> FALSE | J161: =IF('Seed Plan'!$F$54="16+",TRUE,IF('Seed Plan'!$G$54="21+",TRUE,FALSE)) -> FALSE | K161: FALSE | N161: 4 | O161: Hay - Other Legume | P161: 7+ | Q161: 121-160 | R161: 35 | S161: FALSE | T161: =IF('Seed Plan'!$D$59="7+",TRUE,FALSE) -> FALSE | U161: =IF('Seed Plan'!$F$59="121-160",TRUE,FALSE) -> FALSE | V161: FALSE
B162: 4 | C162: Hay - Other Legume | D162: 3 | E162: 16+ | F162: 21+ | G162: 0 | H162: FALSE | I162: =IF('Seed Plan'!$D$54=3,TRUE,FALSE) -> FALSE | J162: =IF('Seed Plan'!$F$54="16+",TRUE,IF('Seed Plan'!$G$54="21+",TRUE,FALSE)) -> FALSE | K162: FALSE | N162: 4 | O162: Hay - Other Legume | P162: 2 | Q162: 160+ | R162: 0 | S162: FALSE | T162: =IF('Seed Plan'!$D$59=2,TRUE,FALSE) -> FALSE | U162: =IF('Seed Plan'!$F$59="161+",TRUE,FALSE) -> FALSE | V162: FALSE
B163: 4 | C163: Hay - Other Legume | D163: 4 | E163: 16+ | F163: 21+ | G163: 0 | H163: FALSE | I163: =IF('Seed Plan'!$D$54=4,TRUE,FALSE) -> FALSE | J163: =IF('Seed Plan'!$F$54="16+",TRUE,IF('Seed Plan'!$G$54="21+",TRUE,FALSE)) -> FALSE | K163: FALSE | N163: 4 | O163: Hay - Other Legume | P163: 3 | Q163: 160+ | R163: 0 | S163: FALSE | T163: =IF('Seed Plan'!$D$59=3,TRUE,FALSE) -> FALSE | U163: =IF('Seed Plan'!$F$59="161+",TRUE,FALSE) -> FALSE | V163: FALSE
B164: 4 | C164: Hay - Other Legume | D164: 5 | E164: 16+ | F164: 21+ | G164: 0 | H164: FALSE | I164: =IF('Seed Plan'!$D$54=5,TRUE,FALSE) -> FALSE | J164: =IF('Seed Plan'!$F$54="16+",TRUE,IF('Seed Plan'!$G$54="21+",TRUE,FALSE)) -> FALSE | K164: FALSE | N164: 4 | O164: Hay - Other Legume | P164: 4 | Q164: 160+ | R164: 0 | S164: FALSE | T164: =IF('Seed Plan'!$D$59=4,TRUE,FALSE) -> FALSE | U164: =IF('Seed Plan'!$F$59="161+",TRUE,FALSE) -> FALSE | V164: FALSE
B165: 4 | C165: Hay - Other Legume | D165: 6 | E165: 16+ | F165: 21+ | G165: 0 | H165: FALSE | I165: =IF('Seed Plan'!$D$54=6,TRUE,FALSE) -> FALSE | J165: =IF('Seed Plan'!$F$54="16+",TRUE,IF('Seed Plan'!$G$54="21+",TRUE,FALSE)) -> FALSE | K165: FALSE | N165: 4 | O165: Hay - Other Legume | P165: 5 | Q165: 160+ | R165: 0 | S165: FALSE | T165: =IF('Seed Plan'!$D$59=5,TRUE,FALSE) -> FALSE | U165: =IF('Seed Plan'!$F$59="161+",TRUE,FALSE) -> FALSE | V165: FALSE
B166: 4 | C166: Hay - Other Legume | D166: 7+ | E166: 16+ | F166: 21+ | G166: 0 | H166: FALSE | I166: =IF('Seed Plan'!$D$54="7+",TRUE,FALSE) -> FALSE | J166: =IF('Seed Plan'!$F$54="16+",TRUE,IF('Seed Plan'!$G$54="21+",TRUE,FALSE)) -> FALSE | K166: FALSE | N166: 4 | O166: Hay - Other Legume | P166: 6 | Q166: 160+ | R166: 0 | S166: FALSE | T166: =IF('Seed Plan'!$D$59=6,TRUE,FALSE) -> FALSE | U166: =IF('Seed Plan'!$F$59="161+",TRUE,FALSE) -> FALSE | V166: FALSE
B167: 5 | C167: Hay - Grass | D167: 2 | E167: 0-3 | F167: 0-5 | G167: 40 | H167: =IF($A$47=5,TRUE,FALSE) -> FALSE | I167: =IF('Seed Plan'!$D$54=2,TRUE,FALSE) -> FALSE | J167: =IF('Seed Plan'!$F$54="0-3",TRUE,IF('Seed Plan'!$G$54="0-5",TRUE,FALSE)) -> FALSE | K167: FALSE | N167: 4 | O167: Hay - Other Legume | P167: 7+ | Q167: 160+ | R167: 0 | S167: FALSE | T167: =IF('Seed Plan'!$D$59="7+",TRUE,FALSE) -> FALSE | U167: =IF('Seed Plan'!$F$59="161+",TRUE,FALSE) -> FALSE | V167: FALSE
B168: 5 | C168: Hay - Grass | D168: 3 | E168: 0-3 | F168: 0-5 | G168: 50 | H168: =IF($A$47=5,TRUE,FALSE) -> FALSE | I168: =IF('Seed Plan'!$D$54=3,TRUE,FALSE) -> FALSE | J168: =IF('Seed Plan'!$F$54="0-3",TRUE,IF('Seed Plan'!$G$54="0-5",TRUE,FALSE)) -> FALSE | K168: FALSE | N168: 5 | O168: Hay - Grass | P168: 2 | Q168: 0-40 | R168: 90 | S168: =IF($M$47=5,TRUE,FALSE) -> FALSE | T168: =IF('Seed Plan'!$D$59=2,TRUE,FALSE) -> FALSE | U168: =IF('Seed Plan'!$F$59="0-40",TRUE,FALSE) -> FALSE | V168: FALSE
B169: 5 | C169: Hay - Grass | D169: 4 | E169: 0-3 | F169: 0-5 | G169: 60 | H169: FALSE | I169: =IF('Seed Plan'!$D$54=4,TRUE,FALSE) -> FALSE | J169: =IF('Seed Plan'!$F$54="0-3",TRUE,IF('Seed Plan'!$G$54="0-5",TRUE,FALSE)) -> FALSE | K169: FALSE | N169: 5 | O169: Hay - Grass | P169: 3 | Q169: 0-40 | R169: 100 | S169: =IF($M$47=5,TRUE,FALSE) -> FALSE | T169: =IF('Seed Plan'!$D$59=3,TRUE,FALSE) -> FALSE | U169: =IF('Seed Plan'!$F$59="0-40",TRUE,FALSE) -> FALSE | V169: FALSE
B170: 5 | C170: Hay - Grass | D170: 5 | E170: 0-3 | F170: 0-5 | G170: 70 | H170: FALSE | I170: =IF('Seed Plan'!$D$54=5,TRUE,FALSE) -> FALSE | J170: =IF('Seed Plan'!$F$54="0-3",TRUE,IF('Seed Plan'!$G$54="0-5",TRUE,FALSE)) -> FALSE | K170: FALSE | N170: 5 | O170: Hay - Grass | P170: 4 | Q170: 0-40 | R170: 110 | S170: FALSE | T170: =IF('Seed Plan'!$D$59=4,TRUE,FALSE) -> FALSE | U170: =IF('Seed Plan'!$F$59="0-40",TRUE,FALSE) -> FALSE | V170: FALSE
B171: 5 | C171: Hay - Grass | D171: 6 | E171: 0-3 | F171: 0-5 | G171: 70 | H171: FALSE | I171: =IF('Seed Plan'!$D$54=6,TRUE,FALSE) -> FALSE | J171: =IF('Seed Plan'!$F$54="0-3",TRUE,IF('Seed Plan'!$G$54="0-5",TRUE,FALSE)) -> FALSE | K171: FALSE | N171: 5 | O171: Hay - Grass | P171: 5 | Q171: 0-40 | R171: 120 | S171: FALSE | T171: =IF('Seed Plan'!$D$59=5,TRUE,FALSE) -> FALSE | U171: =IF('Seed Plan'!$F$59="0-40",TRUE,FALSE) -> FALSE | V171: FALSE
B172: 5 | C172: Hay - Grass | D172: 7+ | E172: 0-3 | F172: 0-5 | G172: 70 | H172: FALSE | I172: =IF('Seed Plan'!$D$54="7+",TRUE,FALSE) -> FALSE | J172: =IF('Seed Plan'!$F$54="0-3",TRUE,IF('Seed Plan'!$G$54="0-5",TRUE,FALSE)) -> FALSE | K172: FALSE | N172: 5 | O172: Hay - Grass | P172: 6 | Q172: 0-40 | R172: 120 | S172: FALSE | T172: =IF('Seed Plan'!$D$59=6,TRUE,FALSE) -> FALSE | U172: =IF('Seed Plan'!$F$59="0-40",TRUE,FALSE) -> FALSE | V172: FALSE
B173: 5 | C173: Hay - Grass | D173: 2 | E173: 4-7 | F173: 6-10 | G173: 30 | H173: FALSE | I173: =IF('Seed Plan'!$D$54=2,TRUE,FALSE) -> FALSE | J173: =IF('Seed Plan'!$F$54="4-7",TRUE,IF('Seed Plan'!$G$54="6-10",TRUE,FALSE)) -> FALSE | K173: FALSE | N173: 5 | O173: Hay - Grass | P173: 7+ | Q173: 0-40 | R173: 120 | S173: FALSE | T173: =IF('Seed Plan'!$D$59="7+",TRUE,FALSE) -> FALSE | U173: =IF('Seed Plan'!$F$59="0-40",TRUE,FALSE) -> FALSE | V173: FALSE
B174: 5 | C174: Hay - Grass | D174: 3 | E174: 4-7 | F174: 6-10 | G174: 40 | H174: FALSE | I174: =IF('Seed Plan'!$D$54=3,TRUE,FALSE) -> FALSE | J174: =IF('Seed Plan'!$F$54="4-7",TRUE,IF('Seed Plan'!$G$54="6-10",TRUE,FALSE)) -> FALSE | K174: FALSE | N174: 5 | O174: Hay - Grass | P174: 2 | Q174: 41-80 | R174: 60 | S174: FALSE | T174: =IF('Seed Plan'!$D$59=2,TRUE,FALSE) -> FALSE | U174: =IF('Seed Plan'!$F$59="41-80",TRUE,FALSE) -> FALSE | V174: FALSE
B175: 5 | C175: Hay - Grass | D175: 4 | E175: 4-7 | F175: 6-10 | G175: 50 | H175: FALSE | I175: =IF('Seed Plan'!$D$54=4,TRUE,FALSE) -> FALSE | J175: =IF('Seed Plan'!$F$54="4-7",TRUE,IF('Seed Plan'!$G$54="6-10",TRUE,FALSE)) -> FALSE | K175: FALSE | N175: 5 | O175: Hay - Grass | P175: 3 | Q175: 41-80 | R175: 70 | S175: FALSE | T175: =IF('Seed Plan'!$D$59=3,TRUE,FALSE) -> FALSE | U175: =IF('Seed Plan'!$F$59="41-80",TRUE,FALSE) -> FALSE | V175: FALSE
B176: 5 | C176: Hay - Grass | D176: 5 | E176: 4-7 | F176: 6-10 | G176: 60 | H176: FALSE | I176: =IF('Seed Plan'!$D$54=5,TRUE,FALSE) -> FALSE | J176: =IF('Seed Plan'!$F$54="4-7",TRUE,IF('Seed Plan'!$G$54="6-10",TRUE,FALSE)) -> FALSE | K176: =IF(H176=TRUE,IF(I176=TRUE,IF(J176=TRUE,G176,FALSE))) -> FALSE | N176: 5 | O176: Hay - Grass | P176: 4 | Q176: 41-80 | R176: 80 | S176: FALSE | T176: =IF('Seed Plan'!$D$59=4,TRUE,FALSE) -> FALSE | U176: =IF('Seed Plan'!$F$59="41-80",TRUE,FALSE) -> FALSE | V176: FALSE
B177: 5 | C177: Hay - Grass | D177: 6 | E177: 4-7 | F177: 6-10 | G177: 60 | H177: FALSE | I177: =IF('Seed Plan'!$D$54=6,TRUE,FALSE) -> FALSE | J177: =IF('Seed Plan'!$F$54="4-7",TRUE,IF('Seed Plan'!$G$54="6-10",TRUE,FALSE)) -> FALSE | K177: FALSE | N177: 5 | O177: Hay - Grass | P177: 5 | Q177: 41-80 | R177: 90 | S177: FALSE | T177: =IF('Seed Plan'!$D$59=5,TRUE,FALSE) -> FALSE | U177: =IF('Seed Plan'!$F$59="41-80",TRUE,FALSE) -> FALSE | V177: =IF(S177=TRUE,IF(T177=TRUE,IF(U177=TRUE,R177,FALSE))) -> FALSE
B178: 5 | C178: Hay - Grass | D178: 7+ | E178: 4-7 | F178: 6-10 | G178: 60 | H178: FALSE | I178: =IF('Seed Plan'!$D$54="7+",TRUE,FALSE) -> FALSE | J178: =IF('Seed Plan'!$F$54="4-7",TRUE,IF('Seed Plan'!$G$54="6-10",TRUE,FALSE)) -> FALSE | K178: FALSE | N178: 5 | O178: Hay - Grass | P178: 6 | Q178: 41-80 | R178: 90 | S178: FALSE | T178: =IF('Seed Plan'!$D$59=6,TRUE,FALSE) -> FALSE | U178: =IF('Seed Plan'!$F$59="41-80",TRUE,FALSE) -> FALSE | V178: FALSE
B179: 5 | C179: Hay - Grass | D179: 2 | E179: 8-11 | F179: 11-15 | G179: 20 | H179: FALSE | I179: =IF('Seed Plan'!$D$54=2,TRUE,FALSE) -> FALSE | J179: =IF('Seed Plan'!$F$54="8-11",TRUE,IF('Seed Plan'!$G$54="11-15",TRUE,FALSE)) -> FALSE | K179: FALSE | N179: 5 | O179: Hay - Grass | P179: 7+ | Q179: 41-80 | R179: 90 | S179: FALSE | T179: =IF('Seed Plan'!$D$59="7+",TRUE,FALSE) -> FALSE | U179: =IF('Seed Plan'!$F$59="41-80",TRUE,FALSE) -> FALSE | V179: FALSE
B180: 5 | C180: Hay - Grass | D180: 3 | E180: 8-11 | F180: 11-15 | G180: 30 | H180: FALSE | I180: =IF('Seed Plan'!$D$54=3,TRUE,FALSE) -> FALSE | J180: =IF('Seed Plan'!$F$54="8-11",TRUE,IF('Seed Plan'!$G$54="11-15",TRUE,FALSE)) -> FALSE | K180: FALSE | N180: 5 | O180: Hay - Grass | P180: 2 | Q180: 81-120 | R180: 30 | S180: FALSE | T180: =IF('Seed Plan'!$D$59=2,TRUE,FALSE) -> FALSE | U180: =IF('Seed Plan'!$F$59="81-120",TRUE,FALSE) -> FALSE | V180: FALSE
B181: 5 | C181: Hay - Grass | D181: 4 | E181: 8-11 | F181: 11-15 | G181: 40 | H181: FALSE | I181: =IF('Seed Plan'!$D$54=4,TRUE,FALSE) -> FALSE | J181: =IF('Seed Plan'!$F$54="8-11",TRUE,IF('Seed Plan'!$G$54="11-15",TRUE,FALSE)) -> FALSE | K181: FALSE | N181: 5 | O181: Hay - Grass | P181: 3 | Q181: 81-120 | R181: 40 | S181: FALSE | T181: =IF('Seed Plan'!$D$59=3,TRUE,FALSE) -> FALSE | U181: =IF('Seed Plan'!$F$59="81-120",TRUE,FALSE) -> FALSE | V181: FALSE
B182: 5 | C182: Hay - Grass | D182: 5 | E182: 8-11 | F182: 11-15 | G182: 50 | H182: FALSE | I182: =IF('Seed Plan'!$D$54=5,TRUE,FALSE) -> FALSE | J182: =IF('Seed Plan'!$F$54="8-11",TRUE,IF('Seed Plan'!$G$54="11-15",TRUE,FALSE)) -> FALSE | K182: FALSE | N182: 5 | O182: Hay - Grass | P182: 4 | Q182: 81-120 | R182: 50 | S182: FALSE | T182: =IF('Seed Plan'!$D$59=4,TRUE,FALSE) -> FALSE | U182: =IF('Seed Plan'!$F$59="81-120",TRUE,FALSE) -> FALSE | V182: FALSE
B183: 5 | C183: Hay - Grass | D183: 6 | E183: 8-11 | F183: 11-15 | G183: 50 | H183: FALSE | I183: =IF('Seed Plan'!$D$54=6,TRUE,FALSE) -> FALSE | J183: =IF('Seed Plan'!$F$54="8-11",TRUE,IF('Seed Plan'!$G$54="11-15",TRUE,FALSE)) -> FALSE | K183: FALSE | N183: 5 | O183: Hay - Grass | P183: 5 | Q183: 81-120 | R183: 60 | S183: FALSE | T183: =IF('Seed Plan'!$D$59=5,TRUE,FALSE) -> FALSE | U183: =IF('Seed Plan'!$F$59="81-120",TRUE,FALSE) -> FALSE | V183: FALSE
B184: 5 | C184: Hay - Grass | D184: 7+ | E184: 8-11 | F184: 11-15 | G184: 50 | H184: FALSE | I184: =IF('Seed Plan'!$D$54="7+",TRUE,FALSE) -> FALSE | J184: =IF('Seed Plan'!$F$54="8-11",TRUE,IF('Seed Plan'!$G$54="11-15",TRUE,FALSE)) -> FALSE | K184: FALSE | N184: 5 | O184: Hay - Grass | P184: 6 | Q184: 81-120 | R184: 60 | S184: FALSE | T184: =IF('Seed Plan'!$D$59=6,TRUE,FALSE) -> FALSE | U184: =IF('Seed Plan'!$F$59="81-120",TRUE,FALSE) -> FALSE | V184: FALSE
B185: 5 | C185: Hay - Grass | D185: 2 | E185: 12-15 | F185: 16-20 | G185: 10 | H185: FALSE | I185: =IF('Seed Plan'!$D$54=2,TRUE,FALSE) -> FALSE | J185: =IF('Seed Plan'!$F$54="12-15",TRUE,IF('Seed Plan'!$G$54="16-20",TRUE,FALSE)) -> FALSE | K185: FALSE | N185: 5 | O185: Hay - Grass | P185: 7+ | Q185: 81-120 | R185: 60 | S185: FALSE | T185: =IF('Seed Plan'!$D$59="7+",TRUE,FALSE) -> FALSE | U185: =IF('Seed Plan'!$F$59="81-120",TRUE,FALSE) -> FALSE | V185: FALSE
B186: 5 | C186: Hay - Grass | D186: 3 | E186: 12-15 | F186: 16-20 | G186: 20 | H186: FALSE | I186: =IF('Seed Plan'!$D$54=3,TRUE,FALSE) -> FALSE | J186: =IF('Seed Plan'!$F$54="12-15",TRUE,IF('Seed Plan'!$G$54="16-20",TRUE,FALSE)) -> FALSE | K186: FALSE | N186: 5 | O186: Hay - Grass | P186: 2 | Q186: 121-160 | R186: 0 | S186: FALSE | T186: =IF('Seed Plan'!$D$59=2,TRUE,FALSE) -> FALSE | U186: =IF('Seed Plan'!$F$59="121-160",TRUE,FALSE) -> FALSE | V186: FALSE
B187: 5 | C187: Hay - Grass | D187: 4 | E187: 12-15 | F187: 16-20 | G187: 30 | H187: FALSE | I187: =IF('Seed Plan'!$D$54=4,TRUE,FALSE) -> FALSE | J187: =IF('Seed Plan'!$F$54="12-15",TRUE,IF('Seed Plan'!$G$54="16-20",TRUE,FALSE)) -> FALSE | K187: FALSE | N187: 5 | O187: Hay - Grass | P187: 3 | Q187: 121-160 | R187: 10 | S187: FALSE | T187: =IF('Seed Plan'!$D$59=3,TRUE,FALSE) -> FALSE | U187: =IF('Seed Plan'!$F$59="121-160",TRUE,FALSE) -> FALSE | V187: FALSE
B188: 5 | C188: Hay - Grass | D188: 5 | E188: 12-15 | F188: 16-20 | G188: 40 | H188: FALSE | I188: =IF('Seed Plan'!$D$54=5,TRUE,FALSE) -> FALSE | J188: =IF('Seed Plan'!$F$54="12-15",TRUE,IF('Seed Plan'!$G$54="16-20",TRUE,FALSE)) -> FALSE | K188: FALSE | N188: 5 | O188: Hay - Grass | P188: 4 | Q188: 121-160 | R188: 20 | S188: FALSE | T188: =IF('Seed Plan'!$D$59=4,TRUE,FALSE) -> FALSE | U188: =IF('Seed Plan'!$F$59="121-160",TRUE,FALSE) -> FALSE | V188: FALSE
B189: 5 | C189: Hay - Grass | D189: 6 | E189: 12-15 | F189: 16-20 | G189: 40 | H189: FALSE | I189: =IF('Seed Plan'!$D$54=6,TRUE,FALSE) -> FALSE | J189: =IF('Seed Plan'!$F$54="12-15",TRUE,IF('Seed Plan'!$G$54="16-20",TRUE,FALSE)) -> FALSE | K189: FALSE | N189: 5 | O189: Hay - Grass | P189: 5 | Q189: 121-160 | R189: 30 | S189: FALSE | T189: =IF('Seed Plan'!$D$59=5,TRUE,FALSE) -> FALSE | U189: =IF('Seed Plan'!$F$59="121-160",TRUE,FALSE) -> FALSE | V189: FALSE
B190: 5 | C190: Hay - Grass | D190: 7+ | E190: 12-15 | F190: 16-20 | G190: 40 | H190: FALSE | I190: =IF('Seed Plan'!$D$54="7+",TRUE,FALSE) -> FALSE | J190: =IF('Seed Plan'!$F$54="12-15",TRUE,IF('Seed Plan'!$G$54="16-20",TRUE,FALSE)) -> FALSE | K190: FALSE | N190: 5 | O190: Hay - Grass | P190: 6 | Q190: 121-160 | R190: 30 | S190: FALSE | T190: =IF('Seed Plan'!$D$59=6,TRUE,FALSE) -> FALSE | U190: =IF('Seed Plan'!$F$59="121-160",TRUE,FALSE) -> FALSE | V190: FALSE
B191: 5 | C191: Hay - Grass | D191: 2 | E191: 16+ | F191: 21+ | G191: 0 | H191: FALSE | I191: =IF('Seed Plan'!$D$54=2,TRUE,FALSE) -> FALSE | J191: =IF('Seed Plan'!$F$54="16+",TRUE,IF('Seed Plan'!$G$54="21+",TRUE,FALSE)) -> FALSE | K191: FALSE | N191: 5 | O191: Hay - Grass | P191: 7+ | Q191: 121-160 | R191: 30 | S191: FALSE | T191: =IF('Seed Plan'!$D$59="7+",TRUE,FALSE) -> FALSE | U191: =IF('Seed Plan'!$F$59="121-160",TRUE,FALSE) -> FALSE | V191: FALSE
B192: 5 | C192: Hay - Grass | D192: 3 | E192: 16+ | F192: 21+ | G192: 0 | H192: FALSE | I192: =IF('Seed Plan'!$D$54=3,TRUE,FALSE) -> FALSE | J192: =IF('Seed Plan'!$F$54="16+",TRUE,IF('Seed Plan'!$G$54="21+",TRUE,FALSE)) -> FALSE | K192: FALSE | N192: 5 | O192: Hay - Grass | P192: 2 | Q192: 160+ | R192: 0 | S192: FALSE | T192: =IF('Seed Plan'!$D$59=2,TRUE,FALSE) -> FALSE | U192: =IF('Seed Plan'!$F$59="161+",TRUE,FALSE) -> FALSE | V192: FALSE
B193: 5 | C193: Hay - Grass | D193: 4 | E193: 16+ | F193: 21+ | G193: 0 | H193: FALSE | I193: =IF('Seed Plan'!$D$54=4,TRUE,FALSE) -> FALSE | J193: =IF('Seed Plan'!$F$54="16+",TRUE,IF('Seed Plan'!$G$54="21+",TRUE,FALSE)) -> FALSE | K193: FALSE | N193: 5 | O193: Hay - Grass | P193: 3 | Q193: 160+ | R193: 0 | S193: FALSE | T193: =IF('Seed Plan'!$D$59=3,TRUE,FALSE) -> FALSE | U193: =IF('Seed Plan'!$F$59="161+",TRUE,FALSE) -> FALSE | V193: FALSE
B194: 5 | C194: Hay - Grass | D194: 5 | E194: 16+ | F194: 21+ | G194: 0 | H194: FALSE | I194: =IF('Seed Plan'!$D$54=5,TRUE,FALSE) -> FALSE | J194: =IF('Seed Plan'!$F$54="16+",TRUE,IF('Seed Plan'!$G$54="21+",TRUE,FALSE)) -> FALSE | K194: FALSE | N194: 5 | O194: Hay - Grass | P194: 4 | Q194: 160+ | R194: 0 | S194: FALSE | T194: =IF('Seed Plan'!$D$59=4,TRUE,FALSE) -> FALSE | U194: =IF('Seed Plan'!$F$59="161+",TRUE,FALSE) -> FALSE | V194: FALSE
B195: 5 | C195: Hay - Grass | D195: 6 | E195: 16+ | F195: 21+ | G195: 0 | H195: FALSE | I195: =IF('Seed Plan'!$D$54=6,TRUE,FALSE) -> FALSE | J195: =IF('Seed Plan'!$F$54="16+",TRUE,IF('Seed Plan'!$G$54="21+",TRUE,FALSE)) -> FALSE | K195: FALSE | N195: 5 | O195: Hay - Grass | P195: 5 | Q195: 160+ | R195: 0 | S195: FALSE | T195: =IF('Seed Plan'!$D$59=5,TRUE,FALSE) -> FALSE | U195: =IF('Seed Plan'!$F$59="161+",TRUE,FALSE) -> FALSE | V195: FALSE
B196: 5 | C196: Hay - Grass | D196: 7+ | E196: 16+ | F196: 21+ | G196: 0 | H196: FALSE | I196: =IF('Seed Plan'!$D$54="7+",TRUE,FALSE) -> FALSE | J196: =IF('Seed Plan'!$F$54="16+",TRUE,IF('Seed Plan'!$G$54="21+",TRUE,FALSE)) -> FALSE | K196: FALSE | N196: 5 | O196: Hay - Grass | P196: 6 | Q196: 160+ | R196: 0 | S196: FALSE | T196: =IF('Seed Plan'!$D$59=6,TRUE,FALSE) -> FALSE | U196: =IF('Seed Plan'!$F$59="161+",TRUE,FALSE) -> FALSE | V196: FALSE
K197: =SUM(K46:K196) -> 0 | N197: 5 | O197: Hay - Grass | P197: 7+ | Q197: 160+ | R197: 0 | S197: FALSE | T197: =IF('Seed Plan'!$D$59="7+",TRUE,FALSE) -> FALSE | U197: =IF('Seed Plan'!$F$59="161+",TRUE,FALSE) -> FALSE | V197: FALSE
V198: =SUM(V48:V197) -> 0
B203: Forage Suitability Tables
B205: Group #
B206: Excessively Drained
B207: Somewhat Excessively Drained
B208: Well Drained
B209: Moderately Well Drained
B210: Somewhat Poorly Drained
B211: Poorly Drained
B212: Very Poorly Drained
B233: Frost Seeding
B234: Cool Season Grasses and Legumes
B235: Warm Season Native Grasses
B238: North: Cool Season Grasses & Legumes - April 1 to June 15 OR July 15 to September 1
B239: South: Cool Season Grasses & Legumes - April 1 to June 1 OR August 1 to September 10
B240: DORMANT-Statewide: Cool Season Grasses & Legumes - November 1 OR Consistent Soil Temperature < 40* F
B241: Statewide: Warm Season Grasses & Legumes - May 15 to June 30
B242: DORMANT-Statewide: Warm Season Grasses & Legumes - November 1 OR Consistent Soil Temperature < 50* F
B246: Conventional or no-till drill into prepared seedbed: Seedbed should be tilled and clean of all vegetation and weeds, packed and firm enough to make a 1/2' or less boot imprint.
B248: No-till drill into existing sod: Seedbed preparation will vary from site to site. Most common seedbed preparation methods can included heavy grazing, light tillage, herbicide application, or a combination. Existing vegetation should be as severly suppresed for grass seeds to germinate and grow without excessive competition.
B250: Broadcasting via terrigator or vicon seeder: Seedbed should be tilled and clean of all vegetation and weeds, packed and firm enough to make a 1/2' or less boot imprint. Pack or light harrow following application to ensure proper seed to soil contact.
B252: Frost seeding: Seedbed preparation will vary from site to site. Most common seedbed preparation methods can included heavy grazing, light tillage, herbicide application, or a combination. Existing vegetation should be as severly suppresed for grass seeds to germinate and grow without excessive competition.
B254: Broadcast legumes into existing pasture. Heavy grazing prior to seeding is recommended and follow seeding with a light harrow to improve seed to soil contact
B260: P and K fertilizer recommendations have been based on a soils test provided to NRCS. Rates are based on the University of Minnesota Extension Service bulletin #BU-06240-S Revised 2001. Fertilizer can be applied either before or during the time of seeding with use of a drill or broadcasting. Liming and fertilizing will be applied in accodinance with MN NRCS Conservation Practice Standard 590 Nutrient Managment.
H261: Oats 3/4-1.25 BU/Ac
H262: Barley 1/2 - 1 BU/Ac
H263: Wheat 1/2 BU/Ac
H264: Ryegrass < 2.5lbs/ac
B271: Hay | C271: Hay Planting - Growth of seedlings or sprigs shall be monitored for water stress. Water stress may require reducing weeds, early harvest of any companion crops, irrigating when possible or replanting failed stands. Invasion by undesirable plants shall be controlled by cutting, using a selective herbicide, prescribed burning, or by grazing management by manipulating livestock stocking rates, density, and duration of stay. Insects and diseases shall be controlled when an infestation exceeds economic injury levels. Please refer to MN NRCS Conservation Practice 511 Forage Harvest Management.
B272: Pasture | C272: Pasture Planting - Growth of seedlings or sprigs shall be monitored for water stress. Water stress may require reducing weeds, early harvest of any companion crops, irrigating when possible or replanting failed stands. Invasion by undesirable plants shall be controlled by cutting, using a selective herbicide, prescribed burning, or by grazing management by manipulating livestock stocking rates, density, and duration of stay. Insects and diseases shall be controlled when an infestation exceeds economic injury levels. Light grazing events, delayed mechanical harvest, or season long rest should be considered during the establishment year to allow the stand to develop.
A281: Species | B281: Seeds/lb | C281: Pure Stand | D281: Grass Mix
A282: Introduced Cool Season Grasses | B282: 0 | C282: 0 | D282: 0
A283: Kentucky Bluegrass | B283: 2177000
A284: Smooth Bromegrass | B284: 136000 | C284: 16 | D284: 10
A285: Meadow Bromegrass | B285: 80000 | C285: 22 | D285: 16
A286: Timothy | B286: 1230000 | C286: 6 | D286: 3
A287: Orchard grass | B287: 654000 | C287: 4 | D287: 4
A288: Reed Canary Grass | B288: 526000 | C288: 7 | D288: 5
A289: Tall Fescue | B289: 227000 | C289: 10 | D289: 7
... 29 more rows

Sheet Seeding Checkout
A1: SEEDING CHECKOUT
A4: Date: | C4: =TODAY() -> 2021-09-20 | F4: Paddock/Field No: | J4: Acres:
A6: Cooperator: | H6: Conservationist:
A8: Program: | F8: Practice No.: | I8: Practice Name:
A10: Drainage Class | H10: Does planting bill include fertilizer?
C14: ENTER THE ACTUAL DATE OF SEEDING
A16: FERTILIZER CHECKOUT
A17: Phosphate (P2O5) | I17: Potash
A18: Recommended lbs/acre: | F18: analysis | G18: 52 | I18: Recommended lbs/acre: | M18: analysis | N18: 60
E19: Total lbs applied | L19: Total lbs applied
F20: acres | G20: =K$4 -> 0 | M20: acres | N20: =K4 -> 0
D21: Net Phosphate Applied lbs/Acre: | E21: =(G19*G18/100)/G20 ->  | K21: Net Potash Applied lbs/Acre: | L21: =(N19*N18/100)/N20 -> 
A23: Difference of Recommended vs. Applied lbs/acre: | I23: Difference of Recommended vs. Applied lbs/acre:
E24: =E21-D19 ->  | L24: =L21-K19 -> 
C26: ENTER THE PLANNED SEEDS / sq ft: | H26: ENTER THE PLANNED PLS lbs / acre:
C31: SEEDING CHECKOUT TABLE
C32: Seed Species | F32: Variety | H32: Seeds/lbs | I32: Bulk lbs Purchased | J32: Percent Purity | K32: Percent Germ. | L32: Applied Seeds/sq ft PLS | M32: Applied seeding rate PLS Lbs/ac | N32: % of Mixture
H36: =IF(C36="",0,VLOOKUP(C36,Sheet3!$A$282:$D$322,2,FALSE)) -> 0 | L36: =IF(C36="","",(H36*M36)/43560) ->  | M36: =IF(ISNUMBER(I36),(J36*K36*I36)/'Seeding Checkout'!$K$4,"") ->  | N36: =IF(ISNUMBER(I36),M36/$M$57,"") -> 
H37: =IF(C37="",0,VLOOKUP(C37,Sheet3!$A$282:$D$322,2,FALSE)) -> 0 | L37: =IF(C37="","",(H37*M37)/43560) ->  | M37: =IF(ISNUMBER(I37),(J37*K37*I37)/'Seeding Checkout'!$K$4,"") -> 
H38: =IF(C38="",0,VLOOKUP(C38,Sheet3!$A$282:$D$322,2,FALSE)) -> 0 | M38: =IF(ISNUMBER(I38),(J38*K38*I38)/'Seeding Checkout'!$K$4,"") -> 
H39: =IF(C39="",0,VLOOKUP(C39,Sheet3!$A$282:$D$322,2,FALSE)) -> 0 | M39: =IF(ISNUMBER(I39),(J39*K39*I39)/'Seeding Checkout'!$K$4,"") -> 
H40: =IF(C40="",0,VLOOKUP(C40,Sheet3!$A$282:$D$322,2,FALSE)) -> 0 | M40: =IF(ISNUMBER(I40),(J40*K40*I40)/'Seeding Checkout'!$K$4,"") -> 
H41: =IF(C41="",0,VLOOKUP(C41,Sheet3!$A$282:$D$322,2,FALSE)) -> 0 | M41: =IF(ISNUMBER(I41),(J41*K41*I41)/'Seeding Checkout'!$K$4,"") -> 
H42: =IF(C42="",0,VLOOKUP(C42,Sheet3!$A$282:$D$322,2,FALSE)) -> 0 | M42: =IF(ISNUMBER(I42),(J42*K42*I42)/'Seeding Checkout'!$K$4,"") -> 
H43: =IF(C43="",0,VLOOKUP(C43,Sheet3!$A$282:$D$322,2,FALSE)) -> 0 | M43: =IF(ISNUMBER(I43),(J43*K43*I43)/'Seeding Checkout'!$K$4,"") -> 
H44: =IF(C44="",0,VLOOKUP(C44,Sheet3!$A$282:$D$322,2,FALSE)) -> 0 | M44: =IF(ISNUMBER(I44),(J44*K44*I44)/'Seeding Checkout'!$K$4,"") -> 
H45: =IF(C45="",0,VLOOKUP(C45,Sheet3!$A$282:$D$322,2,FALSE)) -> 0 | M45: =IF(ISNUMBER(I45),(J45*K45*I45)/'Seeding Checkout'!$K$4,"") -> 
H46: =IF(C46="",0,VLOOKUP(C46,Sheet3!$A$282:$D$322,2,FALSE)) -> 0 | M46: =IF(ISNUMBER(I46),(J46*K46*I46)/'Seeding Checkout'!$K$4,"") -> 
H47: =IF(C47="",0,VLOOKUP(C47,Sheet3!$A$282:$D$322,2,FALSE)) -> 0 | M47: =IF(ISNUMBER(I47),(J47*K47*I47)/'Seeding Checkout'!$K$4,"") -> 
C48: OTHER | L48: =IF(C48="Other","",(H48*M48)/43560) ->  | M48: =IF(ISNUMBER(I48),(J48*K48*I48)/'Seeding Checkout'!$K$4,"") -> 
C49: OTHER | L49: =IF(C49="Other","",(H49*M49)/43560) ->  | M49: =IF(ISNUMBER(I49),(J49*K49*I49)/'Seeding Checkout'!$K$4,"") ->  | N49: =IF(ISNUMBER(I49),M49/$M$57,"") -> 
C50: OTHER | L50: =IF(C50="Other","",(H50*M50)/43560) ->  | M50: =IF(ISNUMBER(I50),(J50*K50*I50)/'Seeding Checkout'!$K$4,"") ->  | N50: =IF(ISNUMBER(I50),M50/$M$57,"") -> 
K52: Multi Species Seed Tag #1: | L52: =IF(J110=0,"",J110) ->  | M52: =IF(K110=0,"",K110) ->  | N52: =IF(ISNUMBER(M52),M52/$M$57,"") -> 
K54: Multi Species Seed Tag #2: | L54: =IF(J151=0,"",J151) ->  | M54: =IF(K151=0,"",K151) ->  | N54: =IF(ISNUMBER(M54),M54/$M$57,"") -> 
K56: Multi Species Seed Tag #3: | L56: =IF(J192=0,"",J192) ->  | M56: =IF(K192=0,"",K192) ->  | N56: =IF(ISNUMBER(M56),M56/$M$57,"") -> 
K57: Totals: | L57: =SUM(L36:L56) -> 0 | M57: =SUM(M36:M56) -> 0 | N57: =SUM(N36:N56) -> 0
I59: Applied Seeds / sq ft: | J59: =L57 -> 0 | M59: Applied PLS lbs / ac: | N59: =M57 -> 0
I60: Planned Seeds / sq ft: | J60: =C27 -> 0 | M60: Planned PLS lbs / ac | N60: =H27 -> 0
J61: =J59-J60 -> 0 | N61: =N59-N60 -> 0
D67: I certify that the above information does/ does not meet NRCS specifications for design and installation.
D70: Conservationist Signature | I70: Date | L70: Job Class
C91: Acres | D91: =$K$4 -> 0
A93: BULK LBS PURCHASED
A94: MIXED SEED TAG #1 REPORT
A95: Species | D95: Seeds/Lbs | E95: % Purity | F95: %Germ | G95: % PLS | H95: Bulk Lbs in Mix | I95: Total Lbs PLS Purchased | J95: Applied Seeds/Sq Ft PLS | K95: Applied Seeding Rate PLS Lbs/ac | L95: % of Mix seed/sq ft
D96: =IF(A96="","",IF(A96="Select",0,VLOOKUP(A96,Sheet3!$A$282:$D$322,2,FALSE))) ->  | G96: =E96*F96 -> 0 | H96: =E96*$D$93 -> 0 | I96: =G96*$D$93 -> 0 | J96: =IF(G96=0,0,I96*D96/$D$91/43560) -> 0 | K96: =IF($D$91=0,"",I96/$D$91) ->  | L96: =IF(J96=0,0,J96/$J$110) -> 0
D97: =IF(A97="","",IF(A97="Select",0,VLOOKUP(A97,Sheet3!$A$282:$D$322,2,FALSE))) ->  | G97: =E97*F97 -> 0 | H97: =E97*$D$93 -> 0 | I97: =G97*$D$93 -> 0 | J97: =IF(G97=0,0,I97*D97/$D$91/43560) -> 0 | K97: =IF($D$91=0,"",I97/$D$91) ->  | L97: 0
D98: =IF(A98="","",IF(A98="Select",0,VLOOKUP(A98,Sheet3!$A$282:$D$322,2,FALSE))) ->  | G98: 0 | H98: 0 | I98: 0 | J98: 0 | L98: 0
D99: =IF(A99="","",IF(A99="Select",0,VLOOKUP(A99,Sheet3!$A$282:$D$322,2,FALSE))) ->  | G99: 0 | H99: 0 | I99: 0 | J99: 0 | L99: 0
D100: =IF(A100="","",IF(A100="Select",0,VLOOKUP(A100,Sheet3!$A$282:$D$322,2,FALSE))) ->  | G100: 0 | H100: 0 | I100: 0 | J100: 0 | L100: 0
D101: =IF(A101="","",IF(A101="Select",0,VLOOKUP(A101,Sheet3!$A$282:$D$322,2,FALSE))) ->  | G101: 0 | H101: 0 | I101: 0 | J101: 0 | L101: 0
A102: OTHER | G102: 0 | H102: 0 | I102: 0 | J102: 0 | L102: 0
A103: OTHER | G103: 0 | H103: 0 | I103: =G103*$D$93 -> 0 | J103: 0 | L103: 0
G109: =SUM(G96:G108) -> 0
G110: Totals | H110: =SUM(H96:H109) -> 0 | I110: =SUM(I96:I109) -> 0 | J110: =SUM(J96:J109) -> 0 | K110: =SUM(K96:K109) -> 0 | L110: =SUM(L96:L109) -> 0
C132: Acres | D132: =$K$4 -> 0
A134: BULK LBS PURCHASED
A135: MIXED SEED TAG #2 REPORT
A136: Species | D136: Seeds/Lbs | E136: % Purity | F136: %Germ | G136: % PLS | H136: Bulk Lbs in Mix | I136: Total Lbs PLS Purchased | J136: Applied Seeds/Sq Ft PLS | K136: Applied Seeding Rate PLS Lbs/ac | L136: % of Mix seed/sq ft
D137: =IF(A137="","",IF(A137="Select",0,VLOOKUP(A137,Sheet3!$A$282:$D$322,2,FALSE))) ->  | G137: =E137*F137 -> 0 | H137: =E137*$D$134 -> 0 | I137: =G137*$D$134 -> 0 | J137: =IF(G137=0,0,I137*D137/$D132/43560) -> 0 | K137: =IF($D$91=0,"",I137/$D$91) ->  | L137: =IF(J137=0,0,J137/J151) -> 0
D138: =IF(A138="","",IF(A138="Select",0,VLOOKUP(A138,Sheet3!$A$282:$D$322,2,FALSE))) ->  | G138: =E138*F138 -> 0 | H138: =E138*$D$134 -> 0 | I138: =G138*$D$134 -> 0 | J138: =IF(G138=0,0,I138*D138/$D$132/43560) -> 0 | K138: =IF($D$91=0,"",I138/$D$91) ->  | L138: =IF(J138=0,0,J138/$J$151) -> 0
D139: =IF(A139="","",IF(A139="Select",0,VLOOKUP(A139,Sheet3!$A$282:$D$322,2,FALSE))) ->  | G139: 0 | H139: 0 | I139: 0 | J139: 0 | L139: 0
D140: =IF(A140="","",IF(A140="Select",0,VLOOKUP(A140,Sheet3!$A$282:$D$322,2,FALSE))) ->  | G140: 0 | H140: 0 | I140: 0 | J140: 0 | L140: 0
D141: =IF(A141="","",IF(A141="Select",0,VLOOKUP(A141,Sheet3!$A$282:$D$322,2,FALSE))) ->  | G141: 0 | H141: 0 | I141: 0 | J141: 0 | L141: 0
D142: =IF(A142="","",IF(A142="Select",0,VLOOKUP(A142,Sheet3!$A$282:$D$322,2,FALSE))) ->  | G142: 0 | H142: 0 | I142: 0 | J142: 0 | L142: 0
A143: OTHER | G143: 0 | H143: 0 | I143: 0 | J143: 0 | L143: 0
A144: OTHER | G144: 0 | H144: 0 | I144: 0 | J144: 0 | L144: 0
G150: =SUM(G137:G149) -> 0
G151: Totals | H151: =IF(D134="",SUM(H137:H150),IF(SUM(H137:H150)=0,D134,"")) -> 0 | I151: =SUM(I137:I150) -> 0 | J151: =SUM(J137:J150) -> 0 | K151: =SUM(K137:K150) -> 0 | L151: =SUM(L137:L150) -> 0
C173: Acres | D173: =$K$4 -> 0
A175: BULK LBS PURCHASED
A176: MIXED SEED TAG #3 REPORT
A177: Species | D177: Seeds/Lbs | E177: % Purity | F177: %Germ | G177: % PLS | H177: Bulk Lbs Purchased | I177: Total Lbs PLS Purchased | J177: Applied Seeds/Sq Ft PLS | K177: Applied Seeding Rate PLS Lbs/ac | L177: % of Mix seed/sq ft
D178: =IF(A178="","",IF(A178="Select",0,VLOOKUP(A178,Sheet3!$A$282:$D$322,2,FALSE))) ->  | G178: =E178*F178 -> 0 | H178: =E178*$D$175 -> 0 | I178: =G178*$D$175 -> 0 | J178: =IF(G178=0,0,I178*D178/$D$173/43560) -> 0 | K178: =IF($D$91=0,"",I178/$D$91) ->  | L178: =IF(J178=0,0,J178/$J$192) -> 0
D179: =IF(A179="","",IF(A179="Select",0,VLOOKUP(A179,Sheet3!$A$282:$D$322,2,FALSE))) ->  | G179: =E179*F179 -> 0 | H179: =E179*$D$175 -> 0 | I179: =G179*$D$175 -> 0 | J179: =IF(G179=0,0,I179*D179/$D$173/43560) -> 0 | K179: =IF($D$91=0,"",I179/$D$91) ->  | L179: =IF(J179=0,0,J179/$J$192) -> 0
D180: =IF(A180="","",IF(A180="Select",0,VLOOKUP(A180,Sheet3!$A$282:$D$322,2,FALSE))) ->  | G180: 0 | H180: 0 | I180: 0 | J180: 0 | L180: 0
D181: =IF(A181="","",IF(A181="Select",0,VLOOKUP(A181,Sheet3!$A$282:$D$322,2,FALSE))) ->  | G181: 0 | H181: 0 | I181: 0 | J181: 0 | L181: 0
D182: =IF(A182="","",IF(A182="Select",0,VLOOKUP(A182,Sheet3!$A$282:$D$322,2,FALSE))) ->  | G182: 0 | H182: 0 | I182: 0 | J182: 0 | L182: 0
D183: =IF(A183="","",IF(A183="Select",0,VLOOKUP(A183,Sheet3!$A$282:$D$322,2,FALSE))) ->  | G183: 0 | H183: 0 | I183: 0 | J183: 0 | L183: 0
A184: OTHER | G184: 0 | H184: 0 | I184: 0 | J184: 0 | L184: 0
A185: OTHER | G185: 0 | H185: 0 | I185: 0 | J185: 0 | L185: 0
G191: =SUM(G178:G190) -> 0
G192: Totals | H192: =IF(D175="",SUM(H178:H191),IF(SUM(H178:H191)=0,D175,"")) -> 0 | I192: =SUM(I178:I191) -> 0 | J192: =SUM(J178:J191) -> 0 | K192: =SUM(K178:K191) -> 0 | L192: =SUM(L178:L191) -> 0

Sheet Fertilizer
A1: Fertilizer Recommendations
A3: Nitrogen | F3: Phosphorus
D4: N to Apply | G4: Yield Goal Tons/Ac | I4: 0--5 | J4: 6-10 | K4: 11-15 | L4: 16-20 | M4: 21+ | N4: Bray
A5: >20% Legume | B5: Nitrogen application is not recommended. | F5: Pasture >20% Legume | I5: 0-3 | J5: 4-7 | K5: 8-11 | L5: 12-15 | M5: 16+ | N5: Olson
G6: 2 | I6: 35 | J6: 25 | K6: 15 | L6: 0 | M6: 0
A8: <20% Legume | B8: Rotational grazing & adequate rainfall. | D8: 150 | G8: 3 | I8: 55 | J8: 40 | K8: 25 | L8: 10 | M8: 0
G9: 4 | I9: 70 | J9: 50 | K9: 30 | L9: 10 | M9: 0
G10: 5 | I10: 90 | J10: 65 | K10: 40 | L10: 15 | M10: 0
B11: Continuous grazing & adequate rainfall | D11: 100
G12: 6 | I12: 90 | J12: 65 | K12: 40 | L12: 15 | M12: 0
G13: 7+ | I13: 90 | J13: 65 | K13: 40 | L13: 15 | M13: 0
B14: Grazing & moderate rainfall | D14: 50
B17: Sandy soils, steep slopes, low precip areas | D17: 30 | F17: Pasture <20% Legume | G17: Yield Goal Tons/Ac | I17: 0--5 | J17: 6-10 | K17: 11-15 | L17: 16-20 | M17: 21+ | N17: Bray
I18: 0-3 | J18: 4-7 | K18: 8-11 | L18: 12-15 | M18: 16+ | N18: Olson
I19: 40 | J19: 30 | K19: 20 | L19: 10 | M19: 0
B20: Organic Soils | D20: 50 | G20: 2
G21: 3 | I21: 50 | J21: 40 | K21: 30 | L21: 20 | M21: 0
G22: 4 | I22: 60 | J22: 50 | K22: 40 | L22: 30 | M22: 0
G24: 5 | I24: 70 | J24: 60 | K24: 50 | L24: 40 | M24: 0
G25: 6 | I25: 70 | J25: 60 | K25: 50 | L25: 40 | M25: 0
G27: 7+ | I27: 70 | J27: 60 | K27: 50 | L27: 40 | M27: 0
F29: Alfalfa Hay | G29: Yield Goal Tons/Ac | I29: 0--5 | J29: 6-10 | K29: 11-15 | L29: 16-20 | M29: 21+ | N29: Bray
I30: 0-3 | J30: 4-7 | K30: 8-11 | L30: 12-15 | M30: 16+ | N30: Olson
I31: 45 | J31: 35 | K31: 20 | L31: 10 | M31: 0
G32: 2
G33: 3 | I33: 65 | J33: 45 | K33: 25 | L33: 10 | M33: 0
G34: 4 | I34: 80 | J34: 55 | K34: 30 | L34: 15 | M34: 0
G36: 5 | I36: 95 | J36: 65 | K36: 40 | L36: 15 | M36: 0
G37: 6 | I37: 110 | J37: 80 | K37: 45 | L37: 20 | M37: 0
G39: 7+ | I39: 125 | J39: 90 | K39: 55 | L39: 25 | M39: 0
F41: Other Legume Hay | G41: Yield Goal Tons/Ac | I41: 0--5 | J41: 6-10 | K41: 11-15 | L41: 16-20 | M41: 21+ | N41: Bray
I42: 0-3 | J42: 4-7 | K42: 8-11 | L42: 12-15 | M42: 16+ | N42: Olson
I43: 40 | J43: 30 | K43: 20 | L43: 10 | M43: 0
G44: 2
G45: 3 | I45: 50 | J45: 40 | K45: 30 | L45: 20 | M45: 0
G46: 4 | I46: 60 | J46: 50 | K46: 40 | L46: 30 | M46: 0
G48: 5 | I48: 70 | J48: 60 | K48: 50 | L48: 40 | M48: 0
G49: 6 | I49: 70 | J49: 60 | K49: 50 | L49: 40 | M49: 0
G51: 7+ | I51: 70 | J51: 60 | K51: 50 | L51: 40 | M51: 0
F57: Potassium
F58: >20% Legume | G58: Yield Goal Tons/Ac | I58: 0-40 | J58: 41-80 | K58: 81-120 | L58: 121-160 | M58: 161+
G59: 2 | I59: 95 | J59: 65 | K59: 40 | L59: 15 | M59: 0
G60: 3 | I60: 140 | J60: 100 | K60: 60 | L60: 20 | M60: 0
G61: 4 | I61: 185 | J61: 135 | K61: 80 | L61: 25 | M61: 0
G62: 5 | I62: 230 | J62: 165 | K62: 100 | L62: 35 | M62: 0
G63: 6 | I63: 230 | J63: 165 | K63: 100 | L63: 35 | M63: 0
G64: 7+ | I64: 230 | J64: 165 | K64: 100 | L64: 35 | M64: 0
G65: Yield Goal Tons/Ac
F66: <20% Legume | I66: 0-40 | J66: 41-80 | K66: 81-120 | L66: 121-160 | M66: 161+
G67: 2 | I67: 90 | J67: 60 | K67: 30 | L67: 0 | M67: 0
G68: 3 | I68: 100 | J68: 70 | K68: 40 | L68: 10 | M68: 0
G69: 4 | I69: 110 | J69: 80 | K69: 50 | L69: 20 | M69: 0
G70: 5 | I70: 120 | J70: 90 | K70: 60 | L70: 30 | M70: 0
G71: 6 | I71: 120 | J71: 90 | K71: 60 | L71: 30 | M71: 0
G72: 7+ | I72: 120 | J72: 90 | K72: 60 | L72: 30 | M72: 0
G73: Yield Goal Tons/Ac
F74: Alfalfa Hay | I74: 0-40 | J74: 41-80 | K74: 81-120 | L74: 121-160 | M74: 161+
G75: 2 | I75: 145 | J75: 100 | K75: 55 | L75: 10 | M75: 0
G76: 3 | I76: 190 | J76: 130 | K76: 70 | L76: 10 | M76: 0
G77: 4 | I77: 240 | J77: 165 | K77: 90 | L77: 15 | M77: 0
G78: 5 | I78: 290 | J78: 195 | K78: 105 | L78: 15 | M78: 0
G79: 6 | I79: 335 | J79: 230 | K79: 125 | L79: 20 | M79: 0
G80: 7+ | I80: 380 | J80: 265 | K80: 145 | L80: 20 | M80: 0
G81: Yield Goal Tons/Ac
F82: Other Legume Hay | I82: 0-40 | J82: 41-80 | K82: 81-120 | L82: 121-160 | M82: 161+
G83: 2 | I83: 90 | J83: 60 | K83: 30 | L83: 0 | M83: 0
G84: 3 | I84: 100 | J84: 70 | K84: 40 | L84: 10 | M84: 0
G85: 4 | I85: 110 | J85: 80 | K85: 50 | L85: 20 | M85: 0
G86: 5 | I86: 120 | J86: 90 | K86: 60 | L86: 30 | M86: 0
G87: 6 | I87: 120 | J87: 90 | K87: 60 | L87: 30 | M87: 0
G88: 7+ | I88: 120 | J88: 90 | K88: 60 | L88: 30 | M88: 0

Sheet Prepared Seed Mixes (hidden)
A6: Area 1
A7: COOL SEASON INTRODUCED PASTURE MIXES | M7: WARM SEASON NATIVE PASTURE MIXES | Y7: HORSE AND SHEEP PASTURE MIXES
A9: #1 | M9: #1 | Y9: #1
A10: Forage Suitability Groups 13 & 14 - Very Poorly to Poorly Drained | M10: Forage Suitability Groups 13 & 14 - Very Poorly to Poorly Drained
A11: Seed Species | D11: Variety or Seed Source | F11: Seeds/lb | G11: PLS Rate Planned | H11: Acres | I11: Seeds/Sqft | J11: Total PLS lbs | K11: % in Mixture | M11: Seed Species | P11: Variety or Seed Source | R11: Seeds/lb | S11: PLS Rate Planned | T11: Acres | U11: Seeds/Sqft | V11: Total PLS lbs | W11: % in Mixture | Y11: Seed Species | AB11: Variety or Seed Source | AD11: Seeds/lb | AE11: PLS Rate Planned | AF11: Acres | AG11: Seeds/Sqft | AH11: Total PLS lbs | AI11: % in Mixture
A15: Creeping Foxtail | D15: Garison | F15: =IF(A15="",0,VLOOKUP(A15,Sheet3!$A$282:$D$322,2,FALSE)) -> 900000 | G15: 2 | H15: =$J$9 -> 0 | I15: =IF(A15="","",(F15*G15)/43560) -> 41.32231405 | J15: =IF(A15 = "","",H15*G15) -> 0 | K15: =IF(A15="","",I15/$I$21) -> 0.346220427 | M15: Big Bluestem | P15: Bison | R15: =IF(M15="",0,VLOOKUP(M15,Sheet3!$A$282:$D$322,2,FALSE)) -> 165000 | S15: 8 | T15: =$J$9 -> 0 | U15: =IF(M15="","",(R15*S15)/43560) -> 30.3030303 | V15: =IF(M15 = "","",T15*S15) -> 0 | W15: =IF(M15="","",U15/$U$21) -> 0.4559585492 | Y15: Meadow Bromegrass | AB15: Fleet | AD15: =IF(Y15="",0,VLOOKUP(Y15,Sheet3!$A$282:$D$322,2,FALSE)) -> 80000 | AE15: 20 | AF15: =$J$9 -> 0 | AG15: =IF(Y15="","",(AD15*AE15)/43560) -> 36.73094582 | AH15: =IF(Y15 = "","",AF15*AE15) -> 0 | AI15: =IF(Y15="","",AG15/$AG$21) -> 0.4312668464
A16: Timothy | D16: Climax | F16: =IF(A16="",0,VLOOKUP(A16,Sheet3!$A$282:$D$322,2,FALSE)) -> 1230000 | G16: 0.5 | H16: 0 | I16: 14.1184573 | J16: 0 | K16: 0.1182919792 | M16: Indiangrass | P16: Tomahawk | R16: =IF(M16="",0,VLOOKUP(M16,Sheet3!$A$282:$D$322,2,FALSE)) -> 175000 | S16: 9 | T16: 0 | U16: 36.15702479 | V16: 0 | W16: 0.5440414508 | Y16: Timothy | AB16: Climax | AD16: =IF(Y16="",0,VLOOKUP(Y16,Sheet3!$A$282:$D$322,2,FALSE)) -> 1230000 | AE16: 1 | AF16: 0 | AG16: 28.2369146 | AH16: 0 | AI16: 0.3315363881
A17: Tall Fescue | D17: Bulll | F17: =IF(A17="",0,VLOOKUP(A17,Sheet3!$A$282:$D$322,2,FALSE)) -> 227000 | G17: 6 | H17: 0 | I17: 31.26721763 | J17: 0 | K17: 0.2619734564 | R17: =IF(M17="",0,VLOOKUP(M17,Sheet3!$A$282:$D$322,2,FALSE)) -> 0 | T17: 0 | Y17: Alfalfa | AB17: Grazing Type | AD17: =IF(Y17="",0,VLOOKUP(Y17,Sheet3!$A$282:$D$322,2,FALSE)) -> 220000 | AE17: 4 | AF17: 0 | AG17: 20.2020202 | AH17: 0 | AI17: 0.2371967655
A18: Alsike Clover | D18: locally adapted | F18: =IF(A18="",0,VLOOKUP(A18,Sheet3!$A$282:$D$322,2,FALSE)) -> 700000 | G18: 1.5 | H18: 0 | I18: 24.1046832 | J18: 0 | K18: 0.2019619158 | R18: =IF(M18="",0,VLOOKUP(M18,Sheet3!$A$282:$D$322,2,FALSE)) -> 0 | T18: 0 | AD18: =IF(Y18="",0,VLOOKUP(Y18,Sheet3!$A$282:$D$322,2,FALSE)) -> 0 | AF18: 0
A19: Birdsfoot Trefoil | D19: Norcen | F19: =IF(A19="",0,VLOOKUP(A19,Sheet3!$A$282:$D$322,2,FALSE)) -> 372000 | G19: 1 | H19: 0 | I19: 8.539944904 | J19: 0 | K19: 0.07155222158 | R19: =IF(M19="",0,VLOOKUP(M19,Sheet3!$A$282:$D$322,2,FALSE)) -> 0 | T19: 0 | AD19: =IF(Y19="",0,VLOOKUP(Y19,Sheet3!$A$282:$D$322,2,FALSE)) -> 0 | AF19: 0
F20: =IF(A20="",0,VLOOKUP(A20,Sheet3!$A$282:$D$322,2,FALSE)) -> 0 | H20: 0 | R20: =IF(M20="",0,VLOOKUP(M20,Sheet3!$A$282:$D$322,2,FALSE)) -> 0 | T20: 0 | AD20: =IF(Y20="",0,VLOOKUP(Y20,Sheet3!$A$282:$D$322,2,FALSE)) -> 0 | AF20: 0
A21: Use Extension Recommended varieties | I21: =SUM(I15:I20) -> 119.3526171 | K21: =SUM(K15:K20) -> 1 | M21: Use Extension Recommended varieties | U21: =SUM(U15:U20) -> 66.4600551 | W21: =SUM(W15:W20) -> 1 | Y21: Use Extension Recommended varieties | AG21: =SUM(AG15:AG20) -> 85.16988062 | AI21: =SUM(AI15:AI20) -> 1
A24: #2 | M24: #2 | Y24: #2
A25: Somewhat Poorly to Moderately Well Drained | M25: Somewhat Poorly to Moderately Well Drained
A26: Seed Species | D26: Variety or Seed Source | F26: Seeds/lb | G26: PLS Rate Planned | H26: Acres | I26: Seeds/Sqft | J26: Total PLS lbs | K26: % in Mixture | M26: Seed Species | P26: Variety or Seed Source | R26: Seeds/lb | S26: PLS Rate Planned | T26: Acres | U26: Seeds/Sqft | V26: Total PLS lbs | W26: % in Mixture | Y26: Seed Species | AB26: Variety or Seed Source | AD26: Seeds/lb | AE26: PLS Rate Planned | AF26: Acres | AG26: Seeds/Sqft | AH26: Total PLS lbs | AI26: % in Mixture
A30: Meadow Bromegrass | D30: Fleet | F30: =IF(A30="",0,VLOOKUP(A30,Sheet3!$A$282:$D$322,2,FALSE)) -> 80000 | G30: 10 | H30: =$J$9 -> 0 | I30: =IF(A30="","",(F30*G30)/43560) -> 18.36547291 | J30: =IF(A30 = "","",H30*G30) -> 0 | K30: =IF(A30="","",I30/$I$36) -> 0.1578843497 | M30: Big Bluestem | P30: Bison | R30: =IF(M30="",0,VLOOKUP(M30,Sheet3!$A$282:$D$322,2,FALSE)) -> 165000 | S30: 8 | T30: =$J$9 -> 0 | U30: =IF(M30="","",(R30*S30)/43560) -> 30.3030303 | V30: =IF(M30 = "","",T30*S30) -> 0 | W30: =IF(M30="","",U30/$U$36) -> 0.4559585492 | Y30: Kentucky Bluegrass | AB30: forage type | AD30: =IF(Y30="",0,VLOOKUP(Y30,Sheet3!$A$282:$D$322,2,FALSE)) -> 2177000 | AE30: 0.5 | AF30: =$J$9 -> 0 | AG30: =IF(Y30="","",(AD30*AE30)/43560) -> 24.98852158 | AH30: =IF(Y30 = "","",AF30*AE30) -> 0 | AI30: =IF(Y30="","",AG30/$AG$36) -> 0.3067493307
A31: Orchard grass | D31: Orion | F31: =IF(A31="",0,VLOOKUP(A31,Sheet3!$A$282:$D$322,2,FALSE)) -> 654000 | G31: 2 | H31: 0 | I31: 30.02754821 | J31: 0 | K31: 0.2581409118 | M31: Indiangrass | P31: Tomahawk | R31: =IF(M31="",0,VLOOKUP(M31,Sheet3!$A$282:$D$322,2,FALSE)) -> 175000 | S31: 9 | T31: 0 | U31: 36.15702479 | V31: 0 | W31: 0.5440414508 | Y31: Timothy | AB31: Climax | AD31: =IF(Y31="",0,VLOOKUP(Y31,Sheet3!$A$282:$D$322,2,FALSE)) -> 1230000 | AE31: 2 | AF31: 0 | AG31: 56.4738292 | AH31: 0 | AI31: 0.6932506693
A32: Tall Fescue | D32: Bull | F32: =IF(A32="",0,VLOOKUP(A32,Sheet3!$A$282:$D$322,2,FALSE)) -> 227000 | G32: 6 | H32: 0 | I32: 31.26721763 | J32: 0 | K32: 0.2687981054 | R32: =IF(M32="",0,VLOOKUP(M32,Sheet3!$A$282:$D$322,2,FALSE)) -> 0 | T32: 0 | AD32: =IF(Y32="",0,VLOOKUP(Y32,Sheet3!$A$282:$D$322,2,FALSE)) -> 0 | AF32: 0
A33: Birdsfoot Trefoil | D33: Roseau | F33: =IF(A33="",0,VLOOKUP(A33,Sheet3!$A$282:$D$322,2,FALSE)) -> 372000 | G33: 1 | H33: 0 | I33: 8.539944904 | J33: 0 | K33: 0.07341622262 | R33: =IF(M33="",0,VLOOKUP(M33,Sheet3!$A$282:$D$322,2,FALSE)) -> 0 | T33: 0 | AD33: =IF(Y33="",0,VLOOKUP(Y33,Sheet3!$A$282:$D$322,2,FALSE)) -> 0 | AF33: 0
A34: White Clover | D34: Alice | F34: =IF(A34="",0,VLOOKUP(A34,Sheet3!$A$282:$D$322,2,FALSE)) -> 800000 | G34: 0.5 | H34: 0 | I34: 9.182736455 | J34: 0 | K34: 0.07894217486 | R34: =IF(M34="",0,VLOOKUP(M34,Sheet3!$A$282:$D$322,2,FALSE)) -> 0 | T34: 0 | AD34: =IF(Y34="",0,VLOOKUP(Y34,Sheet3!$A$282:$D$322,2,FALSE)) -> 0 | AF34: 0
A35: Red Clover | D35: Medium | F35: =IF(A35="",0,VLOOKUP(A35,Sheet3!$A$282:$D$322,2,FALSE)) -> 275000 | G35: 3 | H35: 0 | I35: 18.93939394 | J35: 0 | K35: 0.1628182356 | R35: =IF(M35="",0,VLOOKUP(M35,Sheet3!$A$282:$D$322,2,FALSE)) -> 0 | T35: 0 | AD35: =IF(Y35="",0,VLOOKUP(Y35,Sheet3!$A$282:$D$322,2,FALSE)) -> 0 | AF35: 0
A36: Use Extension Recommended varieties | I36: =SUM(I30:I35) -> 116.322314 | K36: =SUM(K30:K35) -> 1 | M36: Use Extension Recommended varieties | U36: =SUM(U30:U35) -> 66.4600551 | W36: =SUM(W30:W35) -> 1 | Y36: Use Extension Recommended varieties | AG36: =SUM(AG30:AG35) -> 81.46235078 | AI36: =SUM(AI30:AI35) -> 1
A38: #3 | M38: #3 | Y38: #3
A39: Somewhat Excessively to Excessively Drained Soils | M39: Somewhat Excessively to Excessively Drained Soils
A40: Seed Species | D40: Variety or Seed Source | F40: Seeds/lb | G40: PLS Rate Planned | H40: Acres | I40: Seeds/Sqft | J40: Total PLS lbs | K40: % in Mixture | M40: Seed Species | P40: Variety or Seed Source | R40: Seeds/lb | S40: PLS Rate Planned | T40: Acres | U40: Seeds/Sqft | V40: Total PLS lbs | W40: % in Mixture | Y40: Seed Species | AB40: Variety or Seed Source | AD40: Seeds/lb | AE40: PLS Rate Planned | AF40: Acres | AG40: Seeds/Sqft | AH40: Total PLS lbs | AI40: % in Mixture
A44: Intermediate Wheatgrass | D44: Revenue | F44: =IF(A44="",0,VLOOKUP(A44,Sheet3!$A$282:$D$322,2,FALSE)) -> 88000 | G44: 10 | H44: =$J$9 -> 0 | I44: =IF(A44="","",(F44*G44)/43560) -> 20.2020202 | J44: =IF(A44 = "","",H44*G44) -> 0 | K44: =IF(A44="","",I44/I50) -> 0.1861252115 | M44: Big Bluestem | P44: Bison | R44: =IF(M44="",0,VLOOKUP(M44,Sheet3!$A$282:$D$322,2,FALSE)) -> 165000 | S44: 6 | T44: =$J$9 -> 0 | U44: =IF(M44="","",(R44*S44)/43560) -> 22.72727273 | V44: =IF(M44 = "","",T44*S44) -> 0 | W44: =IF(M44="","",U44/U50) -> 0.3551299417 | AD44: =IF(Y44="",0,VLOOKUP(Y44,Sheet3!$A$282:$D$322,2,FALSE)) -> 0 | AF44: =$J$9 -> 0 | AG44: =IF(Y44="","",(AD44*AE44)/43560) ->  | AH44: =IF(Y44 = "","",AF44*AE44) ->  | AI44: =IF(Y44="","",AG44/AG50) -> 
A45: Meadow Bromegrass | D45: Fleet | F45: =IF(A45="",0,VLOOKUP(A45,Sheet3!$A$282:$D$322,2,FALSE)) -> 80000 | G45: 12 | H45: 0 | I45: 22.03856749 | J45: 0 | K45: =IF(A45="","",I45/I50) -> 0.2030456853 | M45: Little Bluestem | P45: Itasca Germplasm | R45: =IF(M45="",0,VLOOKUP(M45,Sheet3!$A$282:$D$322,2,FALSE)) -> 261360 | S45: 2 | T45: 0 | U45: 12 | V45: 0 | W45: =IF(M45="","",U45/U50) -> 0.1875086092 | AD45: =IF(Y45="",0,VLOOKUP(Y45,Sheet3!$A$282:$D$322,2,FALSE)) -> 0 | AF45: 0 | AI45: =IF(Y45="","",AG45/AG50) -> 
A46: Tall Fescue | D46: Fawn | F46: =IF(A46="",0,VLOOKUP(A46,Sheet3!$A$282:$D$322,2,FALSE)) -> 227000 | G46: 4 | H46: 0 | I46: 20.84481175 | J46: 0 | K46: =IF(A46="","",I46/I50) -> 0.1920473773 | M46: Indiangrass | P46: Tomahawk | R46: =IF(M46="",0,VLOOKUP(M46,Sheet3!$A$282:$D$322,2,FALSE)) -> 175000 | S46: 4 | T46: 0 | U46: 16.0697888 | V46: 0 | W46: =IF(M46="","",U46/U50) -> 0.251101979 | AD46: =IF(Y46="",0,VLOOKUP(Y46,Sheet3!$A$282:$D$322,2,FALSE)) -> 0 | AF46: 0 | AI46: =IF(Y46="","",AG46/AG50) -> 
A47: Red Clover | D47: Alice | F47: =IF(A47="",0,VLOOKUP(A47,Sheet3!$A$282:$D$322,2,FALSE)) -> 275000 | G47: 4 | H47: 0 | I47: 25.25252525 | J47: 0 | K47: =IF(A47="","",I47/I50) -> 0.2326565144 | M47: Sideoats Grama | P47: Killdeer | R47: =IF(M47="",0,VLOOKUP(M47,Sheet3!$A$282:$D$322,2,FALSE)) -> 191664 | S47: 3 | T47: 0 | U47: 13.2 | V47: 0 | W47: =IF(M47="","",U47/U50) -> 0.2062594701 | AD47: =IF(Y47="",0,VLOOKUP(Y47,Sheet3!$A$282:$D$322,2,FALSE)) -> 0 | AF47: 0 | AI47: =IF(Y47="","",AG47/AG50) -> 
A48: Alfalfa | D48: Graze Type | F48: =IF(A48="",0,VLOOKUP(A48,Sheet3!$A$282:$D$322,2,FALSE)) -> 220000 | G48: 4 | H48: 0 | I48: 20.2020202 | J48: 0 | K48: =IF(A48="","",I48/I50) -> 0.1861252115 | R48: =IF(M48="",0,VLOOKUP(M48,Sheet3!$A$282:$D$322,2,FALSE)) -> 0 | T48: 0 | W48: =IF(M48="","",U48/U50) ->  | AD48: =IF(Y48="",0,VLOOKUP(Y48,Sheet3!$A$282:$D$322,2,FALSE)) -> 0 | AF48: 0 | AI48: =IF(Y48="","",AG48/AG50) -> 
F49: =IF(A49="",0,VLOOKUP(A49,Sheet3!$A$282:$D$322,2,FALSE)) -> 0 | H49: 0 | K49: =IF(A49="","",I49/$I$50) ->  | R49: =IF(M49="",0,VLOOKUP(M49,Sheet3!$A$282:$D$322,2,FALSE)) -> 0 | T49: 0 | W49: =IF(M49="","",U49/$I$50) ->  | AD49: =IF(Y49="",0,VLOOKUP(Y49,Sheet3!$A$282:$D$322,2,FALSE)) -> 0 | AF49: 0 | AI49: =IF(Y49="","",AG49/$I$50) -> 
A50: Use Extension Recommended varieties | I50: =SUM(I44:I49) -> 108.5399449 | K50: =SUM(K44:K49) -> 1 | M50: Use Extension Recommended varieties | U50: =SUM(U44:U49) -> 63.99706152 | W50: =SUM(W44:W49) -> 1 | Y50: Use Extension Recommended varieties | AG50: =SUM(AG44:AG49) -> 0 | AI50: =SUM(AI44:AI49) -> 0
A55: COOL SEASON INTRODUCED HAY MIXES | M55: WARM SEASON NATIVE HAY MIXES
A57: #1 | M57: #1
A58: Forage Suitability Groups 13 & 14 - Very Poorly to Poorly Drained | M58: Forage Suitability Groups 13 & 14 - Very Poorly to Poorly Drained
A59: Seed Species | D59: Variety or Seed Source | F59: Seeds/lb | G59: PLS Rate Planned | H59: Acres | I59: Seeds/Sqft | J59: Total PLS lbs | K59: % in Mixture | M59: Seed Species | P59: Variety or Seed Source | R59: Seeds/lb | S59: PLS Rate Planned | T59: Acres | U59: Seeds/Sqft | V59: Total PLS lbs | W59: % in Mixture
A63: Timothy | D63: Climax | F63: =IF(A63="",0,VLOOKUP(A63,Sheet3!$A$282:$D$322,2,FALSE)) -> 1230000 | G63: 1 | H63: =$J$9 -> 0 | I63: =IF(A63="","",(F63*G63)/43560) -> 28.2369146 | J63: =IF(A63 = "","",H63*G63) -> 0 | K63: =IF(A63="","",I63/$I$69) -> 0.3208137715 | M63: Big Bluestem | P63: Bison | R63: =IF(M63="",0,VLOOKUP(M63,Sheet3!$A$282:$D$322,2,FALSE)) -> 165000 | S63: 17 | T63: =$J$9 -> 0 | U63: =IF(M63="","",(R63*S63)/43560) -> 64.39393939 | V63: =IF(M63 = "","",T63*S63) -> 0 | W63: =IF(M63="","",U63/$U$69) -> 1
A64: Birdsfoot Trefoil | D64: Roseau | F64: =IF(A64="",0,VLOOKUP(A64,Sheet3!$A$282:$D$322,2,FALSE)) -> 372000 | G64: 7 | H64: 0 | I64: 59.77961433 | J64: 0 | K64: 0.6791862285 | R64: =IF(M64="",0,VLOOKUP(M64,Sheet3!$A$282:$D$322,2,FALSE)) -> 0 | T64: 0
F65: =IF(A65="",0,VLOOKUP(A65,Sheet3!$A$282:$D$322,2,FALSE)) -> 0 | H65: 0 | R65: =IF(M65="",0,VLOOKUP(M65,Sheet3!$A$282:$D$322,2,FALSE)) -> 0 | T65: 0
F66: =IF(A66="",0,VLOOKUP(A66,Sheet3!$A$282:$D$322,2,FALSE)) -> 0 | H66: 0 | R66: =IF(M66="",0,VLOOKUP(M66,Sheet3!$A$282:$D$322,2,FALSE)) -> 0 | T66: 0
F67: =IF(A67="",0,VLOOKUP(A67,Sheet3!$A$282:$D$322,2,FALSE)) -> 0 | H67: 0 | R67: =IF(M67="",0,VLOOKUP(M67,Sheet3!$A$282:$D$322,2,FALSE)) -> 0 | T67: 0
F68: =IF(A68="",0,VLOOKUP(A68,Sheet3!$A$282:$D$322,2,FALSE)) -> 0 | H68: 0 | R68: =IF(M68="",0,VLOOKUP(M68,Sheet3!$A$282:$D$322,2,FALSE)) -> 0 | T68: 0
A69: Use Extension Recommended varieties | D69: For Very Poorly Drained Sites Substitute 2#/ac alsike clover for birdsfoot trefoil, or substitute alsike clover for birdsfoot trefoils where it is considered invasive. | I69: =SUM(I63:I68) -> 88.01652893 | K69: =SUM(K63:K68) -> 1 | M69: Use Extension Recommended varieties | U69: =SUM(U63:U68) -> 64.39393939 | W69: =SUM(W63:W68) -> 1
A72: #2 | M72: #2
A73: Somewhat Poorly to Moderately Well Drained | M73: Somewhat Poorly to Moderately Well Drained
A74: Seed Species | D74: Variety or Seed Source | F74: Seeds/lb | G74: PLS Rate Planned | H74: Acres | I74: Seeds/Sqft | J74: Total PLS lbs | K74: % in Mixture | M74: Seed Species | P74: Variety or Seed Source | R74: Seeds/lb | S74: PLS Rate Planned | T74: Acres | U74: Seeds/Sqft | V74: Total PLS lbs | W74: % in Mixture
A78: Timothy | D78: Climax | F78: =IF(A78="",0,VLOOKUP(A78,Sheet3!$A$282:$D$322,2,FALSE)) -> 1230000 | G78: 0.5 | H78: =$J$9 -> 0 | I78: =IF(A78="","",(F78*G78)/43560) -> 14.1184573 | J78: =IF(A78 = "","",H78*G78) -> 0 | K78: =IF(A78="","",I78/$I$84) -> 0.1347797502 | M78: Big Bluestem | P78: Bison | R78: =IF(M78="",0,VLOOKUP(M78,Sheet3!$A$282:$D$322,2,FALSE)) -> 165000 | S78: 17 | T78: =$J$9 -> 0 | U78: =IF(M78="","",(R78*S78)/43560) -> 64.39393939 | V78: =IF(M78 = "","",T78*S78) -> 0 | W78: =IF(M78="","",U78/U84) -> 1
A79: Orchard grass | D79: Late Maturing | F79: =IF(A79="",0,VLOOKUP(A79,Sheet3!$A$282:$D$322,2,FALSE)) -> 654000 | G79: 2 | H79: 0 | I79: 30.02754821 | J79: 0 | K79: 0.2866535174 | R79: =IF(M79="",0,VLOOKUP(M79,Sheet3!$A$282:$D$322,2,FALSE)) -> 0 | T79: 0
A80: Alfalfa | D80: Recommended | F80: =IF(A80="",0,VLOOKUP(A80,Sheet3!$A$282:$D$322,2,FALSE)) -> 220000 | G80: 12 | H80: 0 | I80: 60.60606061 | J80: 0 | K80: 0.5785667324 | R80: =IF(M80="",0,VLOOKUP(M80,Sheet3!$A$282:$D$322,2,FALSE)) -> 0 | T80: 0
F81: =IF(A81="",0,VLOOKUP(A81,Sheet3!$A$282:$D$322,2,FALSE)) -> 0 | H81: 0 | R81: =IF(M81="",0,VLOOKUP(M81,Sheet3!$A$282:$D$322,2,FALSE)) -> 0 | T81: 0
F82: =IF(A82="",0,VLOOKUP(A82,Sheet3!$A$282:$D$322,2,FALSE)) -> 0 | H82: 0 | R82: =IF(M82="",0,VLOOKUP(M82,Sheet3!$A$282:$D$322,2,FALSE)) -> 0 | T82: 0
F83: =IF(A83="",0,VLOOKUP(A83,Sheet3!$A$282:$D$322,2,FALSE)) -> 0 | H83: 0 | R83: =IF(M83="",0,VLOOKUP(M83,Sheet3!$A$282:$D$322,2,FALSE)) -> 0 | T83: 0
A84: Use Extension Recommended varieties | I84: =SUM(I78:I83) -> 104.7520661 | K84: =SUM(K78:K83) -> 1 | M84: Use Extension Recommended varieties | U84: =SUM(U78:U83) -> 64.39393939 | W84: =SUM(W78:W83) -> 1
A86: #3 | M86: #3
A87: Somewhat Excessively to Excessively Drained Soils | M87: Somewhat Excessively to Excessively Drained Soils
A88: Seed Species | D88: Variety or Seed Source | F88: Seeds/lb | G88: PLS Rate Planned | H88: Acres | I88: Seeds/Sqft | J88: Total PLS lbs | K88: % in Mixture | M88: Seed Species | P88: Variety or Seed Source | R88: Seeds/lb | S88: PLS Rate Planned | T88: Acres | U88: Seeds/Sqft | V88: Total PLS lbs | W88: % in Mixture
A92: Intermediate Wheatgrass | D92: Revenue | F92: =IF(A92="",0,VLOOKUP(A92,Sheet3!$A$282:$D$322,2,FALSE)) -> 88000 | G92: 10 | H92: =$J$9 -> 0 | I92: =IF(A92="","",(F92*G92)/43560) -> 20.2020202 | J92: =IF(A92 = "","",H92*G92) -> 0 | K92: =IF(A92="","",I92/$I$98) -> 0.2222222222 | M92: Big Bluestem | P92: Bison | R92: =IF(M92="",0,VLOOKUP(M92,Sheet3!$A$282:$D$322,2,FALSE)) -> 165000 | S92: 17 | T92: =$J$9 -> 0 | U92: =IF(M92="","",(R92*S92)/43560) -> 64.39393939 | V92: =IF(M92 = "","",T92*S92) -> 0 | W92: =IF(M92="","",U92/$U$98) -> 1
A93: Alfalfa | D93: Recommended | F93: =IF(A93="",0,VLOOKUP(A93,Sheet3!$A$282:$D$322,2,FALSE)) -> 220000 | G93: 14 | H93: 0 | I93: 70.70707071 | J93: 0 | K93: 0.7777777778 | R93: =IF(M93="",0,VLOOKUP(M93,Sheet3!$A$282:$D$322,2,FALSE)) -> 0 | T93: 0
F94: =IF(A94="",0,VLOOKUP(A94,Sheet3!$A$282:$D$322,2,FALSE)) -> 0 | H94: 0 | R94: =IF(M94="",0,VLOOKUP(M94,Sheet3!$A$282:$D$322,2,FALSE)) -> 0 | T94: 0
F95: =IF(A95="",0,VLOOKUP(A95,Sheet3!$A$282:$D$322,2,FALSE)) -> 0 | H95: 0 | R95: =IF(M95="",0,VLOOKUP(M95,Sheet3!$A$282:$D$322,2,FALSE)) -> 0 | T95: 0
F96: =IF(A96="",0,VLOOKUP(A96,Sheet3!$A$282:$D$322,2,FALSE)) -> 0 | H96: 0 | R96: =IF(M96="",0,VLOOKUP(M96,Sheet3!$A$282:$D$322,2,FALSE)) -> 0 | T96: 0
F97: =IF(A97="",0,VLOOKUP(A97,Sheet3!$A$282:$D$322,2,FALSE)) -> 0 | H97: 0 | R97: =IF(M97="",0,VLOOKUP(M97,Sheet3!$A$282:$D$322,2,FALSE)) -> 0 | T97: 0
A98: Use Extension Recommended varieties | I98: =SUM(I92:I97) -> 90.90909091 | K98: =SUM(K92:K97) -> 1 | M98: Use Extension Recommended varieties | U98: =SUM(U92:U97) -> 64.39393939 | W98: =SUM(W92:W97) -> 1
A103: Area 2
A104: COOL SEASON INTRODUCED PASTURE MIXES | M104: WARM SEASON NATIVE PASTURE MIXES | Y104: HORSE AND SHEEP PASTURE MIXES
A106: #1 | M106: #1 | Y106: #1
A107: Forage Suitability Groups 13 & 14 - Very Poorly to Poorly Drained | M107: Forage Suitability Groups 13 & 14 - Very Poorly to Poorly Drained | Y107: Forage Suitability Groups 13 & 14 - Very Poorly to Poorly Drained
A108: Seed Species | D108: Variety or Seed Source | F108: Seeds/lb | G108: PLS Rate Planned | H108: Acres | I108: Seeds/Sqft | J108: Total PLS lbs | K108: % in Mixture | M108: Seed Species | P108: Variety or Seed Source | R108: Seeds/lb | S108: PLS Rate Planned | T108: Acres | U108: Seeds/Sqft | V108: Total PLS lbs | W108: % in Mixture | Y108: Seed Species | AB108: Variety or Seed Source | AD108: Seeds/lb | AE108: PLS Rate Planned | AF108: Acres | AG108: Seeds/Sqft | AH108: Total PLS lbs | AI108: % in Mixture
A112: Creeping Foxtail | D112: Garrison | F112: =IF(A112="",0,VLOOKUP(A112,Sheet3!$A$282:$D$322,2,FALSE)) -> 900000 | G112: 2 | H112: =$J$9 -> 0 | I112: =IF(A112="","",(F112*G112)/43560) -> 41.32231405 | J112: =IF(A112 = "","",H112*G112) -> 0 | K112: =IF(A112="","",I112/$I$118) -> 0.4056795132 | M112: Big Bluestem | P112: Bison | R112: =IF(M112="",0,VLOOKUP(M112,Sheet3!$A$282:$D$322,2,FALSE)) -> 165000 | S112: 8 | T112: =$J$9 -> 0 | U112: =IF(M112="","",(R112*S112)/43560) -> 30.3030303 | V112: =IF(M112 = "","",T112*S112) -> 0 | W112: =IF(M112="","",U112/$U$118) -> 0.4559585492 | AD112: =IF(Y112="",0,VLOOKUP(Y112,Sheet3!$A$282:$D$322,2,FALSE)) -> 0 | AF112: =$J$9 -> 0 | AG112: =IF(Y112="","",(AD112*AE112)/43560) ->  | AH112: =IF(Y112 = "","",AF112*AE112) ->  | AI112: =IF(Y112="","",AG112/$AG$118) -> 
A113: Timothy | D113: Climax | F113: =IF(A113="",0,VLOOKUP(A113,Sheet3!$A$282:$D$322,2,FALSE)) -> 1230000 | G113: 0.5 | H113: 0 | I113: 14.1184573 | J113: 0 | K113: 0.138607167 | M113: Indiangrass | P113: Tomahawk | R113: =IF(M113="",0,VLOOKUP(M113,Sheet3!$A$282:$D$322,2,FALSE)) -> 175000 | S113: 9 | T113: 0 | U113: 36.15702479 | V113: 0 | W113: 0.5440414508 | AD113: =IF(Y113="",0,VLOOKUP(Y113,Sheet3!$A$282:$D$322,2,FALSE)) -> 0 | AF113: 0
A114: Meadow Fescue | D114: Pradel | F114: =IF(A114="",0,VLOOKUP(A114,Sheet3!$A$282:$D$322,2,FALSE)) -> 230000 | G114: 2 | H114: 0 | I114: 10.56014692 | J114: 0 | K114: 0.1036736534 | R114: =IF(M114="",0,VLOOKUP(M114,Sheet3!$A$282:$D$322,2,FALSE)) -> 0 | T114: 0 | AD114: =IF(Y114="",0,VLOOKUP(Y114,Sheet3!$A$282:$D$322,2,FALSE)) -> 0 | AF114: 0
A115: Alsike Clover | D115: locally adapted | F115: =IF(A115="",0,VLOOKUP(A115,Sheet3!$A$282:$D$322,2,FALSE)) -> 700000 | G115: 1.7 | H115: 0 | I115: 27.31864096 | J115: 0 | K115: 0.2681992337 | R115: =IF(M115="",0,VLOOKUP(M115,Sheet3!$A$282:$D$322,2,FALSE)) -> 0 | T115: 0 | AD115: =IF(Y115="",0,VLOOKUP(Y115,Sheet3!$A$282:$D$322,2,FALSE)) -> 0 | AF115: 0
A116: Birdsfoot Trefoil | D116: Roseau | F116: =IF(A116="",0,VLOOKUP(A116,Sheet3!$A$282:$D$322,2,FALSE)) -> 372000 | G116: 1 | H116: 0 | I116: 8.539944904 | J116: 0 | K116: 0.08384043272 | R116: =IF(M116="",0,VLOOKUP(M116,Sheet3!$A$282:$D$322,2,FALSE)) -> 0 | T116: 0 | AD116: =IF(Y116="",0,VLOOKUP(Y116,Sheet3!$A$282:$D$322,2,FALSE)) -> 0 | AF116: 0
F117: =IF(A117="",0,VLOOKUP(A117,Sheet3!$A$282:$D$322,2,FALSE)) -> 0 | H117: 0 | R117: =IF(M117="",0,VLOOKUP(M117,Sheet3!$A$282:$D$322,2,FALSE)) -> 0 | T117: 0 | AD117: =IF(Y117="",0,VLOOKUP(Y117,Sheet3!$A$282:$D$322,2,FALSE)) -> 0 | AF117: 0
A118: Use Extension Recommended varieties | D118: For Very Poorly Drained Sites Substitute 2#/ac alsike clover for birdsfoot trefoil, or substitute alsike clover for birdsfoot trefoils where it is considered invasive. | I118: =SUM(I112:I117) -> 101.8595041 | K118: =SUM(K112:K117) -> 1 | M118: Use Extension Recommended varieties | U118: =SUM(U112:U117) -> 66.4600551 | W118: =SUM(W112:W117) -> 1 | Y118: Use Extension Recommended varieties | AG118: =SUM(AG112:AG117) -> 0 | AI118: =SUM(AI112:AI117) -> 0
A121: #2 | M121: #2 | Y121: #2
A122: Somewhat Poorly to Moderately Well Drained | M122: Somewhat Poorly to Moderately Well Drained | Y122: Somewhat Poorly to Moderately Well Drained
A123: Seed Species | D123: Variety or Seed Source | F123: Seeds/lb | G123: PLS Rate Planned | H123: Acres | I123: Seeds/Sqft | J123: Total PLS lbs | K123: % in Mixture | M123: Seed Species | P123: Variety or Seed Source | R123: Seeds/lb | S123: PLS Rate Planned | T123: Acres | U123: Seeds/Sqft | V123: Total PLS lbs | W123: % in Mixture | Y123: Seed Species | AB123: Variety or Seed Source | AD123: Seeds/lb | AE123: PLS Rate Planned | AF123: Acres | AG123: Seeds/Sqft | AH123: Total PLS lbs | AI123: % in Mixture
A127: Meadow Bromegrass | D127: Fleet | F127: =IF(A127="",0,VLOOKUP(A127,Sheet3!$A$282:$D$322,2,FALSE)) -> 80000 | G127: 15 | H127: =$J$9 -> 0 | I127: =IF(A127="","",(F127*G127)/43560) -> 27.54820937 | J127: =IF(A127 = "","",H127*G127) -> 0 | K127: =IF(A127="","",I127/$I$134) -> 0.2435658034 | M127: Big Bluestem | P127: Bison | R127: =IF(M127="",0,VLOOKUP(M127,Sheet3!$A$282:$D$322,2,FALSE)) -> 165000 | S127: 8 | T127: =$J$9 -> 0 | U127: =IF(M127="","",(R127*S127)/43560) -> 30.3030303 | V127: =IF(M127 = "","",T127*S127) -> 0 | W127: =IF(M127="","",U127/$U$133) -> 0.4559585492 | AD127: =IF(Y127="",0,VLOOKUP(Y127,Sheet3!$A$282:$D$322,2,FALSE)) -> 0 | AF127: =$J$9 -> 0 | AG127: =IF(Y127="","",(AD127*AE127)/43560) ->  | AH127: =IF(Y127 = "","",AF127*AE127) ->  | AI127: =IF(Y127="","",AG127/$AG$133) -> 
A128: Timothy | D128: Climax | F128: =IF(A128="",0,VLOOKUP(A128,Sheet3!$A$282:$D$322,2,FALSE)) -> 1230000 | G128: 0.5 | H128: =$J$9 -> 0 | I128: =IF(A128="","",(F128*G128)/43560) -> 14.1184573 | J128: =IF(A128 = "","",H128*G128) -> 0 | K128: =IF(A128="","",I128/$I$134) -> 0.1248274742 | M128: Indiangrass | P128: Tomahawk | R128: =IF(M128="",0,VLOOKUP(M128,Sheet3!$A$282:$D$322,2,FALSE)) -> 175000 | S128: 9 | T128: 0 | U128: 36.15702479 | V128: 0 | W128: 0.5440414508 | AD128: =IF(Y128="",0,VLOOKUP(Y128,Sheet3!$A$282:$D$322,2,FALSE)) -> 0 | AF128: 0
A129: Orchard grass | D129: Orion | F129: =IF(A129="",0,VLOOKUP(A129,Sheet3!$A$282:$D$322,2,FALSE)) -> 654000 | G129: 0.7 | H129: 0 | I129: 10.50964187 | J129: 0 | K129: 0.09292035398 | R129: =IF(M129="",0,VLOOKUP(M129,Sheet3!$A$282:$D$322,2,FALSE)) -> 0 | T129: 0 | AD129: =IF(Y129="",0,VLOOKUP(Y129,Sheet3!$A$282:$D$322,2,FALSE)) -> 0 | AF129: 0
A130: Meadow Fescue | D130: Pradel | F130: =IF(A130="",0,VLOOKUP(A130,Sheet3!$A$282:$D$322,2,FALSE)) -> 230000 | G130: 2 | H130: 0 | I130: 10.56014692 | J130: 0 | K130: 0.09336689129 | R130: =IF(M130="",0,VLOOKUP(M130,Sheet3!$A$282:$D$322,2,FALSE)) -> 0 | T130: 0 | AD130: =IF(Y130="",0,VLOOKUP(Y130,Sheet3!$A$282:$D$322,2,FALSE)) -> 0 | AF130: 0
A131: Red Clover | D131: Medium | F131: =IF(A131="",0,VLOOKUP(A131,Sheet3!$A$282:$D$322,2,FALSE)) -> 275000 | G131: 4 | H131: 0 | I131: 25.25252525 | J131: 0 | K131: 0.2232686531 | R131: =IF(M131="",0,VLOOKUP(M131,Sheet3!$A$282:$D$322,2,FALSE)) -> 0 | T131: 0 | AD131: =IF(Y131="",0,VLOOKUP(Y131,Sheet3!$A$282:$D$322,2,FALSE)) -> 0 | AF131: 0
A132: Alsike Clover | D132: locally adapted | F132: =IF(A132="",0,VLOOKUP(A132,Sheet3!$A$282:$D$322,2,FALSE)) -> 700000 | G132: 0.5 | H132: 0 | I132: 8.034894399 | J132: 0 | K132: 0.07104002598 | R132: =IF(M132="",0,VLOOKUP(M132,Sheet3!$A$282:$D$322,2,FALSE)) -> 0 | T132: 0 | AD132: =IF(Y132="",0,VLOOKUP(Y132,Sheet3!$A$282:$D$322,2,FALSE)) -> 0 | AF132: 0
A133: Birdsfoot Trefoil | D133: Roseau | F133: =IF(A133="",0,VLOOKUP(A133,Sheet3!$A$282:$D$322,2,FALSE)) -> 372000 | G133: 2 | H133: 0 | I133: 17.07988981 | J133: 0 | K133: 0.1510107981 | M133: Use Extension Recommended varieties | U133: =SUM(U127:U132) -> 66.4600551 | W133: =SUM(W127:W132) -> 1 | Y133: Use Extension Recommended varieties | AG133: =SUM(AG127:AG132) -> 0 | AI133: =SUM(AI127:AI132) -> 0
A134: Use Extension Recommended varieties | I134: =SUM(I127:I133) -> 113.1037649 | K134: =SUM(K127:K133) -> 1
A135: #3 | M135: #3 | Y135: #3
A136: Somewhat Excessively to Excessively Drained Soils | M136: Somewhat Excessively to Excessively Drained Soils | Y136: Somewhat Excessively to Excessively Drained Soils
A137: Seed Species | D137: Variety or Seed Source | F137: Seeds/lb | G137: PLS Rate Planned | H137: Acres | I137: Seeds/Sqft | J137: Total PLS lbs | K137: % in Mixture | M137: Seed Species | P137: Variety or Seed Source | R137: Seeds/lb | S137: PLS Rate Planned | T137: Acres | U137: Seeds/Sqft | V137: Total PLS lbs | W137: % in Mixture | Y137: Seed Species | AB137: Variety or Seed Source | AD137: Seeds/lb | AE137: PLS Rate Planned | AF137: Acres | AG137: Seeds/Sqft | AH137: Total PLS lbs | AI137: % in Mixture
A141: Meadow Bromegrass | D141: Fleet | F141: =IF(A141="",0,VLOOKUP(A141,Sheet3!$A$282:$D$322,2,FALSE)) -> 80000 | G141: 17 | H141: =$J$9 -> 0 | I141: =IF(A141="","",(F141*G141)/43560) -> 31.22130395 | J141: =IF(A141 = "","",H141*G141) -> 0 | K141: =IF(A141="","",I141/$I$148) -> 0.2767602768 | M141: Big Bluestem | P141: Bison | R141: =IF(M141="",0,VLOOKUP(M141,Sheet3!$A$282:$D$322,2,FALSE)) -> 165000 | S141: 6 | T141: =$J$9 -> 0 | U141: =IF(M141="","",(R141*S141)/43560) -> 22.72727273 | V141: =IF(M141 = "","",T141*S141) -> 0 | W141: =IF(M141="","",U141/$U$147) -> 0.3551299417 | AD141: =IF(Y141="",0,VLOOKUP(Y141,Sheet3!$A$282:$D$322,2,FALSE)) -> 0 | AF141: =$J$9 -> 0 | AG141: =IF(Y141="","",(AD141*AE141)/43560) ->  | AH141: =IF(Y141 = "","",AF141*AE141) ->  | AI141: =IF(Y141="","",AG141/$AG$147) -> 
A142: Intermediate Wheatgrass | D142: Reliant | F142: =IF(A142="",0,VLOOKUP(A142,Sheet3!$A$282:$D$322,2,FALSE)) -> 88000 | G142: 5 | H142: =$J$9 -> 0 | I142: =IF(A142="","",(F142*G142)/43560) -> 10.1010101 | J142: =IF(A142 = "","",H142*G142) -> 0 | K142: =IF(A142="","",I142/$I$148) -> 0.08954008954 | M142: Indiangrass | P142: Tomahawk | R142: =IF(M142="",0,VLOOKUP(M142,Sheet3!$A$282:$D$322,2,FALSE)) -> 175000 | S142: 4 | T142: 0 | U142: 16.0697888 | V142: 0 | W142: 0.251101979 | AD142: =IF(Y142="",0,VLOOKUP(Y142,Sheet3!$A$282:$D$322,2,FALSE)) -> 0 | AF142: 0
A143: Orchard grass | D143: Orion | F143: =IF(A143="",0,VLOOKUP(A143,Sheet3!$A$282:$D$322,2,FALSE)) -> 654000 | G143: 0.5 | H143: 0 | I143: 7.506887052 | J143: 0 | K143: 0.06654456654 | M143: Little Bluestem | P143: Itasca germplasm | R143: =IF(M143="",0,VLOOKUP(M143,Sheet3!$A$282:$D$322,2,FALSE)) -> 261360 | S143: 2 | T143: 0 | U143: 12 | V143: 0 | W143: 0.1875086092 | AD143: =IF(Y143="",0,VLOOKUP(Y143,Sheet3!$A$282:$D$322,2,FALSE)) -> 0 | AF143: 0
A144: Tall Fescue | D144: Fawn | F144: =IF(A144="",0,VLOOKUP(A144,Sheet3!$A$282:$D$322,2,FALSE)) -> 227000 | G144: 3 | H144: 0 | I144: 15.63360882 | J144: 0 | K144: 0.1385836386 | M144: Sideoats Grama | P144: Killdeer | R144: =IF(M144="",0,VLOOKUP(M144,Sheet3!$A$282:$D$322,2,FALSE)) -> 191664 | S144: 3 | T144: 0 | U144: 13.2 | V144: 0 | W144: 0.2062594701 | AD144: =IF(Y144="",0,VLOOKUP(Y144,Sheet3!$A$282:$D$322,2,FALSE)) -> 0 | AF144: 0
A145: Birdsfoot Trefoil | D145: Roseau | F145: =IF(A145="",0,VLOOKUP(A145,Sheet3!$A$282:$D$322,2,FALSE)) -> 372000 | G145: 3 | H145: 0 | I145: 25.61983471 | J145: 0 | K145: 0.2271062271 | R145: =IF(M145="",0,VLOOKUP(M145,Sheet3!$A$282:$D$322,2,FALSE)) -> 0 | T145: 0 | AD145: =IF(Y145="",0,VLOOKUP(Y145,Sheet3!$A$282:$D$322,2,FALSE)) -> 0 | AF145: 0
A146: Alfalfa | D146: grazing type | F146: =IF(A146="",0,VLOOKUP(A146,Sheet3!$A$282:$D$322,2,FALSE)) -> 220000 | G146: 2 | H146: 0 | I146: 10.1010101 | J146: 0 | K146: 0.08954008954 | R146: =IF(M146="",0,VLOOKUP(M146,Sheet3!$A$282:$D$322,2,FALSE)) -> 0 | T146: 0 | AD146: =IF(Y146="",0,VLOOKUP(Y146,Sheet3!$A$282:$D$322,2,FALSE)) -> 0 | AF146: 0
A147: Red Clover | D147: Medium | F147: =IF(A147="",0,VLOOKUP(A147,Sheet3!$A$282:$D$322,2,FALSE)) -> 275000 | G147: 2 | H147: 0 | I147: 12.62626263 | J147: 0 | K147: 0.1119251119 | M147: Use Extension Recommended varieties | U147: =SUM(U141:U146) -> 63.99706152 | W147: =SUM(W141:W146) -> 1 | Y147: Use Extension Recommended varieties | AG147: =SUM(AG141:AG146) -> 0 | AI147: =SUM(AI141:AI146) -> 0
A148: Use Extension Recommended varieties | I148: =SUM(I141:I147) -> 112.8099174 | K148: =SUM(K141:K147) -> 1
A152: COOL SEASON INTRODUCED HAY MIXES | M152: WARM SEASON NATIVE HAY MIXES
A154: #1 | M154: #1
A155: Forage Suitability Groups 13 & 14 - Very Poorly to Poorly Drained | M155: Forage Suitability Groups 13 & 14 - Very Poorly to Poorly Drained
A156: Seed Species | D156: Variety or Seed Source | F156: Seeds/lb | G156: PLS Rate Planned | H156: Acres | I156: Seeds/Sqft | J156: Total PLS lbs | K156: % in Mixture | M156: Seed Species | P156: Variety or Seed Source | R156: Seeds/lb | S156: PLS Rate Planned | T156: Acres | U156: Seeds/Sqft | V156: Total PLS lbs | W156: % in Mixture
A160: Creeping Foxtail | D160: Garrison | F160: =IF(A160="",0,VLOOKUP(A160,Sheet3!$A$282:$D$322,2,FALSE)) -> 900000 | G160: 1 | H160: =$J$9 -> 0 | I160: =IF(A160="","",(F160*G160)/43560) -> 20.66115702 | J160: =IF(A160 = "","",H160*G160) -> 0 | K160: =IF(A160="","",I160/$I$166) -> 0.2432432432 | M160: Big Bluestem | P160: Bison | R160: =IF(M160="",0,VLOOKUP(M160,Sheet3!$A$282:$D$322,2,FALSE)) -> 165000 | S160: 17 | T160: =$J$9 -> 0 | U160: =IF(M160="","",(R160*S160)/43560) -> 64.39393939 | V160: =IF(M160 = "","",T160*S160) -> 0 | W160: =IF(M160="","",U160/$U$166) -> 1
A161: Alsike Clover | D161: medium | F161: =IF(A161="",0,VLOOKUP(A161,Sheet3!$A$282:$D$322,2,FALSE)) -> 700000 | G161: 4 | H161: 0 | I161: 64.27915519 | J161: 0 | K161: 0.7567567568 | R161: =IF(M161="",0,VLOOKUP(M161,Sheet3!$A$282:$D$322,2,FALSE)) -> 0 | T161: 0
F162: =IF(A162="",0,VLOOKUP(A162,Sheet3!$A$282:$D$322,2,FALSE)) -> 0 | H162: 0 | R162: =IF(M162="",0,VLOOKUP(M162,Sheet3!$A$282:$D$322,2,FALSE)) -> 0 | T162: 0
F163: =IF(A163="",0,VLOOKUP(A163,Sheet3!$A$282:$D$322,2,FALSE)) -> 0 | H163: 0 | R163: =IF(M163="",0,VLOOKUP(M163,Sheet3!$A$282:$D$322,2,FALSE)) -> 0 | T163: 0
F164: =IF(A164="",0,VLOOKUP(A164,Sheet3!$A$282:$D$322,2,FALSE)) -> 0 | H164: 0 | R164: =IF(M164="",0,VLOOKUP(M164,Sheet3!$A$282:$D$322,2,FALSE)) -> 0 | T164: 0
F165: =IF(A165="",0,VLOOKUP(A165,Sheet3!$A$282:$D$322,2,FALSE)) -> 0 | H165: 0 | R165: =IF(M165="",0,VLOOKUP(M165,Sheet3!$A$282:$D$322,2,FALSE)) -> 0 | T165: 0
A166: Use Extension Recommended varieties | D166: For Very Poorly Drained Sites Substitute 2#/ac alsike clover for birdsfoot trefoil, or substitute alsike clover for birdsfoot trefoils where it is considered invasive. | I166: =SUM(I160:I165) -> 84.94031221 | K166: =SUM(K160:K165) -> 1 | M166: Use Extension Recommended varieties | U166: =SUM(U160:U165) -> 64.39393939 | W166: =SUM(W160:W165) -> 1
A169: #2 | M169: #2
A170: Somewhat Poorly to Moderately Well Drained | M170: Somewhat Poorly to Moderately Well Drained
A171: Seed Species | D171: Variety or Seed Source | F171: Seeds/lb | G171: PLS Rate Planned | H171: Acres | I171: Seeds/Sqft | J171: Total PLS lbs | K171: % in Mixture | M171: Seed Species | P171: Variety or Seed Source | R171: Seeds/lb | S171: PLS Rate Planned | T171: Acres | U171: Seeds/Sqft | V171: Total PLS lbs | W171: % in Mixture
A175: Smooth Bromegrass | D175: locally adapted | F175: =IF(A175="",0,VLOOKUP(A175,Sheet3!$A$282:$D$322,2,FALSE)) -> 136000 | G175: 4 | H175: =$J$9 -> 0 | I175: =IF(A175="","",(F175*G175)/43560) -> 12.48852158 | J175: =IF(A175 = "","",H175*G175) -> 0 | K175: =IF(A175="","",I175/$I$181) -> 0.1357963055 | M175: Big Bluestem | P175: Bison | R175: =IF(M175="",0,VLOOKUP(M175,Sheet3!$A$282:$D$322,2,FALSE)) -> 165000 | S175: 17 | T175: =$J$9 -> 0 | U175: =IF(M175="","",(R175*S175)/43560) -> 64.39393939 | V175: =IF(M175 = "","",T175*S175) -> 0 | W175: =IF(M175="","",U175/$U$181) -> 1
A176: Orchard grass | D176: Late maturing | F176: =IF(A176="",0,VLOOKUP(A176,Sheet3!$A$282:$D$322,2,FALSE)) -> 654000 | G176: 0.5 | H176: 0 | I176: 7.506887052 | J176: 0 | K176: 0.08162755866 | R176: =IF(M176="",0,VLOOKUP(M176,Sheet3!$A$282:$D$322,2,FALSE)) -> 0 | T176: 0
A177: Alfalfa | D177: recommended | F177: =IF(A177="",0,VLOOKUP(A177,Sheet3!$A$282:$D$322,2,FALSE)) -> 220000 | G177: 8 | H177: 0 | I177: 40.4040404 | J177: 0 | K177: 0.4393409885 | R177: =IF(M177="",0,VLOOKUP(M177,Sheet3!$A$282:$D$322,2,FALSE)) -> 0 | T177: 0
A178: Red Clover | D178: mamoth | F178: =IF(A178="",0,VLOOKUP(A178,Sheet3!$A$282:$D$322,2,FALSE)) -> 275000 | G178: 5 | H178: 0 | I178: 31.56565657 | J178: 0 | K178: 0.3432351473 | R178: =IF(M178="",0,VLOOKUP(M178,Sheet3!$A$282:$D$322,2,FALSE)) -> 0 | T178: 0
F179: =IF(A179="",0,VLOOKUP(A179,Sheet3!$A$282:$D$322,2,FALSE)) -> 0 | H179: 0 | R179: =IF(M179="",0,VLOOKUP(M179,Sheet3!$A$282:$D$322,2,FALSE)) -> 0 | T179: 0
F180: =IF(A180="",0,VLOOKUP(A180,Sheet3!$A$282:$D$322,2,FALSE)) -> 0 | H180: 0 | R180: =IF(M180="",0,VLOOKUP(M180,Sheet3!$A$282:$D$322,2,FALSE)) -> 0 | T180: 0
A181: Use Extension Recommended varieties | I181: =SUM(I175:I180) -> 91.9651056 | K181: =SUM(K175:K180) -> 1 | M181: Use Extension Recommended varieties | U181: =SUM(U175:U180) -> 64.39393939 | W181: =SUM(W175:W180) -> 1
A183: #3 | M183: #3
A184: Somewhat Excessively to Excessively Drained Soils | M184: Somewhat Excessively to Excessively Drained Soils
A185: Seed Species | D185: Variety or Seed Source | F185: Seeds/lb | G185: PLS Rate Planned | H185: Acres | I185: Seeds/Sqft | J185: Total PLS lbs | K185: % in Mixture | M185: Seed Species | P185: Variety or Seed Source | R185: Seeds/lb | S185: PLS Rate Planned | T185: Acres | U185: Seeds/Sqft | V185: Total PLS lbs | W185: % in Mixture
A189: Intermediate Wheatgrass | D189: Reliant | F189: =IF(A189="",0,VLOOKUP(A189,Sheet3!$A$282:$D$322,2,FALSE)) -> 88000 | G189: 8 | H189: =$J$9 -> 0 | I189: =IF(A189="","",(F189*G189)/43560) -> 16.16161616 | J189: =IF(A189 = "","",H189*G189) -> 0 | K189: =IF(A189="","",I189/$I$196) -> 0.1975308642 | M189: Big Bluestem | P189: Bison | R189: =IF(M189="",0,VLOOKUP(M189,Sheet3!$A$282:$D$322,2,FALSE)) -> 165000 | S189: 17 | T189: =$J$9 -> 0 | U189: =IF(M189="","",(R189*S189)/43560) -> 64.39393939 | V189: =IF(M189 = "","",T189*S189) -> 0 | W189: =IF(M189="","",U189/$U$196) -> 1
A190: Alfalfa | D190: Recommended | F190: =IF(A190="",0,VLOOKUP(A190,Sheet3!$A$282:$D$322,2,FALSE)) -> 220000 | G190: 13 | H190: =$J$9 -> 0 | I190: =IF(A190="","",(F190*G190)/43560) -> 65.65656566 | J190: =IF(A190 = "","",H190*G190) -> 0 | K190: =IF(A190="","",I190/$I$196) -> 0.8024691358 | R190: =IF(M190="",0,VLOOKUP(M190,Sheet3!$A$282:$D$322,2,FALSE)) -> 0 | T190: =$J$9 -> 0 | U190: =IF(M190="","",(R190*S190)/43560) ->  | V190: =IF(M190 = "","",T190*S190) ->  | W190: =IF(M190="","",U190/$U$196) -> 
F191: =IF(A191="",0,VLOOKUP(A191,Sheet3!$A$282:$D$322,2,FALSE)) -> 0 | H191: 0 | R191: =IF(M191="",0,VLOOKUP(M191,Sheet3!$A$282:$D$322,2,FALSE)) -> 0 | T191: 0
F192: =IF(A192="",0,VLOOKUP(A192,Sheet3!$A$282:$D$322,2,FALSE)) -> 0 | H192: 0 | R192: =IF(M192="",0,VLOOKUP(M192,Sheet3!$A$282:$D$322,2,FALSE)) -> 0 | T192: 0
F193: =IF(A193="",0,VLOOKUP(A193,Sheet3!$A$282:$D$322,2,FALSE)) -> 0 | H193: 0 | R193: =IF(M193="",0,VLOOKUP(M193,Sheet3!$A$282:$D$322,2,FALSE)) -> 0 | T193: 0
F194: =IF(A194="",0,VLOOKUP(A194,Sheet3!$A$282:$D$322,2,FALSE)) -> 0 | H194: 0 | R194: =IF(M194="",0,VLOOKUP(M194,Sheet3!$A$282:$D$322,2,FALSE)) -> 0 | T194: 0
F195: =IF(A195="",0,VLOOKUP(A195,Sheet3!$A$282:$D$322,2,FALSE)) -> 0 | H195: 0 | R195: =IF(M195="",0,VLOOKUP(M195,Sheet3!$A$282:$D$322,2,FALSE)) -> 0 | T195: 0
A196: Use Extension Recommended varieties | I196: =SUM(I189:I195) -> 81.81818182 | K196: =SUM(K190:K195) -> 0.8024691358 | M196: Use Extension Recommended varieties | U196: =SUM(U189:U195) -> 64.39393939 | W196: =SUM(W190:W195) -> 0
A200: Area 3
A201: COOL SEASON INTRODUCED PASTURE MIXES | M201: WARM SEASON NATIVE PASTURE MIXES | Y201: HORSE AND SHEEP PASTURE MIXES
A203: #1 | M203: #1 | Y203: #1
A204: Forage Suitability Groups 13 & 14 - Very Poorly to Poorly Drained | M204: Forage Suitability Groups 13 & 14 - Very Poorly to Poorly Drained | Y204: Forage Suitability Groups 13 & 14 - Very Poorly to Poorly Drained
A205: Seed Species | D205: Variety or Seed Source | F205: Seeds/lb | G205: PLS Rate Planned | H205: Acres | I205: Seeds/Sqft | J205: Total PLS lbs | K205: % in Mixture | M205: Seed Species | P205: Variety or Seed Source | R205: Seeds/lb | S205: PLS Rate Planned | T205: Acres | U205: Seeds/Sqft | V205: Total PLS lbs | W205: % in Mixture | Y205: Seed Species | AB205: Variety or Seed Source | AD205: Seeds/lb | AE205: PLS Rate Planned | AF205: Acres | AG205: Seeds/Sqft | AH205: Total PLS lbs | AI205: % in Mixture
A209: Creeping Foxtail | D209: Garrison | F209: =IF(A209="",0,VLOOKUP(A209,Sheet3!$A$282:$D$322,2,FALSE)) -> 900000 | G209: 1.5 | H209: =$J$9 -> 0 | I209: =IF(A209="","",(F209*G209)/43560) -> 30.99173554 | J209: =IF(A209 = "","",H209*G209) -> 0 | K209: =IF(A209="","",I209/$I$215) -> 0.3469545104 | M209: Big Bluestem | P209: Bison | R209: =IF(M209="",0,VLOOKUP(M209,Sheet3!$A$282:$D$322,2,FALSE)) -> 165000 | S209: 8 | T209: =$J$9 -> 0 | U209: =IF(M209="","",(R209*S209)/43560) -> 30.3030303 | V209: =IF(M209 = "","",T209*S209) -> 0 | W209: =IF(M209="","",U209/$U$215) -> 0.4559585492 | Y209: Meadow Bromegrass | AB209: Fleet | AD209: =IF(Y209="",0,VLOOKUP(Y209,Sheet3!$A$282:$D$322,2,FALSE)) -> 80000 | AE209: 20 | AF209: =$J$9 -> 0 | AG209: =IF(Y209="","",(AD209*AE209)/43560) -> 36.73094582 | AH209: =IF(Y209 = "","",AF209*AE209) -> 0 | AI209: =IF(Y209="","",AG209/$AG$215) -> 0.4312668464
A210: Timothy | D210: Climax | F210: =IF(A210="",0,VLOOKUP(A210,Sheet3!$A$282:$D$322,2,FALSE)) -> 1230000 | G210: 0.5 | H210: 0 | I210: 14.1184573 | J210: 0 | K210: 0.1580570547 | M210: Indiangrass | P210: Tomahawk | R210: =IF(M210="",0,VLOOKUP(M210,Sheet3!$A$282:$D$322,2,FALSE)) -> 175000 | S210: 9 | T210: 0 | U210: 36.15702479 | V210: 0 | W210: 0.5440414508 | Y210: Timothy | AB210: Climax | AD210: =IF(Y210="",0,VLOOKUP(Y210,Sheet3!$A$282:$D$322,2,FALSE)) -> 1230000 | AE210: 1 | AF210: 0 | AG210: 28.2369146 | AH210: 0 | AI210: 0.3315363881
A211: Reed Canary Grass | D211: low alkaloid | F211: =IF(A211="",0,VLOOKUP(A211,Sheet3!$A$282:$D$322,2,FALSE)) -> 526000 | G211: 1 | H211: 0 | I211: 12.07529844 | J211: 0 | K211: 0.1351837574 | R211: =IF(M211="",0,VLOOKUP(M211,Sheet3!$A$282:$D$322,2,FALSE)) -> 0 | T211: 0 | Y211: Alfalfa | AB211: grazing type | AD211: =IF(Y211="",0,VLOOKUP(Y211,Sheet3!$A$282:$D$322,2,FALSE)) -> 220000 | AE211: 4 | AF211: 0 | AG211: 20.2020202 | AH211: 0 | AI211: 0.2371967655
A212: Alsike Clover | D212: locally adapted | F212: =IF(A212="",0,VLOOKUP(A212,Sheet3!$A$282:$D$322,2,FALSE)) -> 700000 | G212: 2 | H212: 0 | I212: 32.13957759 | J212: 0 | K212: 0.3598046775 | R212: =IF(M212="",0,VLOOKUP(M212,Sheet3!$A$282:$D$322,2,FALSE)) -> 0 | T212: 0 | AD212: =IF(Y212="",0,VLOOKUP(Y212,Sheet3!$A$282:$D$322,2,FALSE)) -> 0 | AF212: 0
F213: =IF(A213="",0,VLOOKUP(A213,Sheet3!$A$282:$D$322,2,FALSE)) -> 0 | H213: 0 | R213: =IF(M213="",0,VLOOKUP(M213,Sheet3!$A$282:$D$322,2,FALSE)) -> 0 | T213: 0 | AD213: =IF(Y213="",0,VLOOKUP(Y213,Sheet3!$A$282:$D$322,2,FALSE)) -> 0 | AF213: 0
F214: =IF(A214="",0,VLOOKUP(A214,Sheet3!$A$282:$D$322,2,FALSE)) -> 0 | H214: 0 | R214: =IF(M214="",0,VLOOKUP(M214,Sheet3!$A$282:$D$322,2,FALSE)) -> 0 | T214: 0 | AD214: =IF(Y214="",0,VLOOKUP(Y214,Sheet3!$A$282:$D$322,2,FALSE)) -> 0 | AF214: 0
A215: Use Extension Recommended varieties | I215: =SUM(I209:I214) -> 89.32506887 | K215: =SUM(K209:K214) -> 1 | M215: Use Extension Recommended varieties | U215: =SUM(U209:U214) -> 66.4600551 | W215: =SUM(W209:W214) -> 1 | AG215: =SUM(AG209:AG214) -> 85.16988062 | AI215: =SUM(AI209:AI214) -> 1
A218: #2 | M218: #2 | Y218: #2
A219: Somewhat Poorly to Moderately Well Drained | M219: Somewhat Poorly to Moderately Well Drained | Y219: Somewhat Poorly to Moderately Well Drained
A220: Seed Species | D220: Variety or Seed Source | F220: Seeds/lb | G220: PLS Rate Planned | H220: Acres | I220: Seeds/Sqft | J220: Total PLS lbs | K220: % in Mixture | M220: Seed Species | P220: Variety or Seed Source | R220: Seeds/lb | S220: PLS Rate Planned | T220: Acres | U220: Seeds/Sqft | V220: Total PLS lbs | W220: % in Mixture | Y220: Seed Species | AB220: Variety or Seed Source | AD220: Seeds/lb | AE220: PLS Rate Planned | AF220: Acres | AG220: Seeds/Sqft | AH220: Total PLS lbs | AI220: % in Mixture
A224: Orchard grass | D224: Orion | F224: =IF(A224="",0,VLOOKUP(A224,Sheet3!$A$282:$D$322,2,FALSE)) -> 654000 | G224: 2 | H224: =$J$9 -> 0 | I224: =IF(A224="","",(F224*G224)/43560) -> 30.02754821 | J224: =IF(A224 = "","",H224*G224) -> 0 | K224: =IF(A224="","",I224/$I$230) -> 0.2764743183 | M224: Big Bluestem | P224: Bison | R224: =IF(M224="",0,VLOOKUP(M224,Sheet3!$A$282:$D$322,2,FALSE)) -> 165000 | S224: 8 | T224: =$J$9 -> 0 | U224: =IF(M224="","",(R224*S224)/43560) -> 30.3030303 | V224: =IF(M224 = "","",T224*S224) -> 0 | W224: =IF(M224="","",U224/$U$230) -> 0.4559585492 | Y224: Kentucky Bluegrass | AB224: forage type | AD224: =IF(Y224="",0,VLOOKUP(Y224,Sheet3!$A$282:$D$322,2,FALSE)) -> 2177000 | AE224: 0.5 | AF224: =$J$9 -> 0 | AG224: =IF(Y224="","",(AD224*AE224)/43560) -> 24.98852158 | AH224: =IF(Y224 = "","",AF224*AE224) -> 0 | AI224: =IF(Y224="","",AG224/$AG$230) -> 0.3067493307
A225: Timothy | D225: Climax | F225: =IF(A225="",0,VLOOKUP(A225,Sheet3!$A$282:$D$322,2,FALSE)) -> 1230000 | G225: 0.5 | H225: 0 | I225: 14.1184573 | J225: 0 | K225: 0.1299936588 | M225: Indiangrass | P225: Tomahawk | R225: =IF(M225="",0,VLOOKUP(M225,Sheet3!$A$282:$D$322,2,FALSE)) -> 175000 | S225: 9 | T225: 0 | U225: 36.15702479 | V225: 0 | W225: 0.5440414508 | Y225: Timothy | AB225: Climax | AD225: =IF(Y225="",0,VLOOKUP(Y225,Sheet3!$A$282:$D$322,2,FALSE)) -> 1230000 | AE225: 2 | AF225: 0 | AG225: 56.4738292 | AH225: 0 | AI225: 0.6932506693
A226: Tall Fescue | D226: Fawn | F226: =IF(A226="",0,VLOOKUP(A226,Sheet3!$A$282:$D$322,2,FALSE)) -> 227000 | G226: 4 | H226: 0 | I226: 20.84481175 | J226: 0 | K226: 0.1919255971 | R226: =IF(M226="",0,VLOOKUP(M226,Sheet3!$A$282:$D$322,2,FALSE)) -> 0 | T226: 0 | AD226: =IF(Y226="",0,VLOOKUP(Y226,Sheet3!$A$282:$D$322,2,FALSE)) -> 0 | AF226: 0
A227: Red Clover | D227: medium | F227: =IF(A227="",0,VLOOKUP(A227,Sheet3!$A$282:$D$322,2,FALSE)) -> 275000 | G227: 4 | H227: 0 | I227: 25.25252525 | J227: 0 | K227: 0.2325089833 | R227: =IF(M227="",0,VLOOKUP(M227,Sheet3!$A$282:$D$322,2,FALSE)) -> 0 | T227: 0 | AD227: =IF(Y227="",0,VLOOKUP(Y227,Sheet3!$A$282:$D$322,2,FALSE)) -> 0 | AF227: 0
A228: White Clover | D228: alice | F228: =IF(A228="",0,VLOOKUP(A228,Sheet3!$A$282:$D$322,2,FALSE)) -> 800000 | G228: 1 | H228: 0 | I228: 18.36547291 | J228: 0 | K228: 0.1690974424 | R228: =IF(M228="",0,VLOOKUP(M228,Sheet3!$A$282:$D$322,2,FALSE)) -> 0 | T228: 0 | AD228: =IF(Y228="",0,VLOOKUP(Y228,Sheet3!$A$282:$D$322,2,FALSE)) -> 0 | AF228: 0
F229: =IF(A229="",0,VLOOKUP(A229,Sheet3!$A$282:$D$322,2,FALSE)) -> 0 | H229: 0 | R229: =IF(M229="",0,VLOOKUP(M229,Sheet3!$A$282:$D$322,2,FALSE)) -> 0 | T229: 0 | AD229: =IF(Y229="",0,VLOOKUP(Y229,Sheet3!$A$282:$D$322,2,FALSE)) -> 0 | AF229: 0
A230: Use Extension Recommended varieties | I230: =SUM(I224:I229) -> 108.6088154 | K230: =SUM(K224:K229) -> 1 | M230: Use Extension Recommended varieties | U230: =SUM(U224:U229) -> 66.4600551 | W230: =SUM(W224:W229) -> 1 | AG230: =SUM(AG224:AG229) -> 81.46235078 | AI230: =SUM(AI224:AI229) -> 1
A232: #3 | M232: #3 | Y232: #3
A233: Somewhat Excessively to Excessively Drained Soils | M233: Somewhat Excessively to Excessively Drained Soils | Y233: Somewhat Excessively to Excessively Drained Soils
A234: Seed Species | D234: Variety or Seed Source | F234: Seeds/lb | G234: PLS Rate Planned | H234: Acres | I234: Seeds/Sqft | J234: Total PLS lbs | K234: % in Mixture | M234: Seed Species | P234: Variety or Seed Source | R234: Seeds/lb | S234: PLS Rate Planned | T234: Acres | U234: Seeds/Sqft | V234: Total PLS lbs | W234: % in Mixture | Y234: Seed Species | AB234: Variety or Seed Source | AD234: Seeds/lb | AE234: PLS Rate Planned | AF234: Acres | AG234: Seeds/Sqft | AH234: Total PLS lbs | AI234: % in Mixture
A238: Tall Fescue | D238: Fawn | F238: =IF(A238="",0,VLOOKUP(A238,Sheet3!$A$282:$D$322,2,FALSE)) -> 227000 | G238: 8 | H238: =$J$9 -> 0 | I238: =IF(A238="","",(F238*G238)/43560) -> 41.68962351 | J238: =IF(A238 = "","",H238*G238) -> 0 | K238: =IF(A238="","",I238/$I$244) -> 0.4794086589 | M238: Big Bluestem | P238: Bison | R238: =IF(M238="",0,VLOOKUP(M238,Sheet3!$A$282:$D$322,2,FALSE)) -> 165000 | S238: 6 | T238: =$J$9 -> 0 | U238: =IF(M238="","",(R238*S238)/43560) -> 22.72727273 | V238: =IF(M238 = "","",T238*S238) -> 0 | W238: =IF(M238="","",U238/$U$244) -> 0.3551299417 | AD238: =IF(Y238="",0,VLOOKUP(Y238,Sheet3!$A$282:$D$322,2,FALSE)) -> 0 | AF238: =$J$9 -> 0 | AG238: =IF(Y238="","",(AD238*AE238)/43560) ->  | AH238: =IF(Y238 = "","",AF238*AE238) ->  | AI238: =IF(Y238="","",AG238/$AG$244) -> 
A239: Meadow Bromegrass | D239: Fleet | F239: =IF(A239="",0,VLOOKUP(A239,Sheet3!$A$282:$D$322,2,FALSE)) -> 80000 | G239: 9 | H239: 0 | I239: 16.52892562 | J239: 0 | K239: 0.1900739176 | M239: Indiangrass | P239: Tomahawk | R239: =IF(M239="",0,VLOOKUP(M239,Sheet3!$A$282:$D$322,2,FALSE)) -> 175000 | S239: 4 | T239: 0 | U239: 16.0697888 | V239: 0 | W239: 0.251101979 | AD239: =IF(Y239="",0,VLOOKUP(Y239,Sheet3!$A$282:$D$322,2,FALSE)) -> 0 | AF239: 0
A240: Alfalfa | D240: grazing type | F240: =IF(A240="",0,VLOOKUP(A240,Sheet3!$A$282:$D$322,2,FALSE)) -> 220000 | G240: 4 | H240: 0 | I240: 20.2020202 | J240: 0 | K240: 0.232312566 | M240: Little Bluestem | P240: Itasca germplasm | R240: =IF(M240="",0,VLOOKUP(M240,Sheet3!$A$282:$D$322,2,FALSE)) -> 261360 | S240: 2 | T240: 0 | U240: 12 | V240: 0 | W240: 0.1875086092 | AD240: =IF(Y240="",0,VLOOKUP(Y240,Sheet3!$A$282:$D$322,2,FALSE)) -> 0 | AF240: 0
A241: Birdsfoot Trefoil | D241: Roseau | F241: =IF(A241="",0,VLOOKUP(A241,Sheet3!$A$282:$D$322,2,FALSE)) -> 372000 | G241: 1 | H241: 0 | I241: 8.539944904 | J241: 0 | K241: 0.09820485744 | M241: Sideoats Grama | P241: Killdeer | R241: =IF(M241="",0,VLOOKUP(M241,Sheet3!$A$282:$D$322,2,FALSE)) -> 191664 | S241: 3 | T241: 0 | U241: 13.2 | V241: 0 | W241: 0.2062594701 | AD241: =IF(Y241="",0,VLOOKUP(Y241,Sheet3!$A$282:$D$322,2,FALSE)) -> 0 | AF241: 0
F242: =IF(A242="",0,VLOOKUP(A242,Sheet3!$A$282:$D$322,2,FALSE)) -> 0 | H242: 0 | R242: =IF(M242="",0,VLOOKUP(M242,Sheet3!$A$282:$D$322,2,FALSE)) -> 0 | T242: 0 | AD242: =IF(Y242="",0,VLOOKUP(Y242,Sheet3!$A$282:$D$322,2,FALSE)) -> 0 | AF242: 0
F243: =IF(A243="",0,VLOOKUP(A243,Sheet3!$A$282:$D$322,2,FALSE)) -> 0 | H243: 0 | R243: =IF(M243="",0,VLOOKUP(M243,Sheet3!$A$282:$D$322,2,FALSE)) -> 0 | T243: 0 | AD243: =IF(Y243="",0,VLOOKUP(Y243,Sheet3!$A$282:$D$322,2,FALSE)) -> 0 | AF243: 0
A244: Use Extension Recommended varieties | I244: =SUM(I238:I243) -> 86.96051423 | K244: =SUM(K238:K243) -> 1 | M244: Use Extension Recommended varieties | U244: =SUM(U238:U243) -> 63.99706152 | W244: =SUM(W238:W243) -> 1 | AG244: =SUM(AG238:AG243) -> 0 | AI244: =SUM(AI238:AI243) -> 0
A249: COOL SEASON INTRODUCED HAY MIXES | M249: WARM SEASON NATIVE HAY MIXES
A251: #1 | M251: #1
A252: Forage Suitability Groups 13 & 14 - Very Poorly to Poorly Drained | M252: Forage Suitability Groups 13 & 14 - Very Poorly to Poorly Drained
A253: Seed Species | D253: Variety or Seed Source | F253: Seeds/lb | G253: PLS Rate Planned | H253: Acres | I253: Seeds/Sqft | J253: Total PLS lbs | K253: % in Mixture | M253: Seed Species | P253: Variety or Seed Source | R253: Seeds/lb | S253: PLS Rate Planned | T253: Acres | U253: Seeds/Sqft | V253: Total PLS lbs | W253: % in Mixture
A257: Timothy | D257: Climax | F257: =IF(A257="",0,VLOOKUP(A257,Sheet3!$A$282:$D$322,2,FALSE)) -> 1230000 | G257: 2.5 | H257: =$J$9 -> 0 | I257: =IF(A257="","",(F257*G257)/43560) -> 70.5922865 | J257: =IF(A257 = "","",H257*G257) -> 0 | K257: =IF(A257="","",I257/$I$263) -> 0.687150838 | M257: Big Bluestem | P257: Bison | R257: =IF(M257="",0,VLOOKUP(M257,Sheet3!$A$282:$D$322,2,FALSE)) -> 165000 | S257: 17 | T257: =$J$9 -> 0 | U257: =IF(M257="","",(R257*S257)/43560) -> 64.39393939 | V257: =IF(M257 = "","",T257*S257) -> 0 | W257: =IF(M257="","",U257/$U$263) -> 1
A258: Alsike Clover | D258: locally adapted | F258: =IF(A258="",0,VLOOKUP(A258,Sheet3!$A$282:$D$322,2,FALSE)) -> 700000 | G258: 2 | H258: 0 | I258: 32.13957759 | J258: 0 | K258: 0.312849162 | R258: =IF(M258="",0,VLOOKUP(M258,Sheet3!$A$282:$D$322,2,FALSE)) -> 0 | T258: 0
F259: =IF(A259="",0,VLOOKUP(A259,Sheet3!$A$282:$D$322,2,FALSE)) -> 0 | H259: 0 | R259: =IF(M259="",0,VLOOKUP(M259,Sheet3!$A$282:$D$322,2,FALSE)) -> 0 | T259: 0
F260: =IF(A260="",0,VLOOKUP(A260,Sheet3!$A$282:$D$322,2,FALSE)) -> 0 | H260: 0 | R260: =IF(M260="",0,VLOOKUP(M260,Sheet3!$A$282:$D$322,2,FALSE)) -> 0 | T260: 0
F261: =IF(A261="",0,VLOOKUP(A261,Sheet3!$A$282:$D$322,2,FALSE)) -> 0 | H261: 0 | R261: =IF(M261="",0,VLOOKUP(M261,Sheet3!$A$282:$D$322,2,FALSE)) -> 0 | T261: 0
F262: =IF(A262="",0,VLOOKUP(A262,Sheet3!$A$282:$D$322,2,FALSE)) -> 0 | H262: 0 | R262: =IF(M262="",0,VLOOKUP(M262,Sheet3!$A$282:$D$322,2,FALSE)) -> 0 | T262: 0
A263: Use Extension Recommended varieties | I263: =SUM(I257:I262) -> 102.7318641 | K263: =SUM(K257:K262) -> 1 | M263: Use Extension Recommended varieties | U263: =SUM(U257:U262) -> 64.39393939 | W263: =SUM(W257:W262) -> 1
A266: #2 | M266: #2
A267: Somewhat Poorly to Moderately Well Drained | M267: Somewhat Poorly to Moderately Well Drained
A268: Seed Species | D268: Variety or Seed Source | F268: Seeds/lb | G268: PLS Rate Planned | H268: Acres | I268: Seeds/Sqft | J268: Total PLS lbs | K268: % in Mixture | M268: Seed Species | P268: Variety or Seed Source | R268: Seeds/lb | S268: PLS Rate Planned | T268: Acres | U268: Seeds/Sqft | V268: Total PLS lbs | W268: % in Mixture
A272: Orchard grass | D272: late maturing | F272: =IF(A272="",0,VLOOKUP(A272,Sheet3!$A$282:$D$322,2,FALSE)) -> 654000 | G272: 3 | H272: =$J$9 -> 0 | I272: =IF(A272="","",(F272*G272)/43560) -> 45.04132231 | J272: =IF(A272 = "","",H272*G272) -> 0 | K272: =IF(A272="","",I272/$I$278) -> 0.4714079769 | M272: Big Bluestem | P272: Bison | R272: =IF(M272="",0,VLOOKUP(M272,Sheet3!$A$282:$D$322,2,FALSE)) -> 165000 | S272: 17 | T272: =$J$9 -> 0 | U272: =IF(M272="","",(R272*S272)/43560) -> 64.39393939 | V272: =IF(M272 = "","",T272*S272) -> 0 | W272: =IF(M272="","",U272/$U$278) -> 1
A273: Alfalfa | D273: recommended | F273: =IF(A273="",0,VLOOKUP(A273,Sheet3!$A$282:$D$322,2,FALSE)) -> 220000 | G273: 10 | H273: 0 | I273: 50.50505051 | J273: 0 | K273: 0.5285920231 | R273: =IF(M273="",0,VLOOKUP(M273,Sheet3!$A$282:$D$322,2,FALSE)) -> 0 | T273: 0
F274: =IF(A274="",0,VLOOKUP(A274,Sheet3!$A$282:$D$322,2,FALSE)) -> 0 | H274: 0 | R274: =IF(M274="",0,VLOOKUP(M274,Sheet3!$A$282:$D$322,2,FALSE)) -> 0 | T274: 0
F275: =IF(A275="",0,VLOOKUP(A275,Sheet3!$A$282:$D$322,2,FALSE)) -> 0 | H275: 0 | R275: =IF(M275="",0,VLOOKUP(M275,Sheet3!$A$282:$D$322,2,FALSE)) -> 0 | T275: 0
F276: =IF(A276="",0,VLOOKUP(A276,Sheet3!$A$282:$D$322,2,FALSE)) -> 0 | H276: 0 | R276: =IF(M276="",0,VLOOKUP(M276,Sheet3!$A$282:$D$322,2,FALSE)) -> 0 | T276: 0
F277: =IF(A277="",0,VLOOKUP(A277,Sheet3!$A$282:$D$322,2,FALSE)) -> 0 | H277: 0 | R277: =IF(M277="",0,VLOOKUP(M277,Sheet3!$A$282:$D$322,2,FALSE)) -> 0 | T277: 0
A278: Use Extension Recommended varieties | I278: =SUM(I272:I277) -> 95.54637282 | K278: =SUM(K272:K277) -> 1 | M278: Use Extension Recommended varieties | U278: =SUM(U272:U277) -> 64.39393939 | W278: =SUM(W272:W277) -> 1
A280: #3 | M280: #3
A281: Somewhat Excessively to Excessively Drained Soils | M281: Somewhat Excessively to Excessively Drained Soils
A282: Seed Species | D282: Variety or Seed Source | F282: Seeds/lb | G282: PLS Rate Planned | H282: Acres | I282: Seeds/Sqft | J282: Total PLS lbs | K282: % in Mixture | M282: Seed Species | P282: Variety or Seed Source | R282: Seeds/lb | S282: PLS Rate Planned | T282: Acres | U282: Seeds/Sqft | V282: Total PLS lbs | W282: % in Mixture
A286: Tall Fescue | D286: Fawn | F286: =IF(A286="",0,VLOOKUP(A286,Sheet3!$A$282:$D$322,2,FALSE)) -> 227000 | G286: 9 | H286: =$J$9 -> 0 | I286: =IF(A286="","",(F286*G286)/43560) -> 46.90082645 | J286: =IF(A286 = "","",H286*G286) -> 0 | K286: =IF(A286="","",I286/$I$292) -> 0.5078299776 | M286: Big Bluestem | P286: Bison | R286: =IF(M286="",0,VLOOKUP(M286,Sheet3!$A$282:$D$322,2,FALSE)) -> 165000 | S286: 17 | T286: =$J$9 -> 0 | U286: =IF(M286="","",(R286*S286)/43560) -> 64.39393939 | V286: =IF(M286 = "","",T286*S286) -> 0 | W286: =IF(M286="","",U286/$U$292) -> 1
A287: Alfalfa | D287: recommended | F287: =IF(A287="",0,VLOOKUP(A287,Sheet3!$A$282:$D$322,2,FALSE)) -> 220000 | G287: 9 | H287: 0 | I287: 45.45454545 | J287: 0 | K287: 0.4921700224 | R287: =IF(M287="",0,VLOOKUP(M287,Sheet3!$A$282:$D$322,2,FALSE)) -> 0 | T287: 0
F288: =IF(A288="",0,VLOOKUP(A288,Sheet3!$A$282:$D$322,2,FALSE)) -> 0 | H288: 0 | R288: =IF(M288="",0,VLOOKUP(M288,Sheet3!$A$282:$D$322,2,FALSE)) -> 0 | T288: 0
F289: =IF(A289="",0,VLOOKUP(A289,Sheet3!$A$282:$D$322,2,FALSE)) -> 0 | H289: 0 | R289: =IF(M289="",0,VLOOKUP(M289,Sheet3!$A$282:$D$322,2,FALSE)) -> 0 | T289: 0
F290: =IF(A290="",0,VLOOKUP(A290,Sheet3!$A$282:$D$322,2,FALSE)) -> 0 | H290: 0 | R290: =IF(M290="",0,VLOOKUP(M290,Sheet3!$A$282:$D$322,2,FALSE)) -> 0 | T290: 0
F291: =IF(A291="",0,VLOOKUP(A291,Sheet3!$A$282:$D$322,2,FALSE)) -> 0 | H291: 0 | R291: =IF(M291="",0,VLOOKUP(M291,Sheet3!$A$282:$D$322,2,FALSE)) -> 0 | T291: 0
A292: Use Extension Recommended varieties | I292: =SUM(I286:I291) -> 92.3553719 | K292: =SUM(K286:K291) -> 1 | M292: Use Extension Recommended varieties | U292: =SUM(U286:U291) -> 64.39393939 | W292: =SUM(W286:W291) -> 1
A297: Area 4
A298: COOL SEASON INTRODUCED PASTURE MIXES | M298: WARM SEASON NATIVE PASTURE MIXES | Y298: HORSE AND SHEEP PASTURE MIXES
A300: #1 | M300: #1 | Y300: #1
A301: Forage Suitability Groups 13 & 14 - Very Poorly to Poorly Drained | M301: Forage Suitability Groups 13 & 14 - Very Poorly to Poorly Drained | Y301: Forage Suitability Groups 13 & 14 - Very Poorly to Poorly Drained
A302: Seed Species | D302: Variety or Seed Source | F302: Seeds/lb | G302: PLS Rate Planned | H302: Acres | I302: Seeds/Sqft | J302: Total PLS lbs | K302: % in Mixture | M302: Seed Species | P302: Variety or Seed Source | R302: Seeds/lb | S302: PLS Rate Planned | T302: Acres | U302: Seeds/Sqft | V302: Total PLS lbs | W302: % in Mixture | Y302: Seed Species | AB302: Variety or Seed Source | AD302: Seeds/lb | AE302: PLS Rate Planned | AF302: Acres | AG302: Seeds/Sqft | AH302: Total PLS lbs | AI302: % in Mixture
A306: Creeping Foxtail | D306: Garrison | F306: =IF(A306="",0,VLOOKUP(A306,Sheet3!$A$282:$D$322,2,FALSE)) -> 900000 | G306: 2 | H306: =$J$9 -> 0 | I306: =IF(A306="","",(F306*G306)/43560) -> 41.32231405 | J306: =IF(A306 = "","",H306*G306) -> 0 | K306: =IF(A306="","",I306/$I$312) -> 0.4254313401 | M306: Big Bluestem | P306: Bison | R306: =IF(M306="",0,VLOOKUP(M306,Sheet3!$A$282:$D$322,2,FALSE)) -> 165000 | S306: 8 | T306: =$J$9 -> 0 | U306: =IF(M306="","",(R306*S306)/43560) -> 30.3030303 | V306: =IF(M306 = "","",T306*S306) -> 0 | W306: =IF(M306="","",U306/$U$312) -> 0.4559585492 | Y306: Creeping Foxtail | AB306: Garrison | AD306: =IF(Y306="",0,VLOOKUP(Y306,Sheet3!$A$282:$D$322,2,FALSE)) -> 900000 | AE306: 1 | AF306: =$J$9 -> 0 | AG306: =IF(Y306="","",(AD306*AE306)/43560) -> 20.66115702 | AH306: =IF(Y306 = "","",AF306*AE306) -> 0 | AI306: =IF(Y306="","",AG306/$AG$312) -> 0.1971522453
A307: Timothy | D307: Climax | F307: =IF(A307="",0,VLOOKUP(A307,Sheet3!$A$282:$D$322,2,FALSE)) -> 1230000 | G307: 0.5 | H307: 0 | I307: 14.1184573 | J307: 0 | K307: 0.1453557079 | M307: Indiangrass | P307: Tomahawk | R307: =IF(M307="",0,VLOOKUP(M307,Sheet3!$A$282:$D$322,2,FALSE)) -> 175000 | S307: 9 | T307: 0 | U307: 36.15702479 | V307: 0 | W307: 0.5440414508 | Y307: Kentucky Bluegrass | AB307: Adapted | AD307: =IF(Y307="",0,VLOOKUP(Y307,Sheet3!$A$282:$D$322,2,FALSE)) -> 2177000 | AE307: 1 | AF307: 0 | AG307: 49.97704316 | AH307: 0 | AI307: 0.4768893757
A308: Alsike Clover | D308: locally adapted | F308: =IF(A308="",0,VLOOKUP(A308,Sheet3!$A$282:$D$322,2,FALSE)) -> 700000 | G308: 1 | H308: 0 | I308: 16.0697888 | J308: 0 | K308: 0.1654455212 | R308: =IF(M308="",0,VLOOKUP(M308,Sheet3!$A$282:$D$322,2,FALSE)) -> 0 | T308: 0 | Y308: Birdsfoot Trefoil | AB308: Norcen | AD308: =IF(Y308="",0,VLOOKUP(Y308,Sheet3!$A$282:$D$322,2,FALSE)) -> 372000 | AE308: 4 | AF308: 0 | AG308: 34.15977961 | AH308: 0 | AI308: 0.325958379
... 197 more rows

Sheet Mixed Seed Tags (hidden)
B2: Example of a seed tag tested as individual lot.
U23: Everyone Co-Op | Y23: Pasture
AA25: Invoice # | AB25: 111
U26: 000 St. | AA26: Date shipped | AB26: 2009-05-30
C27: Anyone Seed Co. | U27: Near you, MN 0000
AA28: Page 1 of 1
U30: BILL TO:
C31: 0000 St | U31: John Q. Farmer
C32: Anywhere, US 11111
U33: ------------------------------------------------------------------------------------------------------------------------------------
C34: Date | D34: 2009-03-19 | U34: CUSTOMER | Y34: PO NUMBER
U35: JFARMER
B36: Item | C36: Qty | D36: Price | F36: Total | U36: =======================================================================
B37: Hungry Hiefer Pasture Mix | C37: 24 | D37: 120 | F37: =C37*D37 -> 2880 | U37: QUANTITY | W37: ITEM # | X37: DESCRIPTION | Z37: REF# | AA37: PRICE | AB37: PREPAID | AC37: TOTAL
F38: =C38*D38 -> 0 | U38: =======================================================================
F39: =C39*D39 -> 0 | U39: 1 | V39: TONS | W39: F3 | X39: UREA 46-0-0 | AA39: 476.2608 | AB39: 0 | AC39: =AA39*U39-AB39 -> 476.2608
F40: =C40*D40 -> 0 | U40: 1.3 | V40: TONS | W40: F8 | X40: MAP 11-52-0 | AA40: 516.3043 | AB40: 0 | AC40: =AA40*U40-AB40 -> 671.19559
F41: =C41*D41 -> 0 | U41: 0.375 | V41: TONS | W41: M2 | X41: POTASH | AA41: 282.61 | AB41: 0 | AC41: =AA41*U41-AB41 -> 105.97875
U42: 30 | V42: EACH | W42: S1 | X42: APPLICATION | AA42: 6.52 | AB42: 0 | AC42: =AA42*U42-AB42 -> 195.6
E43: Tax | F43: =SUM(F37:F41)*0.065 -> 187.2
E45: Total | F45: =SUM(F37:F43) -> 3067.2
U47: =======================================================================
AA48: INVOICE AMOUNT | AC48: =SUM(AC39:AC46) -> 1449.03514
